Workbook

Sheet Общая
A1: Марка | B1: № детали | C1: Кол-во деталей в марке | D1: Профиль /толщина | E1: Ширина | F1: Длина | G1: Вес ед. | H1: Вес всего | I1: Вес марки | J1: Марка стали | K1: Кол-во марок | L1: Кол-во деталей всего | M1: Вес всех дет. | N1: Примечание | O1: Столбец1
A2: 38а100 | B2: 38-1000 | C2: 1 | D2: 40ш2 | F2: 13125 | G2: 1401 | H2: =Таблица1[[#This Row],[Вес ед.]]*Таблица1[[#This Row],[Кол-во деталей в марке]] -> 1401 | I2: 1786.6 | J2: с255 | K2: 1 | L2: =C2*K2 -> 1 | M2: =Таблица1[Кол-во деталей всего]*Таблица1[Вес ед.] -> 1401 | N2: =IF(ISERROR(VLOOKUP(Таблица1[№ детали],Детали!$B$2:$B$88,1,0)),"Новая позиция"," ") ->  | O2: =Таблица1[[#This Row],[Кол-во марок]]*Таблица1[[#This Row],[Вес марки]] -> 1786.6
A3: 38а100 | B3: 38-1002 | C3: 4 | D3: 8 | E3: 10 | F3: 270 | G3: 0.2 | H3: =Таблица1[[#This Row],[Вес ед.]]*Таблица1[[#This Row],[Кол-во деталей в марке]] -> 0.8 | J3: с255 | K3: 1 | L3: 4 | M3: =Таблица1[Кол-во деталей всего]*Таблица1[Вес ед.] -> 0.8 | N3: =IF(ISERROR(VLOOKUP(Таблица1[№ детали],Детали!$B$2:$B$88,1,0)),"Новая позиция"," ") ->  | O3: =Таблица1[[#This Row],[Кол-во марок]]*Таблица1[[#This Row],[Вес марки]] -> 0
A4: 38а100 | B4: 38-1003 | C4: 1 | D4: 8 | E4: 100 | F4: 100 | G4: 0.6 | H4: =Таблица1[[#This Row],[Вес ед.]]*Таблица1[[#This Row],[Кол-во деталей в марке]] -> 0.6 | J4: с255 | K4: 1 | L4: 1 | M4: =Таблица1[Кол-во деталей всего]*Таблица1[Вес ед.] -> 0.6 | N4: =IF(ISERROR(VLOOKUP(Таблица1[№ детали],Детали!$B$2:$B$88,1,0)),"Новая позиция"," ") ->  | O4: =Таблица1[[#This Row],[Кол-во марок]]*Таблица1[[#This Row],[Вес марки]] -> 0
A5: 38а100 | B5: 38-1005 | C5: 1 | D5: 10 | E5: 165 | F5: 390 | G5: 5.1 | H5: =Таблица1[[#This Row],[Вес ед.]]*Таблица1[[#This Row],[Кол-во деталей в марке]] -> 5.1 | J5: с255 | K5: 1 | L5: 1 | M5: =Таблица1[Кол-во деталей всего]*Таблица1[Вес ед.] -> 5.1 | N5: =IF(ISERROR(VLOOKUP(Таблица1[№ детали],Детали!$B$2:$B$88,1,0)),"Новая позиция"," ") ->  | O5: =Таблица1[[#This Row],[Кол-во марок]]*Таблица1[[#This Row],[Вес марки]] -> 0
A6: 38а100 | B6: 38-1006 | C6: 1 | D6: 8 | E6: 145 | F6: 356 | G6: 3.2 | H6: =Таблица1[[#This Row],[Вес ед.]]*Таблица1[[#This Row],[Кол-во деталей в марке]] -> 3.2 | J6: с255 | K6: 1 | L6: 1 | M6: =Таблица1[Кол-во деталей всего]*Таблица1[Вес ед.] -> 3.2 | N6: =IF(ISERROR(VLOOKUP(Таблица1[№ детали],Детали!$B$2:$B$88,1,0)),"Новая позиция"," ") ->  | O6: =Таблица1[[#This Row],[Кол-во марок]]*Таблица1[[#This Row],[Вес марки]] -> 0
A7: 38а100 | B7: 38-1009 | C7: 1 | D7: 8 | E7: 120 | F7: 274 | G7: 2.1 | H7: =Таблица1[[#This Row],[Вес ед.]]*Таблица1[[#This Row],[Кол-во деталей в марке]] -> 2.1 | J7: с255 | K7: 1 | L7: 1 | M7: =Таблица1[Кол-во деталей всего]*Таблица1[Вес ед.] -> 2.1 | N7: =IF(ISERROR(VLOOKUP(Таблица1[№ детали],Детали!$B$2:$B$88,1,0)),"Новая позиция"," ") ->  | O7: =Таблица1[[#This Row],[Кол-во марок]]*Таблица1[[#This Row],[Вес марки]] -> 0
A8: 38а100 | B8: 38-1010 | C8: 1 | D8: 25 | E8: 340 | F8: 430 | G8: 28.7 | H8: =Таблица1[[#This Row],[Вес ед.]]*Таблица1[[#This Row],[Кол-во деталей в марке]] -> 28.7 | J8: с255 | K8: 1 | L8: 1 | M8: =Таблица1[Кол-во деталей всего]*Таблица1[Вес ед.] -> 28.7 | N8: =IF(ISERROR(VLOOKUP(Таблица1[№ детали],Детали!$B$2:$B$88,1,0)),"Новая позиция"," ") ->  | O8: =Таблица1[[#This Row],[Кол-во марок]]*Таблица1[[#This Row],[Вес марки]] -> 0
A9: 38а100 | B9: 38-1013 | C9: 3 | D9: 16 | E9: 285 | F9: 356 | G9: 12.7 | H9: =Таблица1[[#This Row],[Вес ед.]]*Таблица1[[#This Row],[Кол-во деталей в марке]] -> 38.1 | J9: с255 | K9: 1 | L9: 3 | M9: =Таблица1[Кол-во деталей всего]*Таблица1[Вес ед.] -> 38.1 | N9: =IF(ISERROR(VLOOKUP(Таблица1[№ детали],Детали!$B$2:$B$88,1,0)),"Новая позиция"," ") ->  | O9: =Таблица1[[#This Row],[Кол-во марок]]*Таблица1[[#This Row],[Вес марки]] -> 0
A10: 38а100 | B10: 38-1016 | C10: 2 | D10: 16 | E10: 145 | F10: 356 | G10: 6.5 | H10: =Таблица1[[#This Row],[Вес ед.]]*Таблица1[[#This Row],[Кол-во деталей в марке]] -> 13 | J10: с255 | K10: 1 | L10: =C10*K10 -> 2 | M10: =Таблица1[Кол-во деталей всего]*Таблица1[Вес ед.] -> 13 | N10: =IF(ISERROR(VLOOKUP(Таблица1[№ детали],Детали!$B$2:$B$88,1,0)),"Новая позиция"," ") ->  | O10: =Таблица1[[#This Row],[Кол-во марок]]*Таблица1[[#This Row],[Вес марки]] -> 0
A11: 38а100 | B11: 38-1018 | C11: 1 | D11: 16 | E11: 400 | F11: 613 | G11: 30.8 | H11: =Таблица1[[#This Row],[Вес ед.]]*Таблица1[[#This Row],[Кол-во деталей в марке]] -> 30.8 | J11: с255 | K11: 1 | L11: 1 | M11: =Таблица1[Кол-во деталей всего]*Таблица1[Вес ед.] -> 30.8 | N11: =IF(ISERROR(VLOOKUP(Таблица1[№ детали],Детали!$B$2:$B$88,1,0)),"Новая позиция"," ") ->  | O11: =Таблица1[[#This Row],[Кол-во марок]]*Таблица1[[#This Row],[Вес марки]] -> 0
A12: 38а100 | B12: 38-1019 | C12: 1 | D12: 16 | E12: 270 | F12: 300 | G12: 10.2 | H12: =Таблица1[[#This Row],[Вес ед.]]*Таблица1[[#This Row],[Кол-во деталей в марке]] -> 10.2 | J12: с255 | K12: 1 | L12: =C12*K12 -> 1 | M12: =Таблица1[Кол-во деталей всего]*Таблица1[Вес ед.] -> 10.2 | N12: =IF(ISERROR(VLOOKUP(Таблица1[№ детали],Детали!$B$2:$B$88,1,0)),"Новая позиция"," ") ->  | O12: =Таблица1[[#This Row],[Кол-во марок]]*Таблица1[[#This Row],[Вес марки]] -> 0
A13: 38а100 | B13: 38-1020 | C13: 3 | D13: 16 | E13: 240 | F13: 300 | G13: 9 | H13: =Таблица1[[#This Row],[Вес ед.]]*Таблица1[[#This Row],[Кол-во деталей в марке]] -> 27 | J13: с255 | K13: 1 | L13: 3 | M13: =Таблица1[Кол-во деталей всего]*Таблица1[Вес ед.] -> 27 | N13: =IF(ISERROR(VLOOKUP(Таблица1[№ детали],Детали!$B$2:$B$88,1,0)),"Новая позиция"," ") ->  | O13: =Таблица1[[#This Row],[Кол-во марок]]*Таблица1[[#This Row],[Вес марки]] -> 0
A14: 38а100 | B14: 38-1023 | C14: 7 | D14: 16 | E14: 145 | F14: 356 | G14: 6,5 | H14: =Таблица1[[#This Row],[Вес ед.]]*Таблица1[[#This Row],[Кол-во деталей в марке]] -> 45.5 | J14: с255 | K14: 1 | L14: 7 | M14: =Таблица1[Кол-во деталей всего]*Таблица1[Вес ед.] -> 45.5 | N14: =IF(ISERROR(VLOOKUP(Таблица1[№ детали],Детали!$B$2:$B$88,1,0)),"Новая позиция"," ") ->  | O14: =Таблица1[[#This Row],[Кол-во марок]]*Таблица1[[#This Row],[Вес марки]] -> 0
A15: 38а100 | B15: 38-1024 | C15: 4 | D15: 16 | E15: 145 | F15: 356 | G15: 6.5 | H15: =Таблица1[[#This Row],[Вес ед.]]*Таблица1[[#This Row],[Кол-во деталей в марке]] -> 26 | J15: с255 | K15: 1 | L15: 4 | M15: =Таблица1[Кол-во деталей всего]*Таблица1[Вес ед.] -> 26 | N15: =IF(ISERROR(VLOOKUP(Таблица1[№ детали],Детали!$B$2:$B$88,1,0)),"Новая позиция"," ") ->  | O15: =Таблица1[[#This Row],[Кол-во марок]]*Таблица1[[#This Row],[Вес марки]] -> 0
A16: 38а100 | B16: 38-1025 | C16: 3 | D16: 10 | E16: 345 | F16: 540 | G16: 14.6 | H16: =Таблица1[[#This Row],[Вес ед.]]*Таблица1[[#This Row],[Кол-во деталей в марке]] -> 43.8 | J16: с255 | K16: 1 | L16: 3 | M16: =Таблица1[Кол-во деталей всего]*Таблица1[Вес ед.] -> 43.8 | N16: =IF(ISERROR(VLOOKUP(Таблица1[№ детали],Детали!$B$2:$B$88,1,0)),"Новая позиция"," ") ->  | O16: =Таблица1[[#This Row],[Кол-во марок]]*Таблица1[[#This Row],[Вес марки]] -> 0
A17: 38а100 | B17: 38-1027 | C17: 1 | D17: 10 | E17: 322 | F17: 345 | G17: 8.7 | H17: =Таблица1[[#This Row],[Вес ед.]]*Таблица1[[#This Row],[Кол-во деталей в марке]] -> 8.7 | J17: с255 | K17: 1 | L17: 1 | M17: =Таблица1[Кол-во деталей всего]*Таблица1[Вес ед.] -> 8.7 | N17: =IF(ISERROR(VLOOKUP(Таблица1[№ детали],Детали!$B$2:$B$88,1,0)),"Новая позиция"," ") ->  | O17: =Таблица1[[#This Row],[Кол-во марок]]*Таблица1[[#This Row],[Вес марки]] -> 0
A18: 38а100 | B18: 38-1034 | C18: 4 | D18: 10 | E18: 145 | F18: 324 | G18: 3.7 | H18: =Таблица1[[#This Row],[Вес ед.]]*Таблица1[[#This Row],[Кол-во деталей в марке]] -> 14.8 | J18: с255 | K18: 1 | L18: 4 | M18: =Таблица1[Кол-во деталей всего]*Таблица1[Вес ед.] -> 14.8 | N18: =IF(ISERROR(VLOOKUP(Таблица1[№ детали],Детали!$B$2:$B$88,1,0)),"Новая позиция"," ") ->  | O18: =Таблица1[[#This Row],[Кол-во марок]]*Таблица1[[#This Row],[Вес марки]] -> 0
A19: 38а100 | B19: 38-1039 | C19: 4 | D19: 10 | E19: 140 | F19: 270 | G19: 3 | H19: =Таблица1[[#This Row],[Вес ед.]]*Таблица1[[#This Row],[Кол-во деталей в марке]] -> 12 | J19: с255 | K19: 1 | L19: 4 | M19: =Таблица1[Кол-во деталей всего]*Таблица1[Вес ед.] -> 12 | N19: =IF(ISERROR(VLOOKUP(Таблица1[№ детали],Детали!$B$2:$B$88,1,0)),"Новая позиция"," ") ->  | O19: =Таблица1[[#This Row],[Кол-во марок]]*Таблица1[[#This Row],[Вес марки]] -> 0
A20: 38а100 | B20: 38-1046 | C20: 3 | D20: 10 | E20: 234 | F20: 230 | G20: 4.2 | H20: =Таблица1[[#This Row],[Вес ед.]]*Таблица1[[#This Row],[Кол-во деталей в марке]] -> 12.6 | J20: с255 | K20: 1 | L20: 3 | M20: =Таблица1[Кол-во деталей всего]*Таблица1[Вес ед.] -> 12.6 | N20: =IF(ISERROR(VLOOKUP(Таблица1[№ детали],Детали!$B$2:$B$88,1,0)),"Новая позиция"," ") ->  | O20: =Таблица1[[#This Row],[Кол-во марок]]*Таблица1[[#This Row],[Вес марки]] -> 0
A21: 38а100 | B21: 38-1047 | C21: 1 | D21: 10 | E21: 199 | F21: 274 | G21: 4.3 | H21: =Таблица1[[#This Row],[Вес ед.]]*Таблица1[[#This Row],[Кол-во деталей в марке]] -> 4.3 | J21: с255 | K21: 1 | L21: 1 | M21: =Таблица1[Кол-во деталей всего]*Таблица1[Вес ед.] -> 4.3 | N21: =IF(ISERROR(VLOOKUP(Таблица1[№ детали],Детали!$B$2:$B$88,1,0)),"Новая позиция"," ") ->  | O21: =Таблица1[[#This Row],[Кол-во марок]]*Таблица1[[#This Row],[Вес марки]] -> 0
A22: 38а100 | B22: 38-1048 | C22: 2 | D22: 10 | E22: 120 | F22: 150 | G22: 1.4 | H22: =Таблица1[[#This Row],[Вес ед.]]*Таблица1[[#This Row],[Кол-во деталей в марке]] -> 2.8 | J22: с255 | K22: 1 | L22: 2 | M22: =Таблица1[Кол-во деталей всего]*Таблица1[Вес ед.] -> 2.8 | N22: =IF(ISERROR(VLOOKUP(Таблица1[№ детали],Детали!$B$2:$B$88,1,0)),"Новая позиция"," ") ->  | O22: =Таблица1[[#This Row],[Кол-во марок]]*Таблица1[[#This Row],[Вес марки]] -> 0
A23: 38а100 | B23: 38-1050 | C23: 1 | D23: 10 | E23: 381 | F23: 390 | G23: 11.7 | H23: =Таблица1[[#This Row],[Вес ед.]]*Таблица1[[#This Row],[Кол-во деталей в марке]] -> 11.7 | J23: с255 | K23: 1 | L23: 1 | M23: =Таблица1[Кол-во деталей всего]*Таблица1[Вес ед.] -> 11.7 | N23: =IF(ISERROR(VLOOKUP(Таблица1[№ детали],Детали!$B$2:$B$88,1,0)),"Новая позиция"," ") ->  | O23: =Таблица1[[#This Row],[Кол-во марок]]*Таблица1[[#This Row],[Вес марки]] -> 0
A24: 38а100 | B24: 38-1055 | C24: 3 | D24: 16 | E24: 145 | F24: 356 | G24: 6,5 | H24: =Таблица1[[#This Row],[Вес ед.]]*Таблица1[[#This Row],[Кол-во деталей в марке]] -> 19.5 | J24: с255 | K24: 1 | L24: 3 | M24: =Таблица1[Кол-во деталей всего]*Таблица1[Вес ед.] -> 19.5 | N24: =IF(ISERROR(VLOOKUP(Таблица1[№ детали],Детали!$B$2:$B$88,1,0)),"Новая позиция"," ") ->  | O24: =Таблица1[[#This Row],[Кол-во марок]]*Таблица1[[#This Row],[Вес марки]] -> 0
A25: 38а100 | B25: 38-1056 | C25: 3 | D25: 10 | E25: 145 | F25: 200 | G25: 2.3 | H25: =Таблица1[[#This Row],[Вес ед.]]*Таблица1[[#This Row],[Кол-во деталей в марке]] -> 6.9 | J25: с255 | K25: 1 | L25: 3 | M25: =Таблица1[Кол-во деталей всего]*Таблица1[Вес ед.] -> 6.9 | N25: =IF(ISERROR(VLOOKUP(Таблица1[№ детали],Детали!$B$2:$B$88,1,0)),"Новая позиция"," ") ->  | O25: =Таблица1[[#This Row],[Кол-во марок]]*Таблица1[[#This Row],[Вес марки]] -> 0
A26: 38а101 | B26: 38-1016 | C26: 2 | D26: 16 | E26: 145 | F26: 356 | G26: 6 | H26: =Таблица1[[#This Row],[Вес ед.]]*Таблица1[[#This Row],[Кол-во деталей в марке]] -> 12 | I26: 579.9 | J26: с255 | K26: 1 | L26: 2 | M26: =Таблица1[Кол-во деталей всего]*Таблица1[Вес ед.] -> 12 | N26: =IF(ISERROR(VLOOKUP(Таблица1[№ детали],Детали!$B$2:$B$88,1,0)),"Новая позиция"," ") ->  | O26: =Таблица1[[#This Row],[Кол-во марок]]*Таблица1[[#This Row],[Вес марки]] -> 579.9
A27: 38а101 | B27: 38-1001 | C27: 1 | D27: 40ш2 | F27: 3530 | G27: 376.7 | H27: =Таблица1[[#This Row],[Вес ед.]]*Таблица1[[#This Row],[Кол-во деталей в марке]] -> 376.7 | J27: с255 | K27: 1 | L27: 1 | M27: =Таблица1[Кол-во деталей всего]*Таблица1[Вес ед.] -> 376.7 | N27: =IF(ISERROR(VLOOKUP(Таблица1[№ детали],Детали!$B$2:$B$88,1,0)),"Новая позиция"," ") ->  | O27: =Таблица1[[#This Row],[Кол-во марок]]*Таблица1[[#This Row],[Вес марки]] -> 0
A28: 38а101 | B28: 38-1002 | C28: 2 | D28: 8 | E28: 10 | F28: 270 | G28: 0.2 | H28: =Таблица1[[#This Row],[Вес ед.]]*Таблица1[[#This Row],[Кол-во деталей в марке]] -> 0.4 | J28: с255 | K28: 1 | L28: 2 | M28: =Таблица1[Кол-во деталей всего]*Таблица1[Вес ед.] -> 0.4 | N28: =IF(ISERROR(VLOOKUP(Таблица1[№ детали],Детали!$B$2:$B$88,1,0)),"Новая позиция"," ") ->  | O28: =Таблица1[[#This Row],[Кол-во марок]]*Таблица1[[#This Row],[Вес марки]] -> 0
A29: 38а101 | B29: 38-1004 | C29: 1 | D29: 8 | E29: 145 | F29: 356 | G29: 3.2 | H29: =Таблица1[[#This Row],[Вес ед.]]*Таблица1[[#This Row],[Кол-во деталей в марке]] -> 3.2 | J29: с255 | K29: 1 | L29: 1 | M29: =Таблица1[Кол-во деталей всего]*Таблица1[Вес ед.] -> 3.2 | N29: =IF(ISERROR(VLOOKUP(Таблица1[№ детали],Детали!$B$2:$B$88,1,0)),"Новая позиция"," ") ->  | O29: =Таблица1[[#This Row],[Кол-во марок]]*Таблица1[[#This Row],[Вес марки]] -> 0
A30: 38а101 | B30: 38-1006 | C30: 1 | D30: 8 | E30: 145 | F30: 356 | G30: 3.2 | H30: =Таблица1[[#This Row],[Вес ед.]]*Таблица1[[#This Row],[Кол-во деталей в марке]] -> 3.2 | J30: с255 | K30: 1 | L30: 1 | M30: =Таблица1[Кол-во деталей всего]*Таблица1[Вес ед.] -> 3.2 | N30: =IF(ISERROR(VLOOKUP(Таблица1[№ детали],Детали!$B$2:$B$88,1,0)),"Новая позиция"," ") ->  | O30: =Таблица1[[#This Row],[Кол-во марок]]*Таблица1[[#This Row],[Вес марки]] -> 0
A31: 38а101 | B31: 38-1008 | C31: 1 | D31: 10 | E31: 165 | F31: 355 | G31: 4.6 | H31: =Таблица1[[#This Row],[Вес ед.]]*Таблица1[[#This Row],[Кол-во деталей в марке]] -> 4.6 | J31: с255 | K31: 1 | L31: 1 | M31: =Таблица1[Кол-во деталей всего]*Таблица1[Вес ед.] -> 4.6 | N31: =IF(ISERROR(VLOOKUP(Таблица1[№ детали],Детали!$B$2:$B$88,1,0)),"Новая позиция"," ") ->  | O31: =Таблица1[[#This Row],[Кол-во марок]]*Таблица1[[#This Row],[Вес марки]] -> 0
A32: 38а101 | B32: 38-1018 | C32: 1 | D32: 16 | E32: 400 | F32: 613 | G32: 30.8 | H32: =Таблица1[[#This Row],[Вес ед.]]*Таблица1[[#This Row],[Кол-во деталей в марке]] -> 30.8 | J32: с255 | K32: 1 | L32: 1 | M32: =Таблица1[Кол-во деталей всего]*Таблица1[Вес ед.] -> 30.8 | N32: =IF(ISERROR(VLOOKUP(Таблица1[№ детали],Детали!$B$2:$B$88,1,0)),"Новая позиция"," ") ->  | O32: =Таблица1[[#This Row],[Кол-во марок]]*Таблица1[[#This Row],[Вес марки]] -> 0
A33: 38а101 | B33: 38-1020 | C33: 2 | D33: 16 | E33: 240 | F33: 300 | G33: 9 | H33: =Таблица1[[#This Row],[Вес ед.]]*Таблица1[[#This Row],[Кол-во деталей в марке]] -> 18 | J33: с255 | K33: 1 | L33: 2 | M33: =Таблица1[Кол-во деталей всего]*Таблица1[Вес ед.] -> 18 | N33: =IF(ISERROR(VLOOKUP(Таблица1[№ детали],Детали!$B$2:$B$88,1,0)),"Новая позиция"," ") ->  | O33: =Таблица1[[#This Row],[Кол-во марок]]*Таблица1[[#This Row],[Вес марки]] -> 0
A34: 38а101 | B34: 38-1023 | C34: 2 | D34: 16 | E34: 145 | F34: 356 | G34: 6.5 | H34: =Таблица1[[#This Row],[Вес ед.]]*Таблица1[[#This Row],[Кол-во деталей в марке]] -> 13 | J34: с255 | K34: 1 | L34: 2 | M34: =Таблица1[Кол-во деталей всего]*Таблица1[Вес ед.] -> 13 | N34: =IF(ISERROR(VLOOKUP(Таблица1[№ детали],Детали!$B$2:$B$88,1,0)),"Новая позиция"," ") ->  | O34: =Таблица1[[#This Row],[Кол-во марок]]*Таблица1[[#This Row],[Вес марки]] -> 0
A35: 38а101 | B35: 38-1024 | C35: 3 | D35: 16 | E35: 145 | F35: 356 | G35: 6.5 | H35: =Таблица1[[#This Row],[Вес ед.]]*Таблица1[[#This Row],[Кол-во деталей в марке]] -> 19.5 | J35: с255 | K35: 1 | L35: 3 | M35: =Таблица1[Кол-во деталей всего]*Таблица1[Вес ед.] -> 19.5 | N35: =IF(ISERROR(VLOOKUP(Таблица1[№ детали],Детали!$B$2:$B$88,1,0)),"Новая позиция"," ") ->  | O35: =Таблица1[[#This Row],[Кол-во марок]]*Таблица1[[#This Row],[Вес марки]] -> 0
A36: 38а101 | B36: 38-1029 | C36: 1 | D36: 10 | E36: 285 | F36: 472 | G36: 10.6 | H36: =Таблица1[[#This Row],[Вес ед.]]*Таблица1[[#This Row],[Кол-во деталей в марке]] -> 10.6 | J36: с255 | K36: 1 | L36: 1 | M36: =Таблица1[Кол-во деталей всего]*Таблица1[Вес ед.] -> 10.6 | N36: =IF(ISERROR(VLOOKUP(Таблица1[№ детали],Детали!$B$2:$B$88,1,0)),"Новая позиция"," ") ->  | O36: =Таблица1[[#This Row],[Кол-во марок]]*Таблица1[[#This Row],[Вес марки]] -> 0
A37: 38а101 | B37: 38-1032 | C37: 1 | D37: 10 | E37: 285 | F37: 488 | G37: 10,9 | H37: =Таблица1[[#This Row],[Вес ед.]]*Таблица1[[#This Row],[Кол-во деталей в марке]] -> 10.9 | J37: с255 | K37: 1 | L37: 1 | M37: =Таблица1[Кол-во деталей всего]*Таблица1[Вес ед.] -> 10.9 | N37: =IF(ISERROR(VLOOKUP(Таблица1[№ детали],Детали!$B$2:$B$88,1,0)),"Новая позиция"," ") ->  | O37: =Таблица1[[#This Row],[Кол-во марок]]*Таблица1[[#This Row],[Вес марки]] -> 0
A38: 38а101 | B38: 38-1033 | C38: 1 | D38: 10 | E38: 145 | F38: 488 | G38: 5,6 | H38: =Таблица1[[#This Row],[Вес ед.]]*Таблица1[[#This Row],[Кол-во деталей в марке]] -> 5.6 | J38: с255 | K38: 1 | L38: 1 | M38: =Таблица1[Кол-во деталей всего]*Таблица1[Вес ед.] -> 5.6 | N38: =IF(ISERROR(VLOOKUP(Таблица1[№ детали],Детали!$B$2:$B$88,1,0)),"Новая позиция"," ") ->  | O38: =Таблица1[[#This Row],[Кол-во марок]]*Таблица1[[#This Row],[Вес марки]] -> 0
A39: 38а101 | B39: 38-1036 | C39: 1 | D39: 10 | E39: 145 | F39: 472 | G39: 5,4 | H39: =Таблица1[[#This Row],[Вес ед.]]*Таблица1[[#This Row],[Кол-во деталей в марке]] -> 5.4 | J39: с255 | K39: 1 | L39: 1 | M39: =Таблица1[Кол-во деталей всего]*Таблица1[Вес ед.] -> 5.4 | N39: =IF(ISERROR(VLOOKUP(Таблица1[№ детали],Детали!$B$2:$B$88,1,0)),"Новая позиция"," ") ->  | O39: =Таблица1[[#This Row],[Кол-во марок]]*Таблица1[[#This Row],[Вес марки]] -> 0
A40: 38а101 | B40: 38-1039 | C40: 2 | D40: 10 | E40: 140 | F40: 270 | G40: 3 | H40: =Таблица1[[#This Row],[Вес ед.]]*Таблица1[[#This Row],[Кол-во деталей в марке]] -> 6 | J40: с255 | K40: 1 | L40: 2 | M40: =Таблица1[Кол-во деталей всего]*Таблица1[Вес ед.] -> 6 | N40: =IF(ISERROR(VLOOKUP(Таблица1[№ детали],Детали!$B$2:$B$88,1,0)),"Новая позиция"," ") ->  | O40: =Таблица1[[#This Row],[Кол-во марок]]*Таблица1[[#This Row],[Вес марки]] -> 0
A41: 38а101 | B41: 38-1042 | C41: 1 | D41: 16 | E41: 285 | F41: 356 | G41: 12.7 | H41: =Таблица1[[#This Row],[Вес ед.]]*Таблица1[[#This Row],[Кол-во деталей в марке]] -> 12.7 | J41: с255 | K41: 1 | L41: 1 | M41: =Таблица1[Кол-во деталей всего]*Таблица1[Вес ед.] -> 12.7 | N41: =IF(ISERROR(VLOOKUP(Таблица1[№ детали],Детали!$B$2:$B$88,1,0)),"Новая позиция"," ") ->  | O41: =Таблица1[[#This Row],[Кол-во марок]]*Таблица1[[#This Row],[Вес марки]] -> 0
A42: 38а101 | B42: 38-1043 | C42: 1 | D42: 10 | E42: 304 | F42: 243 | G42: 5.8 | H42: =Таблица1[[#This Row],[Вес ед.]]*Таблица1[[#This Row],[Кол-во деталей в марке]] -> 5.8 | J42: с255 | K42: 1 | L42: 1 | M42: =Таблица1[Кол-во деталей всего]*Таблица1[Вес ед.] -> 5.8 | N42: =IF(ISERROR(VLOOKUP(Таблица1[№ детали],Детали!$B$2:$B$88,1,0)),"Новая позиция"," ") ->  | O42: =Таблица1[[#This Row],[Кол-во марок]]*Таблица1[[#This Row],[Вес марки]] -> 0
A43: 38а101 | B43: 38-1045 | C43: 1 | D43: 10 | E43: 425 | F43: 355 | G43: 11.8 | H43: =Таблица1[[#This Row],[Вес ед.]]*Таблица1[[#This Row],[Кол-во деталей в марке]] -> 11.8 | J43: с255 | K43: 1 | L43: 1 | M43: =Таблица1[Кол-во деталей всего]*Таблица1[Вес ед.] -> 11.8 | N43: =IF(ISERROR(VLOOKUP(Таблица1[№ детали],Детали!$B$2:$B$88,1,0)),"Новая позиция"," ") ->  | O43: =Таблица1[[#This Row],[Кол-во марок]]*Таблица1[[#This Row],[Вес марки]] -> 0
A44: 38а101 | B44: 38-1051 | C44: 1 | D44: 20 | E44: 340 | F44: 430 | G44: 23 | H44: =Таблица1[[#This Row],[Вес ед.]]*Таблица1[[#This Row],[Кол-во деталей в марке]] -> 23 | J44: с255 | K44: 1 | L44: =C44*K44 -> 1 | M44: =Таблица1[Кол-во деталей всего]*Таблица1[Вес ед.] -> 23 | N44: =IF(ISERROR(VLOOKUP(Таблица1[№ детали],Детали!$B$2:$B$88,1,0)),"Новая позиция"," ") ->  | O44: =Таблица1[[#This Row],[Кол-во марок]]*Таблица1[[#This Row],[Вес марки]] -> 0
A45: 38а102 | B45: 38-1000 | C45: 1 | D45: 40ш2 | F45: 13125 | G45: 1401 | H45: =Таблица1[[#This Row],[Вес ед.]]*Таблица1[[#This Row],[Кол-во деталей в марке]] -> 1401 | I45: 1871 | J45: с255 | K45: 1 | L45: 1 | M45: =Таблица1[Кол-во деталей всего]*Таблица1[Вес ед.] -> 1401 | N45: =IF(ISERROR(VLOOKUP(Таблица1[№ детали],Детали!$B$2:$B$88,1,0)),"Новая позиция"," ") ->  | O45: =Таблица1[[#This Row],[Кол-во марок]]*Таблица1[[#This Row],[Вес марки]] -> 1871
A46: 38а102 | B46: 38-1002 | C46: 6 | D46: 8 | E46: 10 | F46: 270 | G46: 0,2 | H46: =Таблица1[[#This Row],[Вес ед.]]*Таблица1[[#This Row],[Кол-во деталей в марке]] -> 1.2 | J46: с255 | K46: 1 | L46: 6 | M46: =Таблица1[Кол-во деталей всего]*Таблица1[Вес ед.] -> 1.2 | N46: =IF(ISERROR(VLOOKUP(Таблица1[№ детали],Детали!$B$2:$B$88,1,0)),"Новая позиция"," ") ->  | O46: =Таблица1[[#This Row],[Кол-во марок]]*Таблица1[[#This Row],[Вес марки]] -> 0
A47: 38а102 | B47: 38-1003 | C47: 1 | D47: 8 | E47: 100 | F47: 100 | G47: 0.6 | H47: =Таблица1[[#This Row],[Вес ед.]]*Таблица1[[#This Row],[Кол-во деталей в марке]] -> 0.6 | J47: с255 | K47: 1 | L47: 1 | M47: =Таблица1[Кол-во деталей всего]*Таблица1[Вес ед.] -> 0.6 | N47: =IF(ISERROR(VLOOKUP(Таблица1[№ детали],Детали!$B$2:$B$88,1,0)),"Новая позиция"," ") ->  | O47: =Таблица1[[#This Row],[Кол-во марок]]*Таблица1[[#This Row],[Вес марки]] -> 0
A48: 38а102 | B48: 38-1004 | C48: 1 | D48: 8 | E48: 145 | F48: 356 | G48: 3.2 | H48: =Таблица1[[#This Row],[Вес ед.]]*Таблица1[[#This Row],[Кол-во деталей в марке]] -> 3.2 | J48: с255 | K48: 1 | L48: 1 | M48: =Таблица1[Кол-во деталей всего]*Таблица1[Вес ед.] -> 3.2 | N48: =IF(ISERROR(VLOOKUP(Таблица1[№ детали],Детали!$B$2:$B$88,1,0)),"Новая позиция"," ") ->  | O48: =Таблица1[[#This Row],[Кол-во марок]]*Таблица1[[#This Row],[Вес марки]] -> 0
A49: 38а102 | B49: 38-1006 | C49: 1 | D49: 8 | E49: 145 | F49: 356 | G49: 3.2 | H49: =Таблица1[[#This Row],[Вес ед.]]*Таблица1[[#This Row],[Кол-во деталей в марке]] -> 3.2 | J49: с255 | K49: 1 | L49: 1 | M49: =Таблица1[Кол-во деталей всего]*Таблица1[Вес ед.] -> 3.2 | N49: =IF(ISERROR(VLOOKUP(Таблица1[№ детали],Детали!$B$2:$B$88,1,0)),"Новая позиция"," ") ->  | O49: =Таблица1[[#This Row],[Кол-во марок]]*Таблица1[[#This Row],[Вес марки]] -> 0
A50: 38а102 | B50: 38-1007 | C50: 1 | D50: 10 | E50: 165 | F50: 350 | G50: 4,5 | H50: =Таблица1[[#This Row],[Вес ед.]]*Таблица1[[#This Row],[Кол-во деталей в марке]] -> 4.5 | J50: с255 | K50: 1 | L50: 1 | M50: =Таблица1[Кол-во деталей всего]*Таблица1[Вес ед.] -> 4.5 | N50: =IF(ISERROR(VLOOKUP(Таблица1[№ детали],Детали!$B$2:$B$88,1,0)),"Новая позиция"," ") ->  | O50: =Таблица1[[#This Row],[Кол-во марок]]*Таблица1[[#This Row],[Вес марки]] -> 0
A51: 38а102 | B51: 38-1009 | C51: 1 | D51: 8 | E51: 120 | F51: 274 | G51: 2.1 | H51: =Таблица1[[#This Row],[Вес ед.]]*Таблица1[[#This Row],[Кол-во деталей в марке]] -> 2.1 | J51: с255 | K51: 1 | L51: 1 | M51: =Таблица1[Кол-во деталей всего]*Таблица1[Вес ед.] -> 2.1 | N51: =IF(ISERROR(VLOOKUP(Таблица1[№ детали],Детали!$B$2:$B$88,1,0)),"Новая позиция"," ") ->  | O51: =Таблица1[[#This Row],[Кол-во марок]]*Таблица1[[#This Row],[Вес марки]] -> 0
A52: 38а102 | B52: 38-1010 | C52: 1 | D52: 25 | E52: 340 | F52: 430 | G52: 28,7 | H52: =Таблица1[[#This Row],[Вес ед.]]*Таблица1[[#This Row],[Кол-во деталей в марке]] -> 28.7 | J52: с255 | K52: 1 | L52: 1 | M52: =Таблица1[Кол-во деталей всего]*Таблица1[Вес ед.] -> 28.7 | N52: =IF(ISERROR(VLOOKUP(Таблица1[№ детали],Детали!$B$2:$B$88,1,0)),"Новая позиция"," ") ->  | O52: =Таблица1[[#This Row],[Кол-во марок]]*Таблица1[[#This Row],[Вес марки]] -> 0
A53: 38а102 | B53: 38-1014 | C53: 1 | D53: 16 | E53: 285 | F53: 356 | G53: 12.7 | H53: =Таблица1[[#This Row],[Вес ед.]]*Таблица1[[#This Row],[Кол-во деталей в марке]] -> 12.7 | J53: с255 | K53: 1 | L53: 1 | M53: =Таблица1[Кол-во деталей всего]*Таблица1[Вес ед.] -> 12.7 | N53: =IF(ISERROR(VLOOKUP(Таблица1[№ детали],Детали!$B$2:$B$88,1,0)),"Новая позиция"," ") ->  | O53: =Таблица1[[#This Row],[Кол-во марок]]*Таблица1[[#This Row],[Вес марки]] -> 0
A54: 38а102 | B54: 38-1016 | C54: 2 | D54: 16 | E54: 145 | F54: 356 | G54: 6.5 | H54: =Таблица1[[#This Row],[Вес ед.]]*Таблица1[[#This Row],[Кол-во деталей в марке]] -> 13 | J54: с255 | K54: 1 | L54: 2 | M54: =Таблица1[Кол-во деталей всего]*Таблица1[Вес ед.] -> 13 | N54: =IF(ISERROR(VLOOKUP(Таблица1[№ детали],Детали!$B$2:$B$88,1,0)),"Новая позиция"," ") ->  | O54: =Таблица1[[#This Row],[Кол-во марок]]*Таблица1[[#This Row],[Вес марки]] -> 0
A55: 38а102 | B55: 38-1018 | C55: 1 | D55: 16 | E55: 400 | F55: 613 | G55: 30.8 | H55: =Таблица1[[#This Row],[Вес ед.]]*Таблица1[[#This Row],[Кол-во деталей в марке]] -> 30.8 | J55: с255 | K55: 1 | L55: 1 | M55: =Таблица1[Кол-во деталей всего]*Таблица1[Вес ед.] -> 30.8 | N55: =IF(ISERROR(VLOOKUP(Таблица1[№ детали],Детали!$B$2:$B$88,1,0)),"Новая позиция"," ") ->  | O55: =Таблица1[[#This Row],[Кол-во марок]]*Таблица1[[#This Row],[Вес марки]] -> 0
A56: 38а102 | B56: 38-1019 | C56: 1 | D56: 16 | E56: 270 | F56: 300 | G56: 10.2 | H56: =Таблица1[[#This Row],[Вес ед.]]*Таблица1[[#This Row],[Кол-во деталей в марке]] -> 10.2 | J56: с255 | K56: 1 | L56: 1 | M56: =Таблица1[Кол-во деталей всего]*Таблица1[Вес ед.] -> 10.2 | N56: =IF(ISERROR(VLOOKUP(Таблица1[№ детали],Детали!$B$2:$B$88,1,0)),"Новая позиция"," ") ->  | O56: =Таблица1[[#This Row],[Кол-во марок]]*Таблица1[[#This Row],[Вес марки]] -> 0
A57: 38а102 | B57: 38-1020 | C57: 5 | D57: 16 | E57: 240 | F57: 300 | G57: 9 | H57: =Таблица1[[#This Row],[Вес ед.]]*Таблица1[[#This Row],[Кол-во деталей в марке]] -> 45 | J57: с255 | K57: 1 | L57: 5 | M57: =Таблица1[Кол-во деталей всего]*Таблица1[Вес ед.] -> 45 | N57: =IF(ISERROR(VLOOKUP(Таблица1[№ детали],Детали!$B$2:$B$88,1,0)),"Новая позиция"," ") ->  | O57: =Таблица1[[#This Row],[Кол-во марок]]*Таблица1[[#This Row],[Вес марки]] -> 0
A58: 38а102 | B58: 38-1021 | C58: 3 | D58: 16 | E58: 145 | F58: 356 | G58: 6.5 | H58: =Таблица1[[#This Row],[Вес ед.]]*Таблица1[[#This Row],[Кол-во деталей в марке]] -> 19.5 | J58: с255 | K58: 1 | L58: 3 | M58: =Таблица1[Кол-во деталей всего]*Таблица1[Вес ед.] -> 19.5 | N58: =IF(ISERROR(VLOOKUP(Таблица1[№ детали],Детали!$B$2:$B$88,1,0)),"Новая позиция"," ") ->  | O58: =Таблица1[[#This Row],[Кол-во марок]]*Таблица1[[#This Row],[Вес марки]] -> 0
A59: 38а102 | B59: 38-1022 | C59: 1 | D59: 16 | E59: 285 | F59: 356 | G59: 12.7 | H59: =Таблица1[[#This Row],[Вес ед.]]*Таблица1[[#This Row],[Кол-во деталей в марке]] -> 12.7 | J59: с255 | K59: 1 | L59: 1 | M59: =Таблица1[Кол-во деталей всего]*Таблица1[Вес ед.] -> 12.7 | N59: =IF(ISERROR(VLOOKUP(Таблица1[№ детали],Детали!$B$2:$B$88,1,0)),"Новая позиция"," ") ->  | O59: =Таблица1[[#This Row],[Кол-во марок]]*Таблица1[[#This Row],[Вес марки]] -> 0
A60: 38а102 | B60: 38-1023 | C60: 5 | D60: 16 | E60: 145 | F60: 356 | G60: 6.5 | H60: =Таблица1[[#This Row],[Вес ед.]]*Таблица1[[#This Row],[Кол-во деталей в марке]] -> 32.5 | J60: с255 | K60: 1 | L60: 5 | M60: =Таблица1[Кол-во деталей всего]*Таблица1[Вес ед.] -> 32.5 | N60: =IF(ISERROR(VLOOKUP(Таблица1[№ детали],Детали!$B$2:$B$88,1,0)),"Новая позиция"," ") ->  | O60: =Таблица1[[#This Row],[Кол-во марок]]*Таблица1[[#This Row],[Вес марки]] -> 0
A61: 38а102 | B61: 38-1024 | C61: 6 | D61: 16 | E61: 145 | F61: 356 | G61: 6.5 | H61: =Таблица1[[#This Row],[Вес ед.]]*Таблица1[[#This Row],[Кол-во деталей в марке]] -> 39 | J61: с255 | K61: 1 | L61: 6 | M61: =Таблица1[Кол-во деталей всего]*Таблица1[Вес ед.] -> 39 | N61: =IF(ISERROR(VLOOKUP(Таблица1[№ детали],Детали!$B$2:$B$88,1,0)),"Новая позиция"," ") ->  | O61: =Таблица1[[#This Row],[Кол-во марок]]*Таблица1[[#This Row],[Вес марки]] -> 0
A62: 38а102 | B62: 38-1025 | C62: 2 | D62: 10 | E62: 345 | F62: 540 | G62: 14.6 | H62: =Таблица1[[#This Row],[Вес ед.]]*Таблица1[[#This Row],[Кол-во деталей в марке]] -> 29.2 | J62: с255 | K62: 1 | L62: 2 | M62: =Таблица1[Кол-во деталей всего]*Таблица1[Вес ед.] -> 29.2 | N62: =IF(ISERROR(VLOOKUP(Таблица1[№ детали],Детали!$B$2:$B$88,1,0)),"Новая позиция"," ") ->  | O62: =Таблица1[[#This Row],[Кол-во марок]]*Таблица1[[#This Row],[Вес марки]] -> 0
A63: 38а102 | B63: 38-1026 | C63: 1 | D63: 10 | E63: 345 | F63: 540 | G63: 14.6 | H63: =Таблица1[[#This Row],[Вес ед.]]*Таблица1[[#This Row],[Кол-во деталей в марке]] -> 14.6 | J63: с255 | K63: 1 | L63: 1 | M63: =Таблица1[Кол-во деталей всего]*Таблица1[Вес ед.] -> 14.6 | N63: =IF(ISERROR(VLOOKUP(Таблица1[№ детали],Детали!$B$2:$B$88,1,0)),"Новая позиция"," ") ->  | O63: =Таблица1[[#This Row],[Кол-во марок]]*Таблица1[[#This Row],[Вес марки]] -> 0
A64: 38а102 | B64: 38-1027 | C64: 1 | D64: 10 | E64: 322 | F64: 345 | G64: 8.7 | H64: =Таблица1[[#This Row],[Вес ед.]]*Таблица1[[#This Row],[Кол-во деталей в марке]] -> 8.7 | J64: с255 | K64: 1 | L64: 1 | M64: =Таблица1[Кол-во деталей всего]*Таблица1[Вес ед.] -> 8.7 | N64: =IF(ISERROR(VLOOKUP(Таблица1[№ детали],Детали!$B$2:$B$88,1,0)),"Новая позиция"," ") ->  | O64: =Таблица1[[#This Row],[Кол-во марок]]*Таблица1[[#This Row],[Вес марки]] -> 0
A65: 38а102 | B65: 38-1032 | C65: 1 | D65: 10 | E65: 285 | F65: 488 | G65: 10.9 | H65: =Таблица1[[#This Row],[Вес ед.]]*Таблица1[[#This Row],[Кол-во деталей в марке]] -> 10.9 | J65: с255 | K65: 1 | L65: 1 | M65: =Таблица1[Кол-во деталей всего]*Таблица1[Вес ед.] -> 10.9 | N65: =IF(ISERROR(VLOOKUP(Таблица1[№ детали],Детали!$B$2:$B$88,1,0)),"Новая позиция"," ") ->  | O65: =Таблица1[[#This Row],[Кол-во марок]]*Таблица1[[#This Row],[Вес марки]] -> 0
A66: 38а102 | B66: 38-1033 | C66: 1 | D66: 10 | E66: 145 | F66: 489 | G66: 5.6 | H66: =Таблица1[[#This Row],[Вес ед.]]*Таблица1[[#This Row],[Кол-во деталей в марке]] -> 5.6 | J66: с255 | K66: 1 | L66: 1 | M66: =Таблица1[Кол-во деталей всего]*Таблица1[Вес ед.] -> 5.6 | N66: =IF(ISERROR(VLOOKUP(Таблица1[№ детали],Детали!$B$2:$B$88,1,0)),"Новая позиция"," ") ->  | O66: =Таблица1[[#This Row],[Кол-во марок]]*Таблица1[[#This Row],[Вес марки]] -> 0
A67: 38а102 | B67: 38-1034 | C67: 4 | D67: 10 | E67: 145 | F67: 324 | G67: 3.7 | H67: =Таблица1[[#This Row],[Вес ед.]]*Таблица1[[#This Row],[Кол-во деталей в марке]] -> 14.8 | J67: с255 | K67: 1 | L67: 4 | M67: =Таблица1[Кол-во деталей всего]*Таблица1[Вес ед.] -> 14.8 | N67: =IF(ISERROR(VLOOKUP(Таблица1[№ детали],Детали!$B$2:$B$88,1,0)),"Новая позиция"," ") ->  | O67: =Таблица1[[#This Row],[Кол-во марок]]*Таблица1[[#This Row],[Вес марки]] -> 0
A68: 38а102 | B68: 38-1037 | C68: 2 | D68: 16 | E68: 285 | F68: 356 | G68: 12.7 | H68: =Таблица1[[#This Row],[Вес ед.]]*Таблица1[[#This Row],[Кол-во деталей в марке]] -> 25.4 | J68: с255 | K68: 1 | L68: 2 | M68: =Таблица1[Кол-во деталей всего]*Таблица1[Вес ед.] -> 25.4 | N68: =IF(ISERROR(VLOOKUP(Таблица1[№ детали],Детали!$B$2:$B$88,1,0)),"Новая позиция"," ") ->  | O68: =Таблица1[[#This Row],[Кол-во марок]]*Таблица1[[#This Row],[Вес марки]] -> 0
A69: 38а102 | B69: 38-1039 | C69: 6 | D69: 10 | E69: 140 | F69: 270 | G69: 3 | H69: =Таблица1[[#This Row],[Вес ед.]]*Таблица1[[#This Row],[Кол-во деталей в марке]] -> 18 | J69: с255 | K69: 1 | L69: 6 | M69: =Таблица1[Кол-во деталей всего]*Таблица1[Вес ед.] -> 18 | N69: =IF(ISERROR(VLOOKUP(Таблица1[№ детали],Детали!$B$2:$B$88,1,0)),"Новая позиция"," ") ->  | O69: =Таблица1[[#This Row],[Кол-во марок]]*Таблица1[[#This Row],[Вес марки]] -> 0
A70: 38а102 | B70: 38-1043 | C70: 1 | D70: 10 | E70: 304 | F70: 243 | G70: 5,8 | H70: =Таблица1[[#This Row],[Вес ед.]]*Таблица1[[#This Row],[Кол-во деталей в марке]] -> 5.8 | J70: с255 | K70: 1 | L70: 1 | M70: =Таблица1[Кол-во деталей всего]*Таблица1[Вес ед.] -> 5.8 | N70: =IF(ISERROR(VLOOKUP(Таблица1[№ детали],Детали!$B$2:$B$88,1,0)),"Новая позиция"," ") ->  | O70: =Таблица1[[#This Row],[Кол-во марок]]*Таблица1[[#This Row],[Вес марки]] -> 0
A71: 38а102 | B71: 38-1044 | C71: 1 | D71: 10 | E71: 425 | F71: 350 | G71: 11.7 | H71: =Таблица1[[#This Row],[Вес ед.]]*Таблица1[[#This Row],[Кол-во деталей в марке]] -> 11.7 | J71: с255 | K71: 1 | L71: 1 | M71: =Таблица1[Кол-во деталей всего]*Таблица1[Вес ед.] -> 11.7 | N71: =IF(ISERROR(VLOOKUP(Таблица1[№ детали],Детали!$B$2:$B$88,1,0)),"Новая позиция"," ") ->  | O71: =Таблица1[[#This Row],[Кол-во марок]]*Таблица1[[#This Row],[Вес марки]] -> 0
A72: 38а102 | B72: 38-1046 | C72: 3 | D72: 10 | E72: 234 | F72: 230 | G72: 4,2 | H72: =Таблица1[[#This Row],[Вес ед.]]*Таблица1[[#This Row],[Кол-во деталей в марке]] -> 12.6 | J72: с255 | K72: 1 | L72: 3 | M72: =Таблица1[Кол-во деталей всего]*Таблица1[Вес ед.] -> 12.6 | N72: =IF(ISERROR(VLOOKUP(Таблица1[№ детали],Детали!$B$2:$B$88,1,0)),"Новая позиция"," ") ->  | O72: =Таблица1[[#This Row],[Кол-во марок]]*Таблица1[[#This Row],[Вес марки]] -> 0
A73: 38а102 | B73: 38-1047 | C73: 1 | D73: 10 | E73: 199 | F73: 274 | G73: 4,3 | H73: =Таблица1[[#This Row],[Вес ед.]]*Таблица1[[#This Row],[Кол-во деталей в марке]] -> 4.3 | J73: с255 | K73: 1 | L73: 1 | M73: =Таблица1[Кол-во деталей всего]*Таблица1[Вес ед.] -> 4.3 | N73: =IF(ISERROR(VLOOKUP(Таблица1[№ детали],Детали!$B$2:$B$88,1,0)),"Новая позиция"," ") ->  | O73: =Таблица1[[#This Row],[Кол-во марок]]*Таблица1[[#This Row],[Вес марки]] -> 0
A74: 38а102 | B74: 38-1048 | C74: 2 | D74: 10 | E74: 120 | F74: 150 | G74: 1.4 | H74: =Таблица1[[#This Row],[Вес ед.]]*Таблица1[[#This Row],[Кол-во деталей в марке]] -> 2.8 | J74: с255 | K74: 1 | L74: 2 | M74: =Таблица1[Кол-во деталей всего]*Таблица1[Вес ед.] -> 2.8 | N74: =IF(ISERROR(VLOOKUP(Таблица1[№ детали],Детали!$B$2:$B$88,1,0)),"Новая позиция"," ") ->  | O74: =Таблица1[[#This Row],[Кол-во марок]]*Таблица1[[#This Row],[Вес марки]] -> 0
A75: 38а102 | B75: 38-1055 | C75: 3 | D75: 16 | E75: 145 | F75: 356 | G75: 6.5 | H75: =Таблица1[[#This Row],[Вес ед.]]*Таблица1[[#This Row],[Кол-во деталей в марке]] -> 19.5 | J75: с255 | K75: 1 | L75: 3 | M75: =Таблица1[Кол-во деталей всего]*Таблица1[Вес ед.] -> 19.5 | N75: =IF(ISERROR(VLOOKUP(Таблица1[№ детали],Детали!$B$2:$B$88,1,0)),"Новая позиция"," ") ->  | O75: =Таблица1[[#This Row],[Кол-во марок]]*Таблица1[[#This Row],[Вес марки]] -> 0
A76: 38а102 | B76: 38-1056 | C76: 3 | D76: 10 | E76: 145 | F76: 200 | G76: 2.3 | H76: =Таблица1[[#This Row],[Вес ед.]]*Таблица1[[#This Row],[Кол-во деталей в марке]] -> 6.9 | J76: с255 | K76: 1 | L76: =C76*K76 -> 3 | M76: =Таблица1[Кол-во деталей всего]*Таблица1[Вес ед.] -> 6.9 | N76: =IF(ISERROR(VLOOKUP(Таблица1[№ детали],Детали!$B$2:$B$88,1,0)),"Новая позиция"," ") ->  | O76: =Таблица1[[#This Row],[Кол-во марок]]*Таблица1[[#This Row],[Вес марки]] -> 0
A77: 38а102 | B77: 38-1142 | C77: 1 | D77: 10 | E77: 140 | F77: 200 | G77: 2.2 | H77: =Таблица1[[#This Row],[Вес ед.]]*Таблица1[[#This Row],[Кол-во деталей в марке]] -> 2.2 | J77: с255 | K77: 1 | L77: 1 | M77: =Таблица1[Кол-во деталей всего]*Таблица1[Вес ед.] -> 2.2 | N77: =IF(ISERROR(VLOOKUP(Таблица1[№ детали],Детали!$B$2:$B$88,1,0)),"Новая позиция"," ") ->  | O77: =Таблица1[[#This Row],[Кол-во марок]]*Таблица1[[#This Row],[Вес марки]] -> 0
A78: 38а103 | B78: 38-1000 | C78: 1 | D78: 40ш2 | F78: 13125 | G78: 1401 | H78: =Таблица1[[#This Row],[Вес ед.]]*Таблица1[[#This Row],[Кол-во деталей в марке]] -> 1401 | I78: 1925 | J78: с255 | K78: 1 | L78: 1 | M78: =Таблица1[Кол-во деталей всего]*Таблица1[Вес ед.] -> 1401 | N78: =IF(ISERROR(VLOOKUP(Таблица1[№ детали],Детали!$B$2:$B$88,1,0)),"Новая позиция"," ") ->  | O78: =Таблица1[[#This Row],[Кол-во марок]]*Таблица1[[#This Row],[Вес марки]] -> 1925
A79: 38а103 | B79: 38-1002 | C79: 6 | D79: 8 | E79: 10 | F79: 270 | G79: 0.2 | H79: =Таблица1[[#This Row],[Вес ед.]]*Таблица1[[#This Row],[Кол-во деталей в марке]] -> 1.2 | J79: с255 | K79: 1 | L79: 6 | M79: =Таблица1[Кол-во деталей всего]*Таблица1[Вес ед.] -> 1.2 | N79: =IF(ISERROR(VLOOKUP(Таблица1[№ детали],Детали!$B$2:$B$88,1,0)),"Новая позиция"," ") ->  | O79: =Таблица1[[#This Row],[Кол-во марок]]*Таблица1[[#This Row],[Вес марки]] -> 0
A80: 38а103 | B80: 38-1003 | C80: 1 | D80: 8 | E80: 100 | F80: 100 | G80: 0.6 | H80: =Таблица1[[#This Row],[Вес ед.]]*Таблица1[[#This Row],[Кол-во деталей в марке]] -> 0.6 | J80: с255 | K80: 1 | L80: 1 | M80: =Таблица1[Кол-во деталей всего]*Таблица1[Вес ед.] -> 0.6 | N80: =IF(ISERROR(VLOOKUP(Таблица1[№ детали],Детали!$B$2:$B$88,1,0)),"Новая позиция"," ") ->  | O80: =Таблица1[[#This Row],[Кол-во марок]]*Таблица1[[#This Row],[Вес марки]] -> 0
A81: 38а103 | B81: 38-1004 | C81: 1 | D81: 8 | E81: 145 | F81: 356 | G81: 3.2 | H81: =Таблица1[[#This Row],[Вес ед.]]*Таблица1[[#This Row],[Кол-во деталей в марке]] -> 3.2 | J81: с255 | K81: 1 | L81: 1 | M81: =Таблица1[Кол-во деталей всего]*Таблица1[Вес ед.] -> 3.2 | N81: =IF(ISERROR(VLOOKUP(Таблица1[№ детали],Детали!$B$2:$B$88,1,0)),"Новая позиция"," ") ->  | O81: =Таблица1[[#This Row],[Кол-во марок]]*Таблица1[[#This Row],[Вес марки]] -> 0
A82: 38а103 | B82: 38-1006 | C82: 1 | D82: 8 | E82: 145 | F82: 356 | G82: 3.2 | H82: =Таблица1[[#This Row],[Вес ед.]]*Таблица1[[#This Row],[Кол-во деталей в марке]] -> 3.2 | J82: с255 | K82: 1 | L82: 1 | M82: =Таблица1[Кол-во деталей всего]*Таблица1[Вес ед.] -> 3.2 | N82: =IF(ISERROR(VLOOKUP(Таблица1[№ детали],Детали!$B$2:$B$88,1,0)),"Новая позиция"," ") ->  | O82: =Таблица1[[#This Row],[Кол-во марок]]*Таблица1[[#This Row],[Вес марки]] -> 0
A83: 38а103 | B83: 38-1007 | C83: 1 | D83: 10 | E83: 165 | F83: 350 | G83: 4.5 | H83: =Таблица1[[#This Row],[Вес ед.]]*Таблица1[[#This Row],[Кол-во деталей в марке]] -> 4.5 | J83: с255 | K83: 1 | L83: 1 | M83: =Таблица1[Кол-во деталей всего]*Таблица1[Вес ед.] -> 4.5 | N83: =IF(ISERROR(VLOOKUP(Таблица1[№ детали],Детали!$B$2:$B$88,1,0)),"Новая позиция"," ") ->  | O83: =Таблица1[[#This Row],[Кол-во марок]]*Таблица1[[#This Row],[Вес марки]] -> 0
A84: 38а103 | B84: 38-1009 | C84: 1 | D84: 8 | E84: 120 | F84: 274 | G84: 2.1 | H84: =Таблица1[[#This Row],[Вес ед.]]*Таблица1[[#This Row],[Кол-во деталей в марке]] -> 2.1 | J84: с255 | K84: 1 | L84: 1 | M84: =Таблица1[Кол-во деталей всего]*Таблица1[Вес ед.] -> 2.1 | N84: =IF(ISERROR(VLOOKUP(Таблица1[№ детали],Детали!$B$2:$B$88,1,0)),"Новая позиция"," ") ->  | O84: =Таблица1[[#This Row],[Кол-во марок]]*Таблица1[[#This Row],[Вес марки]] -> 0
A85: 38а103 | B85: 38-1010 | C85: 1 | D85: 25 | E85: 340 | F85: 430 | G85: 28.7 | H85: =Таблица1[[#This Row],[Вес ед.]]*Таблица1[[#This Row],[Кол-во деталей в марке]] -> 28.7 | J85: с255 | K85: 1 | L85: =C85*K85 -> 1 | M85: =Таблица1[Кол-во деталей всего]*Таблица1[Вес ед.] -> 28.7 | N85: =IF(ISERROR(VLOOKUP(Таблица1[№ детали],Детали!$B$2:$B$88,1,0)),"Новая позиция"," ") ->  | O85: =Таблица1[[#This Row],[Кол-во марок]]*Таблица1[[#This Row],[Вес марки]] -> 0
A86: 38а103 | B86: 38-1013 | C86: 2 | D86: 16 | E86: 285 | F86: 356 | G86: 12.7 | H86: =Таблица1[[#This Row],[Вес ед.]]*Таблица1[[#This Row],[Кол-во деталей в марке]] -> 25.4 | J86: с255 | K86: 1 | L86: 2 | M86: =Таблица1[Кол-во деталей всего]*Таблица1[Вес ед.] -> 25.4 | N86: =IF(ISERROR(VLOOKUP(Таблица1[№ детали],Детали!$B$2:$B$88,1,0)),"Новая позиция"," ") ->  | O86: =Таблица1[[#This Row],[Кол-во марок]]*Таблица1[[#This Row],[Вес марки]] -> 0
A87: 38а103 | B87: 38-1014 | C87: 2 | D87: 16 | E87: 285 | F87: 356 | G87: 12.7 | H87: =Таблица1[[#This Row],[Вес ед.]]*Таблица1[[#This Row],[Кол-во деталей в марке]] -> 25.4 | J87: с255 | K87: 1 | L87: 2 | M87: =Таблица1[Кол-во деталей всего]*Таблица1[Вес ед.] -> 25.4 | N87: =IF(ISERROR(VLOOKUP(Таблица1[№ детали],Детали!$B$2:$B$88,1,0)),"Новая позиция"," ") ->  | O87: =Таблица1[[#This Row],[Кол-во марок]]*Таблица1[[#This Row],[Вес марки]] -> 0
A88: 38а103 | B88: 38-1015 | C88: 1 | D88: 16 | E88: 580 | F88: 613 | G88: 44.7 | H88: =Таблица1[[#This Row],[Вес ед.]]*Таблица1[[#This Row],[Кол-во деталей в марке]] -> 44.7 | J88: с255 | K88: 1 | L88: 1 | M88: =Таблица1[Кол-во деталей всего]*Таблица1[Вес ед.] -> 44.7 | N88: =IF(ISERROR(VLOOKUP(Таблица1[№ детали],Детали!$B$2:$B$88,1,0)),"Новая позиция"," ") ->  | O88: =Таблица1[[#This Row],[Кол-во марок]]*Таблица1[[#This Row],[Вес марки]] -> 0
A89: 38а103 | B89: 38-1016 | C89: 2 | D89: 16 | E89: 145 | F89: 356 | G89: 6.5 | H89: =Таблица1[[#This Row],[Вес ед.]]*Таблица1[[#This Row],[Кол-во деталей в марке]] -> 13 | J89: с255 | K89: 1 | L89: 2 | M89: =Таблица1[Кол-во деталей всего]*Таблица1[Вес ед.] -> 13 | N89: =IF(ISERROR(VLOOKUP(Таблица1[№ детали],Детали!$B$2:$B$88,1,0)),"Новая позиция"," ") ->  | O89: =Таблица1[[#This Row],[Кол-во марок]]*Таблица1[[#This Row],[Вес марки]] -> 0
A90: 38а103 | B90: 38-1019 | C90: 1 | D90: 16 | E90: 270 | F90: 300 | G90: 10.2 | H90: =Таблица1[[#This Row],[Вес ед.]]*Таблица1[[#This Row],[Кол-во деталей в марке]] -> 10.2 | J90: с255 | K90: 1 | L90: 1 | M90: =Таблица1[Кол-во деталей всего]*Таблица1[Вес ед.] -> 10.2 | N90: =IF(ISERROR(VLOOKUP(Таблица1[№ детали],Детали!$B$2:$B$88,1,0)),"Новая позиция"," ") ->  | O90: =Таблица1[[#This Row],[Кол-во марок]]*Таблица1[[#This Row],[Вес марки]] -> 0
A91: 38а103 | B91: 38-1020 | C91: 5 | D91: 16 | E91: 240 | F91: 300 | G91: 9 | H91: =Таблица1[[#This Row],[Вес ед.]]*Таблица1[[#This Row],[Кол-во деталей в марке]] -> 45 | J91: с255 | K91: 1 | L91: 5 | M91: =Таблица1[Кол-во деталей всего]*Таблица1[Вес ед.] -> 45 | N91: =IF(ISERROR(VLOOKUP(Таблица1[№ детали],Детали!$B$2:$B$88,1,0)),"Новая позиция"," ") ->  | O91: =Таблица1[[#This Row],[Кол-во марок]]*Таблица1[[#This Row],[Вес марки]] -> 0
A92: 38а103 | B92: 38-1021 | C92: 2 | D92: 16 | E92: 145 | F92: 356 | G92: 6.5 | H92: =Таблица1[[#This Row],[Вес ед.]]*Таблица1[[#This Row],[Кол-во деталей в марке]] -> 13 | J92: с255 | K92: 1 | L92: 2 | M92: =Таблица1[Кол-во деталей всего]*Таблица1[Вес ед.] -> 13 | N92: =IF(ISERROR(VLOOKUP(Таблица1[№ детали],Детали!$B$2:$B$88,1,0)),"Новая позиция"," ") ->  | O92: =Таблица1[[#This Row],[Кол-во марок]]*Таблица1[[#This Row],[Вес марки]] -> 0
A93: 38а103 | B93: 38-1022 | C93: 1 | D93: 16 | E93: 285 | F93: 356 | G93: 12.7 | H93: =Таблица1[[#This Row],[Вес ед.]]*Таблица1[[#This Row],[Кол-во деталей в марке]] -> 12.7 | J93: с255 | K93: 1 | L93: 1 | M93: =Таблица1[Кол-во деталей всего]*Таблица1[Вес ед.] -> 12.7 | N93: =IF(ISERROR(VLOOKUP(Таблица1[№ детали],Детали!$B$2:$B$88,1,0)),"Новая позиция"," ") ->  | O93: =Таблица1[[#This Row],[Кол-во марок]]*Таблица1[[#This Row],[Вес марки]] -> 0
A94: 38а103 | B94: 38-1023 | C94: 4 | D94: 16 | E94: 145 | F94: 356 | G94: 6.5 | H94: =Таблица1[[#This Row],[Вес ед.]]*Таблица1[[#This Row],[Кол-во деталей в марке]] -> 26 | J94: с255 | K94: 1 | L94: 4 | M94: =Таблица1[Кол-во деталей всего]*Таблица1[Вес ед.] -> 26 | N94: =IF(ISERROR(VLOOKUP(Таблица1[№ детали],Детали!$B$2:$B$88,1,0)),"Новая позиция"," ") ->  | O94: =Таблица1[[#This Row],[Кол-во марок]]*Таблица1[[#This Row],[Вес марки]] -> 0
A95: 38а103 | B95: 38-1024 | C95: 4 | D95: 16 | E95: 145 | F95: 356 | G95: 6.5 | H95: =Таблица1[[#This Row],[Вес ед.]]*Таблица1[[#This Row],[Кол-во деталей в марке]] -> 26 | J95: с255 | K95: 1 | L95: 4 | M95: =Таблица1[Кол-во деталей всего]*Таблица1[Вес ед.] -> 26 | N95: =IF(ISERROR(VLOOKUP(Таблица1[№ детали],Детали!$B$2:$B$88,1,0)),"Новая позиция"," ") ->  | O95: =Таблица1[[#This Row],[Кол-во марок]]*Таблица1[[#This Row],[Вес марки]] -> 0
A96: 38а103 | B96: 38-1025 | C96: 3 | D96: 10 | E96: 345 | F96: 540 | G96: 14.6 | H96: =Таблица1[[#This Row],[Вес ед.]]*Таблица1[[#This Row],[Кол-во деталей в марке]] -> 43.8 | J96: с255 | K96: 1 | L96: 3 | M96: =Таблица1[Кол-во деталей всего]*Таблица1[Вес ед.] -> 43.8 | N96: =IF(ISERROR(VLOOKUP(Таблица1[№ детали],Детали!$B$2:$B$88,1,0)),"Новая позиция"," ") ->  | O96: =Таблица1[[#This Row],[Кол-во марок]]*Таблица1[[#This Row],[Вес марки]] -> 0
A97: 38а103 | B97: 38-1026 | C97: 3 | D97: 10 | E97: 345 | F97: 540 | G97: 14.6 | H97: =Таблица1[[#This Row],[Вес ед.]]*Таблица1[[#This Row],[Кол-во деталей в марке]] -> 43.8 | J97: с255 | K97: 1 | L97: 3 | M97: =Таблица1[Кол-во деталей всего]*Таблица1[Вес ед.] -> 43.8 | N97: =IF(ISERROR(VLOOKUP(Таблица1[№ детали],Детали!$B$2:$B$88,1,0)),"Новая позиция"," ") ->  | O97: =Таблица1[[#This Row],[Кол-во марок]]*Таблица1[[#This Row],[Вес марки]] -> 0
A98: 38а103 | B98: 38-1027 | C98: 1 | D98: 10 | E98: 322 | F98: 345 | G98: 8.7 | H98: =Таблица1[[#This Row],[Вес ед.]]*Таблица1[[#This Row],[Кол-во деталей в марке]] -> 8.7 | J98: с255 | K98: 1 | L98: 1 | M98: =Таблица1[Кол-во деталей всего]*Таблица1[Вес ед.] -> 8.7 | N98: =IF(ISERROR(VLOOKUP(Таблица1[№ детали],Детали!$B$2:$B$88,1,0)),"Новая позиция"," ") ->  | O98: =Таблица1[[#This Row],[Кол-во марок]]*Таблица1[[#This Row],[Вес марки]] -> 0
A99: 38а103 | B99: 38-1028 | C99: 1 | D99: 10 | E99: 322 | F99: 345 | G99: 8.7 | H99: =Таблица1[[#This Row],[Вес ед.]]*Таблица1[[#This Row],[Кол-во деталей в марке]] -> 8.7 | J99: с255 | K99: 1 | L99: 1 | M99: =Таблица1[Кол-во деталей всего]*Таблица1[Вес ед.] -> 8.7 | N99: =IF(ISERROR(VLOOKUP(Таблица1[№ детали],Детали!$B$2:$B$88,1,0)),"Новая позиция"," ") ->  | O99: =Таблица1[[#This Row],[Кол-во марок]]*Таблица1[[#This Row],[Вес марки]] -> 0
A100: 38а103 | B100: 38-1031 | C100: 1 | D100: 10 | E100: 285 | F100: 488 | G100: 10.9 | H100: =Таблица1[[#This Row],[Вес ед.]]*Таблица1[[#This Row],[Кол-во деталей в марке]] -> 10.9 | J100: с255 | K100: 1 | L100: 1 | M100: =Таблица1[Кол-во деталей всего]*Таблица1[Вес ед.] -> 10.9 | N100: =IF(ISERROR(VLOOKUP(Таблица1[№ детали],Детали!$B$2:$B$88,1,0)),"Новая позиция"," ") ->  | O100: =Таблица1[[#This Row],[Кол-во марок]]*Таблица1[[#This Row],[Вес марки]] -> 0
A101: 38а103 | B101: 38-1032 | C101: 1 | D101: 10 | E101: 285 | F101: 488 | G101: 10.9 | H101: =Таблица1[[#This Row],[Вес ед.]]*Таблица1[[#This Row],[Кол-во деталей в марке]] -> 10.9 | J101: с255 | K101: 1 | L101: 1 | M101: =Таблица1[Кол-во деталей всего]*Таблица1[Вес ед.] -> 10.9 | N101: =IF(ISERROR(VLOOKUP(Таблица1[№ детали],Детали!$B$2:$B$88,1,0)),"Новая позиция"," ") ->  | O101: =Таблица1[[#This Row],[Кол-во марок]]*Таблица1[[#This Row],[Вес марки]] -> 0
A102: 38а103 | B102: 38-1037 | C102: 2 | D102: 16 | E102: 285 | F102: 356 | G102: 12.7 | H102: =Таблица1[[#This Row],[Вес ед.]]*Таблица1[[#This Row],[Кол-во деталей в марке]] -> 25.4 | J102: с255 | K102: 1 | L102: 2 | M102: =Таблица1[Кол-во деталей всего]*Таблица1[Вес ед.] -> 25.4 | N102: =IF(ISERROR(VLOOKUP(Таблица1[№ детали],Детали!$B$2:$B$88,1,0)),"Новая позиция"," ") ->  | O102: =Таблица1[[#This Row],[Кол-во марок]]*Таблица1[[#This Row],[Вес марки]] -> 0
A103: 38а103 | B103: 38-1039 | C103: 6 | D103: 10 | E103: 140 | F103: 270 | G103: 3 | H103: =Таблица1[[#This Row],[Вес ед.]]*Таблица1[[#This Row],[Кол-во деталей в марке]] -> 18 | J103: с255 | K103: 1 | L103: 6 | M103: =Таблица1[Кол-во деталей всего]*Таблица1[Вес ед.] -> 18 | N103: =IF(ISERROR(VLOOKUP(Таблица1[№ детали],Детали!$B$2:$B$88,1,0)),"Новая позиция"," ") ->  | O103: =Таблица1[[#This Row],[Кол-во марок]]*Таблица1[[#This Row],[Вес марки]] -> 0
A104: 38а103 | B104: 38-1042 | C104: 1 | D104: 16 | E104: 285 | F104: 356 | G104: 12.7 | H104: =Таблица1[[#This Row],[Вес ед.]]*Таблица1[[#This Row],[Кол-во деталей в марке]] -> 12.7 | J104: с255 | K104: 1 | L104: 1 | M104: =Таблица1[Кол-во деталей всего]*Таблица1[Вес ед.] -> 12.7 | N104: =IF(ISERROR(VLOOKUP(Таблица1[№ детали],Детали!$B$2:$B$88,1,0)),"Новая позиция"," ") ->  | O104: =Таблица1[[#This Row],[Кол-во марок]]*Таблица1[[#This Row],[Вес марки]] -> 0
A105: 38а103 | B105: 38-1043 | C105: 1 | D105: 10 | E105: 304 | F105: 243 | G105: 5.8 | H105: =Таблица1[[#This Row],[Вес ед.]]*Таблица1[[#This Row],[Кол-во деталей в марке]] -> 5.8 | J105: с255 | K105: 1 | L105: 1 | M105: =Таблица1[Кол-во деталей всего]*Таблица1[Вес ед.] -> 5.8 | N105: =IF(ISERROR(VLOOKUP(Таблица1[№ детали],Детали!$B$2:$B$88,1,0)),"Новая позиция"," ") ->  | O105: =Таблица1[[#This Row],[Кол-во марок]]*Таблица1[[#This Row],[Вес марки]] -> 0
A106: 38а103 | B106: 38-1044 | C106: 1 | D106: 10 | E106: 425 | F106: 350 | G106: 11,7 | H106: =Таблица1[[#This Row],[Вес ед.]]*Таблица1[[#This Row],[Кол-во деталей в марке]] -> 11.7 | J106: с255 | K106: 1 | L106: 1 | M106: =Таблица1[Кол-во деталей всего]*Таблица1[Вес ед.] -> 11.7 | N106: =IF(ISERROR(VLOOKUP(Таблица1[№ детали],Детали!$B$2:$B$88,1,0)),"Новая позиция"," ") ->  | O106: =Таблица1[[#This Row],[Кол-во марок]]*Таблица1[[#This Row],[Вес марки]] -> 0
A107: 38а103 | B107: 38-1046 | C107: 3 | D107: 10 | E107: 234 | F107: 230 | G107: 4.2 | H107: =Таблица1[[#This Row],[Вес ед.]]*Таблица1[[#This Row],[Кол-во деталей в марке]] -> 12.6 | J107: с255 | K107: 1 | L107: 3 | M107: =Таблица1[Кол-во деталей всего]*Таблица1[Вес ед.] -> 12.6 | N107: =IF(ISERROR(VLOOKUP(Таблица1[№ детали],Детали!$B$2:$B$88,1,0)),"Новая позиция"," ") ->  | O107: =Таблица1[[#This Row],[Кол-во марок]]*Таблица1[[#This Row],[Вес марки]] -> 0
A108: 38а103 | B108: 38-1047 | C108: 1 | D108: 10 | E108: 199 | F108: 274 | G108: 4.3 | H108: =Таблица1[[#This Row],[Вес ед.]]*Таблица1[[#This Row],[Кол-во деталей в марке]] -> 4.3 | J108: с255 | K108: 1 | L108: 1 | M108: =Таблица1[Кол-во деталей всего]*Таблица1[Вес ед.] -> 4.3 | N108: =IF(ISERROR(VLOOKUP(Таблица1[№ детали],Детали!$B$2:$B$88,1,0)),"Новая позиция"," ") ->  | O108: =Таблица1[[#This Row],[Кол-во марок]]*Таблица1[[#This Row],[Вес марки]] -> 0
A109: 38а103 | B109: 38-1048 | C109: 2 | D109: 10 | E109: 120 | F109: 150 | G109: 1.4 | H109: =Таблица1[[#This Row],[Вес ед.]]*Таблица1[[#This Row],[Кол-во деталей в марке]] -> 2.8 | J109: с255 | K109: 1 | L109: 2 | M109: =Таблица1[Кол-во деталей всего]*Таблица1[Вес ед.] -> 2.8 | N109: =IF(ISERROR(VLOOKUP(Таблица1[№ детали],Детали!$B$2:$B$88,1,0)),"Новая позиция"," ") ->  | O109: =Таблица1[[#This Row],[Кол-во марок]]*Таблица1[[#This Row],[Вес марки]] -> 0
A110: 38а104 | B110: 38-1000 | C110: 1 | D110: 40ш2 | F110: 13125 | G110: 1401 | H110: =Таблица1[[#This Row],[Вес ед.]]*Таблица1[[#This Row],[Кол-во деталей в марке]] -> 1401 | I110: 1831 | J110: с255 | K110: 1 | L110: 1 | M110: =Таблица1[Кол-во деталей всего]*Таблица1[Вес ед.] -> 1401 | N110: =IF(ISERROR(VLOOKUP(Таблица1[№ детали],Детали!$B$2:$B$88,1,0)),"Новая позиция"," ") ->  | O110: =Таблица1[[#This Row],[Кол-во марок]]*Таблица1[[#This Row],[Вес марки]] -> 1831
A111: 38а104 | B111: 38-1002 | C111: 4 | D111: 8 | E111: 10 | F111: 270 | G111: 0.2 | H111: =Таблица1[[#This Row],[Вес ед.]]*Таблица1[[#This Row],[Кол-во деталей в марке]] -> 0.8 | J111: с255 | K111: 1 | L111: 4 | M111: =Таблица1[Кол-во деталей всего]*Таблица1[Вес ед.] -> 0.8 | N111: =IF(ISERROR(VLOOKUP(Таблица1[№ детали],Детали!$B$2:$B$88,1,0)),"Новая позиция"," ") ->  | O111: =Таблица1[[#This Row],[Кол-во марок]]*Таблица1[[#This Row],[Вес марки]] -> 0
A112: 38а104 | B112: 38-1003 | C112: 1 | D112: 8 | E112: 100 | F112: 100 | G112: 0.6 | H112: =Таблица1[[#This Row],[Вес ед.]]*Таблица1[[#This Row],[Кол-во деталей в марке]] -> 0.6 | J112: с255 | K112: 1 | L112: 1 | M112: =Таблица1[Кол-во деталей всего]*Таблица1[Вес ед.] -> 0.6 | N112: =IF(ISERROR(VLOOKUP(Таблица1[№ детали],Детали!$B$2:$B$88,1,0)),"Новая позиция"," ") ->  | O112: =Таблица1[[#This Row],[Кол-во марок]]*Таблица1[[#This Row],[Вес марки]] -> 0
A113: 38а104 | B113: 38-1005 | C113: 1 | D113: 10 | E113: 165 | F113: 390 | G113: 5.1 | H113: =Таблица1[[#This Row],[Вес ед.]]*Таблица1[[#This Row],[Кол-во деталей в марке]] -> 5.1 | J113: с255 | K113: 1 | L113: 1 | M113: =Таблица1[Кол-во деталей всего]*Таблица1[Вес ед.] -> 5.1 | N113: =IF(ISERROR(VLOOKUP(Таблица1[№ детали],Детали!$B$2:$B$88,1,0)),"Новая позиция"," ") ->  | O113: =Таблица1[[#This Row],[Кол-во марок]]*Таблица1[[#This Row],[Вес марки]] -> 0
A114: 38а104 | B114: 38-1006 | C114: 1 | D114: 8 | E114: 145 | F114: 356 | G114: 3.2 | H114: =Таблица1[[#This Row],[Вес ед.]]*Таблица1[[#This Row],[Кол-во деталей в марке]] -> 3.2 | J114: с255 | K114: 1 | L114: 1 | M114: =Таблица1[Кол-во деталей всего]*Таблица1[Вес ед.] -> 3.2 | N114: =IF(ISERROR(VLOOKUP(Таблица1[№ детали],Детали!$B$2:$B$88,1,0)),"Новая позиция"," ") ->  | O114: =Таблица1[[#This Row],[Кол-во марок]]*Таблица1[[#This Row],[Вес марки]] -> 0
A115: 38а104 | B115: 38-1009 | C115: 1 | D115: 8 | E115: 120 | F115: 274 | G115: 2.1 | H115: =Таблица1[[#This Row],[Вес ед.]]*Таблица1[[#This Row],[Кол-во деталей в марке]] -> 2.1 | J115: с255 | K115: 1 | L115: 1 | M115: =Таблица1[Кол-во деталей всего]*Таблица1[Вес ед.] -> 2.1 | N115: =IF(ISERROR(VLOOKUP(Таблица1[№ детали],Детали!$B$2:$B$88,1,0)),"Новая позиция"," ") ->  | O115: =Таблица1[[#This Row],[Кол-во марок]]*Таблица1[[#This Row],[Вес марки]] -> 0
A116: 38а104 | B116: 38-1010 | C116: 1 | D116: 25 | E116: 340 | F116: 430 | G116: 28,7 | H116: =Таблица1[[#This Row],[Вес ед.]]*Таблица1[[#This Row],[Кол-во деталей в марке]] -> 28.7 | J116: с255 | K116: 1 | L116: 1 | M116: =Таблица1[Кол-во деталей всего]*Таблица1[Вес ед.] -> 28.7 | N116: =IF(ISERROR(VLOOKUP(Таблица1[№ детали],Детали!$B$2:$B$88,1,0)),"Новая позиция"," ") ->  | O116: =Таблица1[[#This Row],[Кол-во марок]]*Таблица1[[#This Row],[Вес марки]] -> 0
A117: 38а104 | B117: 38-1013 | C117: 3 | D117: 16 | E117: 285 | F117: 356 | G117: 12.7 | H117: =Таблица1[[#This Row],[Вес ед.]]*Таблица1[[#This Row],[Кол-во деталей в марке]] -> 38.1 | J117: с255 | K117: 1 | L117: =C117*K117 -> 3 | M117: =Таблица1[Кол-во деталей всего]*Таблица1[Вес ед.] -> 38.1 | N117: =IF(ISERROR(VLOOKUP(Таблица1[№ детали],Детали!$B$2:$B$88,1,0)),"Новая позиция"," ") ->  | O117: =Таблица1[[#This Row],[Кол-во марок]]*Таблица1[[#This Row],[Вес марки]] -> 0
A118: 38а104 | B118: 38-1015 | C118: 1 | D118: 16 | E118: 580 | F118: 613 | G118: 44.7 | H118: =Таблица1[[#This Row],[Вес ед.]]*Таблица1[[#This Row],[Кол-во деталей в марке]] -> 44.7 | J118: с255 | K118: 1 | L118: 1 | M118: =Таблица1[Кол-во деталей всего]*Таблица1[Вес ед.] -> 44.7 | N118: =IF(ISERROR(VLOOKUP(Таблица1[№ детали],Детали!$B$2:$B$88,1,0)),"Новая позиция"," ") ->  | O118: =Таблица1[[#This Row],[Кол-во марок]]*Таблица1[[#This Row],[Вес марки]] -> 0
A119: 38а104 | B119: 38-1016 | C119: 2 | D119: 16 | E119: 145 | F119: 356 | G119: 6.5 | H119: =Таблица1[[#This Row],[Вес ед.]]*Таблица1[[#This Row],[Кол-во деталей в марке]] -> 13 | J119: с255 | K119: 1 | L119: 2 | M119: =Таблица1[Кол-во деталей всего]*Таблица1[Вес ед.] -> 13 | N119: =IF(ISERROR(VLOOKUP(Таблица1[№ детали],Детали!$B$2:$B$88,1,0)),"Новая позиция"," ") ->  | O119: =Таблица1[[#This Row],[Кол-во марок]]*Таблица1[[#This Row],[Вес марки]] -> 0
A120: 38а104 | B120: 38-1019 | C120: 1 | D120: 16 | E120: 270 | F120: 300 | G120: 10.2 | H120: =Таблица1[[#This Row],[Вес ед.]]*Таблица1[[#This Row],[Кол-во деталей в марке]] -> 10.2 | J120: с255 | K120: 1 | L120: 1 | M120: =Таблица1[Кол-во деталей всего]*Таблица1[Вес ед.] -> 10.2 | N120: =IF(ISERROR(VLOOKUP(Таблица1[№ детали],Детали!$B$2:$B$88,1,0)),"Новая позиция"," ") ->  | O120: =Таблица1[[#This Row],[Кол-во марок]]*Таблица1[[#This Row],[Вес марки]] -> 0
A121: 38а104 | B121: 38-1020 | C121: 3 | D121: 16 | E121: 240 | F121: 300 | G121: 9 | H121: =Таблица1[[#This Row],[Вес ед.]]*Таблица1[[#This Row],[Кол-во деталей в марке]] -> 27 | J121: с255 | K121: 1 | L121: 3 | M121: =Таблица1[Кол-во деталей всего]*Таблица1[Вес ед.] -> 27 | N121: =IF(ISERROR(VLOOKUP(Таблица1[№ детали],Детали!$B$2:$B$88,1,0)),"Новая позиция"," ") ->  | O121: =Таблица1[[#This Row],[Кол-во марок]]*Таблица1[[#This Row],[Вес марки]] -> 0
A122: 38а104 | B122: 38-1023 | C122: 4 | D122: 16 | E122: 145 | F122: 356 | G122: 6.5 | H122: =Таблица1[[#This Row],[Вес ед.]]*Таблица1[[#This Row],[Кол-во деталей в марке]] -> 26 | J122: с255 | K122: 1 | L122: 4 | M122: =Таблица1[Кол-во деталей всего]*Таблица1[Вес ед.] -> 26 | N122: =IF(ISERROR(VLOOKUP(Таблица1[№ детали],Детали!$B$2:$B$88,1,0)),"Новая позиция"," ") ->  | O122: =Таблица1[[#This Row],[Кол-во марок]]*Таблица1[[#This Row],[Вес марки]] -> 0
A123: 38а104 | B123: 38-1024 | C123: 4 | D123: 16 | E123: 145 | F123: 356 | G123: 6.5 | H123: =Таблица1[[#This Row],[Вес ед.]]*Таблица1[[#This Row],[Кол-во деталей в марке]] -> 26 | J123: с255 | K123: 1 | L123: 4 | M123: =Таблица1[Кол-во деталей всего]*Таблица1[Вес ед.] -> 26 | N123: =IF(ISERROR(VLOOKUP(Таблица1[№ детали],Детали!$B$2:$B$88,1,0)),"Новая позиция"," ") ->  | O123: =Таблица1[[#This Row],[Кол-во марок]]*Таблица1[[#This Row],[Вес марки]] -> 0
A124: 38а104 | B124: 38-1025 | C124: 3 | D124: 10 | E124: 345 | F124: 540 | G124: 14.6 | H124: =Таблица1[[#This Row],[Вес ед.]]*Таблица1[[#This Row],[Кол-во деталей в марке]] -> 43.8 | J124: с255 | K124: 1 | L124: 3 | M124: =Таблица1[Кол-во деталей всего]*Таблица1[Вес ед.] -> 43.8 | N124: =IF(ISERROR(VLOOKUP(Таблица1[№ детали],Детали!$B$2:$B$88,1,0)),"Новая позиция"," ") ->  | O124: =Таблица1[[#This Row],[Кол-во марок]]*Таблица1[[#This Row],[Вес марки]] -> 0
A125: 38а104 | B125: 38-1026 | C125: 3 | D125: 10 | E125: 345 | F125: 540 | G125: 14.6 | H125: =Таблица1[[#This Row],[Вес ед.]]*Таблица1[[#This Row],[Кол-во деталей в марке]] -> 43.8 | J125: с255 | K125: 1 | L125: 3 | M125: =Таблица1[Кол-во деталей всего]*Таблица1[Вес ед.] -> 43.8 | N125: =IF(ISERROR(VLOOKUP(Таблица1[№ детали],Детали!$B$2:$B$88,1,0)),"Новая позиция"," ") ->  | O125: =Таблица1[[#This Row],[Кол-во марок]]*Таблица1[[#This Row],[Вес марки]] -> 0
A126: 38а104 | B126: 38-1027 | C126: 1 | D126: 10 | E126: 322 | F126: 345 | G126: 8.7 | H126: =Таблица1[[#This Row],[Вес ед.]]*Таблица1[[#This Row],[Кол-во деталей в марке]] -> 8.7 | J126: с255 | K126: 1 | L126: 1 | M126: =Таблица1[Кол-во деталей всего]*Таблица1[Вес ед.] -> 8.7 | N126: =IF(ISERROR(VLOOKUP(Таблица1[№ детали],Детали!$B$2:$B$88,1,0)),"Новая позиция"," ") ->  | O126: =Таблица1[[#This Row],[Кол-во марок]]*Таблица1[[#This Row],[Вес марки]] -> 0
A127: 38а104 | B127: 38-1028 | C127: 1 | D127: 10 | E127: 322 | F127: 345 | G127: 8.7 | H127: =Таблица1[[#This Row],[Вес ед.]]*Таблица1[[#This Row],[Кол-во деталей в марке]] -> 8.7 | J127: с255 | K127: 1 | L127: 1 | M127: =Таблица1[Кол-во деталей всего]*Таблица1[Вес ед.] -> 8.7 | N127: =IF(ISERROR(VLOOKUP(Таблица1[№ детали],Детали!$B$2:$B$88,1,0)),"Новая позиция"," ") ->  | O127: =Таблица1[[#This Row],[Кол-во марок]]*Таблица1[[#This Row],[Вес марки]] -> 0
A128: 38а104 | B128: 38-1037 | C128: 3 | D128: 16 | E128: 285 | F128: 356 | G128: 12.7 | H128: =Таблица1[[#This Row],[Вес ед.]]*Таблица1[[#This Row],[Кол-во деталей в марке]] -> 38.1 | J128: с255 | K128: 1 | L128: 3 | M128: =Таблица1[Кол-во деталей всего]*Таблица1[Вес ед.] -> 38.1 | N128: =IF(ISERROR(VLOOKUP(Таблица1[№ детали],Детали!$B$2:$B$88,1,0)),"Новая позиция"," ") ->  | O128: =Таблица1[[#This Row],[Кол-во марок]]*Таблица1[[#This Row],[Вес марки]] -> 0
A129: 38а104 | B129: 38-1039 | C129: 4 | D129: 10 | E129: 140 | F129: 270 | G129: 3 | H129: =Таблица1[[#This Row],[Вес ед.]]*Таблица1[[#This Row],[Кол-во деталей в марке]] -> 12 | J129: с255 | K129: 1 | L129: 4 | M129: =Таблица1[Кол-во деталей всего]*Таблица1[Вес ед.] -> 12 | N129: =IF(ISERROR(VLOOKUP(Таблица1[№ детали],Детали!$B$2:$B$88,1,0)),"Новая позиция"," ") ->  | O129: =Таблица1[[#This Row],[Кол-во марок]]*Таблица1[[#This Row],[Вес марки]] -> 0
A130: 38а104 | B130: 38-1046 | C130: 3 | D130: 10 | E130: 234 | F130: 230 | G130: 4.2 | H130: =Таблица1[[#This Row],[Вес ед.]]*Таблица1[[#This Row],[Кол-во деталей в марке]] -> 12.6 | J130: с255 | K130: 1 | L130: 3 | M130: =Таблица1[Кол-во деталей всего]*Таблица1[Вес ед.] -> 12.6 | N130: =IF(ISERROR(VLOOKUP(Таблица1[№ детали],Детали!$B$2:$B$88,1,0)),"Новая позиция"," ") ->  | O130: =Таблица1[[#This Row],[Кол-во марок]]*Таблица1[[#This Row],[Вес марки]] -> 0
A131: 38а104 | B131: 38-1047 | C131: 1 | D131: 10 | E131: 199 | F131: 274 | G131: 4.3 | H131: =Таблица1[[#This Row],[Вес ед.]]*Таблица1[[#This Row],[Кол-во деталей в марке]] -> 4.3 | J131: с255 | K131: 1 | L131: 1 | M131: =Таблица1[Кол-во деталей всего]*Таблица1[Вес ед.] -> 4.3 | N131: =IF(ISERROR(VLOOKUP(Таблица1[№ детали],Детали!$B$2:$B$88,1,0)),"Новая позиция"," ") ->  | O131: =Таблица1[[#This Row],[Кол-во марок]]*Таблица1[[#This Row],[Вес марки]] -> 0
A132: 38а104 | B132: 38-1048 | C132: 2 | D132: 10 | E132: 120 | F132: 150 | G132: 1.4 | H132: =Таблица1[[#This Row],[Вес ед.]]*Таблица1[[#This Row],[Кол-во деталей в марке]] -> 2.8 | J132: с255 | K132: 1 | L132: 2 | M132: =Таблица1[Кол-во деталей всего]*Таблица1[Вес ед.] -> 2.8 | N132: =IF(ISERROR(VLOOKUP(Таблица1[№ детали],Детали!$B$2:$B$88,1,0)),"Новая позиция"," ") ->  | O132: =Таблица1[[#This Row],[Кол-во марок]]*Таблица1[[#This Row],[Вес марки]] -> 0
A133: 38а104 | B133: 38-1050 | C133: 1 | D133: 10 | E133: 381 | F133: 390 | G133: 11.7 | H133: =Таблица1[[#This Row],[Вес ед.]]*Таблица1[[#This Row],[Кол-во деталей в марке]] -> 11.7 | J133: с255 | K133: 1 | L133: 1 | M133: =Таблица1[Кол-во деталей всего]*Таблица1[Вес ед.] -> 11.7 | N133: =IF(ISERROR(VLOOKUP(Таблица1[№ детали],Детали!$B$2:$B$88,1,0)),"Новая позиция"," ") ->  | O133: =Таблица1[[#This Row],[Кол-во марок]]*Таблица1[[#This Row],[Вес марки]] -> 0
A134: 38а105 | B134: 38-1016 | C134: 2 | D134: 16 | E134: 145 | F134: 356 | G134: 6 | H134: =Таблица1[[#This Row],[Вес ед.]]*Таблица1[[#This Row],[Кол-во деталей в марке]] -> 12 | I134: 613.6 | J134: с255 | K134: 1 | L134: 2 | M134: =Таблица1[Кол-во деталей всего]*Таблица1[Вес ед.] -> 12 | N134: =IF(ISERROR(VLOOKUP(Таблица1[№ детали],Детали!$B$2:$B$88,1,0)),"Новая позиция"," ") ->  | O134: =Таблица1[[#This Row],[Кол-во марок]]*Таблица1[[#This Row],[Вес марки]] -> 613.6
A135: 38а105 | B135: 38-1001 | C135: 1 | D135: 40ш2 | F135: 3530 | G135: 376.7 | H135: =Таблица1[[#This Row],[Вес ед.]]*Таблица1[[#This Row],[Кол-во деталей в марке]] -> 376.7 | J135: с255 | K135: 1 | L135: 1 | M135: =Таблица1[Кол-во деталей всего]*Таблица1[Вес ед.] -> 376.7 | N135: =IF(ISERROR(VLOOKUP(Таблица1[№ детали],Детали!$B$2:$B$88,1,0)),"Новая позиция"," ") ->  | O135: =Таблица1[[#This Row],[Кол-во марок]]*Таблица1[[#This Row],[Вес марки]] -> 0
A136: 38а105 | B136: 38-1002 | C136: 2 | D136: 8 | E136: 10 | F136: 270 | G136: 0.2 | H136: =Таблица1[[#This Row],[Вес ед.]]*Таблица1[[#This Row],[Кол-во деталей в марке]] -> 0.4 | J136: с255 | K136: 1 | L136: 2 | M136: =Таблица1[Кол-во деталей всего]*Таблица1[Вес ед.] -> 0.4 | N136: =IF(ISERROR(VLOOKUP(Таблица1[№ детали],Детали!$B$2:$B$88,1,0)),"Новая позиция"," ") ->  | O136: =Таблица1[[#This Row],[Кол-во марок]]*Таблица1[[#This Row],[Вес марки]] -> 0
A137: 38а105 | B137: 38-1004 | C137: 1 | D137: 8 | E137: 145 | F137: 356 | G137: 3.2 | H137: =Таблица1[[#This Row],[Вес ед.]]*Таблица1[[#This Row],[Кол-во деталей в марке]] -> 3.2 | J137: с255 | K137: 1 | L137: 1 | M137: =Таблица1[Кол-во деталей всего]*Таблица1[Вес ед.] -> 3.2 | N137: =IF(ISERROR(VLOOKUP(Таблица1[№ детали],Детали!$B$2:$B$88,1,0)),"Новая позиция"," ") ->  | O137: =Таблица1[[#This Row],[Кол-во марок]]*Таблица1[[#This Row],[Вес марки]] -> 0
A138: 38а105 | B138: 38-1006 | C138: 1 | D138: 8 | E138: 145 | F138: 356 | G138: 3.2 | H138: =Таблица1[[#This Row],[Вес ед.]]*Таблица1[[#This Row],[Кол-во деталей в марке]] -> 3.2 | J138: с255 | K138: 1 | L138: 1 | M138: =Таблица1[Кол-во деталей всего]*Таблица1[Вес ед.] -> 3.2 | N138: =IF(ISERROR(VLOOKUP(Таблица1[№ детали],Детали!$B$2:$B$88,1,0)),"Новая позиция"," ") ->  | O138: =Таблица1[[#This Row],[Кол-во марок]]*Таблица1[[#This Row],[Вес марки]] -> 0
A139: 38а105 | B139: 38-1008 | C139: 1 | D139: 10 | E139: 165 | F139: 355 | G139: 4.6 | H139: =Таблица1[[#This Row],[Вес ед.]]*Таблица1[[#This Row],[Кол-во деталей в марке]] -> 4.6 | J139: с255 | K139: 1 | L139: 1 | M139: =Таблица1[Кол-во деталей всего]*Таблица1[Вес ед.] -> 4.6 | N139: =IF(ISERROR(VLOOKUP(Таблица1[№ детали],Детали!$B$2:$B$88,1,0)),"Новая позиция"," ") ->  | O139: =Таблица1[[#This Row],[Кол-во марок]]*Таблица1[[#This Row],[Вес марки]] -> 0
A140: 38а105 | B140: 38-1012 | C140: 1 | D140: 16 | E140: 580 | F140: 650 | G140: 47,4 | H140: =Таблица1[[#This Row],[Вес ед.]]*Таблица1[[#This Row],[Кол-во деталей в марке]] -> 47.4 | J140: с255 | K140: 1 | L140: 1 | M140: =Таблица1[Кол-во деталей всего]*Таблица1[Вес ед.] -> 47.4 | N140: =IF(ISERROR(VLOOKUP(Таблица1[№ детали],Детали!$B$2:$B$88,1,0)),"Новая позиция"," ") ->  | O140: =Таблица1[[#This Row],[Кол-во марок]]*Таблица1[[#This Row],[Вес марки]] -> 0
A141: 38а105 | B141: 38-1020 | C141: 2 | D141: 16 | E141: 240 | F141: 300 | G141: 9 | H141: =Таблица1[[#This Row],[Вес ед.]]*Таблица1[[#This Row],[Кол-во деталей в марке]] -> 18 | J141: с255 | K141: 1 | L141: 2 | M141: =Таблица1[Кол-во деталей всего]*Таблица1[Вес ед.] -> 18 | N141: =IF(ISERROR(VLOOKUP(Таблица1[№ детали],Детали!$B$2:$B$88,1,0)),"Новая позиция"," ") ->  | O141: =Таблица1[[#This Row],[Кол-во марок]]*Таблица1[[#This Row],[Вес марки]] -> 0
A142: 38а105 | B142: 38-1022 | C142: 1 | D142: 16 | E142: 285 | F142: 356 | G142: 12.7 | H142: =Таблица1[[#This Row],[Вес ед.]]*Таблица1[[#This Row],[Кол-во деталей в марке]] -> 12.7 | J142: с255 | K142: 1 | L142: 1 | M142: =Таблица1[Кол-во деталей всего]*Таблица1[Вес ед.] -> 12.7 | N142: =IF(ISERROR(VLOOKUP(Таблица1[№ детали],Детали!$B$2:$B$88,1,0)),"Новая позиция"," ") ->  | O142: =Таблица1[[#This Row],[Кол-во марок]]*Таблица1[[#This Row],[Вес марки]] -> 0
A143: 38а105 | B143: 38-1023 | C143: 2 | D143: 16 | E143: 145 | F143: 356 | G143: 6.5 | H143: =Таблица1[[#This Row],[Вес ед.]]*Таблица1[[#This Row],[Кол-во деталей в марке]] -> 13 | J143: с255 | K143: 1 | L143: 2 | M143: =Таблица1[Кол-во деталей всего]*Таблица1[Вес ед.] -> 13 | N143: =IF(ISERROR(VLOOKUP(Таблица1[№ детали],Детали!$B$2:$B$88,1,0)),"Новая позиция"," ") ->  | O143: =Таблица1[[#This Row],[Кол-во марок]]*Таблица1[[#This Row],[Вес марки]] -> 0
A144: 38а105 | B144: 38-1024 | C144: 2 | D144: 16 | E144: 145 | F144: 356 | G144: 6.5 | H144: =Таблица1[[#This Row],[Вес ед.]]*Таблица1[[#This Row],[Кол-во деталей в марке]] -> 13 | J144: с255 | K144: 1 | L144: 2 | M144: =Таблица1[Кол-во деталей всего]*Таблица1[Вес ед.] -> 13 | N144: =IF(ISERROR(VLOOKUP(Таблица1[№ детали],Детали!$B$2:$B$88,1,0)),"Новая позиция"," ") ->  | O144: =Таблица1[[#This Row],[Кол-во марок]]*Таблица1[[#This Row],[Вес марки]] -> 0
A145: 38а105 | B145: 38-1029 | C145: 1 | D145: 10 | E145: 285 | F145: 472 | G145: 10.6 | H145: =Таблица1[[#This Row],[Вес ед.]]*Таблица1[[#This Row],[Кол-во деталей в марке]] -> 10.6 | J145: с255 | K145: 1 | L145: 1 | M145: =Таблица1[Кол-во деталей всего]*Таблица1[Вес ед.] -> 10.6 | N145: =IF(ISERROR(VLOOKUP(Таблица1[№ детали],Детали!$B$2:$B$88,1,0)),"Новая позиция"," ") ->  | O145: =Таблица1[[#This Row],[Кол-во марок]]*Таблица1[[#This Row],[Вес марки]] -> 0
A146: 38а105 | B146: 38-1030 | C146: 1 | D146: 10 | E146: 285 | F146: 472 | G146: 10.6 | H146: =Таблица1[[#This Row],[Вес ед.]]*Таблица1[[#This Row],[Кол-во деталей в марке]] -> 10.6 | J146: с255 | K146: 1 | L146: 1 | M146: =Таблица1[Кол-во деталей всего]*Таблица1[Вес ед.] -> 10.6 | N146: =IF(ISERROR(VLOOKUP(Таблица1[№ детали],Детали!$B$2:$B$88,1,0)),"Новая позиция"," ") ->  | O146: =Таблица1[[#This Row],[Кол-во марок]]*Таблица1[[#This Row],[Вес марки]] -> 0
A147: 38а105 | B147: 38-1031 | C147: 1 | D147: 10 | E147: 285 | F147: 488 | G147: 10.9 | H147: =Таблица1[[#This Row],[Вес ед.]]*Таблица1[[#This Row],[Кол-во деталей в марке]] -> 10.9 | J147: с255 | K147: 1 | L147: 1 | M147: =Таблица1[Кол-во деталей всего]*Таблица1[Вес ед.] -> 10.9 | N147: =IF(ISERROR(VLOOKUP(Таблица1[№ детали],Детали!$B$2:$B$88,1,0)),"Новая позиция"," ") ->  | O147: =Таблица1[[#This Row],[Кол-во марок]]*Таблица1[[#This Row],[Вес марки]] -> 0
A148: 38а105 | B148: 38-1032 | C148: 1 | D148: 10 | E148: 285 | F148: 488 | G148: 10.9 | H148: =Таблица1[[#This Row],[Вес ед.]]*Таблица1[[#This Row],[Кол-во деталей в марке]] -> 10.9 | J148: с255 | K148: 1 | L148: 1 | M148: =Таблица1[Кол-во деталей всего]*Таблица1[Вес ед.] -> 10.9 | N148: =IF(ISERROR(VLOOKUP(Таблица1[№ детали],Детали!$B$2:$B$88,1,0)),"Новая позиция"," ") ->  | O148: =Таблица1[[#This Row],[Кол-во марок]]*Таблица1[[#This Row],[Вес марки]] -> 0
A149: 38а105 | B149: 38-1039 | C149: 2 | D149: 10 | E149: 140 | F149: 270 | G149: 3 | H149: =Таблица1[[#This Row],[Вес ед.]]*Таблица1[[#This Row],[Кол-во деталей в марке]] -> 6 | J149: с255 | K149: 1 | L149: =C149*K149 -> 2 | M149: =Таблица1[Кол-во деталей всего]*Таблица1[Вес ед.] -> 6 | N149: =IF(ISERROR(VLOOKUP(Таблица1[№ детали],Детали!$B$2:$B$88,1,0)),"Новая позиция"," ") ->  | O149: =Таблица1[[#This Row],[Кол-во марок]]*Таблица1[[#This Row],[Вес марки]] -> 0
A150: 38а105 | B150: 38-1042 | C150: 1 | D150: 16 | E150: 285 | F150: 356 | G150: 12.7 | H150: =Таблица1[[#This Row],[Вес ед.]]*Таблица1[[#This Row],[Кол-во деталей в марке]] -> 12.7 | J150: с255 | K150: 1 | L150: 1 | M150: =Таблица1[Кол-во деталей всего]*Таблица1[Вес ед.] -> 12.7 | N150: =IF(ISERROR(VLOOKUP(Таблица1[№ детали],Детали!$B$2:$B$88,1,0)),"Новая позиция"," ") ->  | O150: =Таблица1[[#This Row],[Кол-во марок]]*Таблица1[[#This Row],[Вес марки]] -> 0
A151: 38а105 | B151: 38-1043 | C151: 1 | D151: 10 | E151: 304 | F151: 243 | G151: 5.8 | H151: =Таблица1[[#This Row],[Вес ед.]]*Таблица1[[#This Row],[Кол-во деталей в марке]] -> 5.8 | J151: с255 | K151: 1 | L151: 1 | M151: =Таблица1[Кол-во деталей всего]*Таблица1[Вес ед.] -> 5.8 | N151: =IF(ISERROR(VLOOKUP(Таблица1[№ детали],Детали!$B$2:$B$88,1,0)),"Новая позиция"," ") ->  | O151: =Таблица1[[#This Row],[Кол-во марок]]*Таблица1[[#This Row],[Вес марки]] -> 0
A152: 38а105 | B152: 38-1045 | C152: 1 | D152: 10 | E152: 425 | F152: 355 | G152: 11.8 | H152: =Таблица1[[#This Row],[Вес ед.]]*Таблица1[[#This Row],[Кол-во деталей в марке]] -> 11.8 | J152: с255 | K152: 1 | L152: 1 | M152: =Таблица1[Кол-во деталей всего]*Таблица1[Вес ед.] -> 11.8 | N152: =IF(ISERROR(VLOOKUP(Таблица1[№ детали],Детали!$B$2:$B$88,1,0)),"Новая позиция"," ") ->  | O152: =Таблица1[[#This Row],[Кол-во марок]]*Таблица1[[#This Row],[Вес марки]] -> 0
A153: 38а105 | B153: 38-1051 | C153: 1 | D153: 20 | E153: 340 | F153: 430 | G153: 23 | H153: =Таблица1[[#This Row],[Вес ед.]]*Таблица1[[#This Row],[Кол-во деталей в марке]] -> 23 | J153: с255 | K153: 1 | L153: 1 | M153: =Таблица1[Кол-во деталей всего]*Таблица1[Вес ед.] -> 23 | N153: =IF(ISERROR(VLOOKUP(Таблица1[№ детали],Детали!$B$2:$B$88,1,0)),"Новая позиция"," ") ->  | O153: =Таблица1[[#This Row],[Кол-во марок]]*Таблица1[[#This Row],[Вес марки]] -> 0
A154: 38а106 | B154: 38-1016 | C154: 2 | D154: 16 | E154: 145 | F154: 356 | G154: 6 | H154: =Таблица1[[#This Row],[Вес ед.]]*Таблица1[[#This Row],[Кол-во деталей в марке]] -> 12 | I154: 551,1 | J154: с255 | K154: 1 | L154: 2 | M154: =Таблица1[Кол-во деталей всего]*Таблица1[Вес ед.] -> 12 | N154: =IF(ISERROR(VLOOKUP(Таблица1[№ детали],Детали!$B$2:$B$88,1,0)),"Новая позиция"," ") ->  | O154: =Таблица1[[#This Row],[Кол-во марок]]*Таблица1[[#This Row],[Вес марки]] -> 551.1
A155: 38а106 | B155: 38-1001 | C155: 1 | D155: 40ш2 | F155: 3530 | G155: 376.7 | H155: =Таблица1[[#This Row],[Вес ед.]]*Таблица1[[#This Row],[Кол-во деталей в марке]] -> 376.7 | J155: с255 | K155: 1 | L155: 1 | M155: =Таблица1[Кол-во деталей всего]*Таблица1[Вес ед.] -> 376.7 | N155: =IF(ISERROR(VLOOKUP(Таблица1[№ детали],Детали!$B$2:$B$88,1,0)),"Новая позиция"," ") ->  | O155: =Таблица1[[#This Row],[Кол-во марок]]*Таблица1[[#This Row],[Вес марки]] -> 0
A156: 38а106 | B156: 38-1002 | C156: 2 | D156: 8 | E156: 10 | F156: 270 | G156: 0.2 | H156: =Таблица1[[#This Row],[Вес ед.]]*Таблица1[[#This Row],[Кол-во деталей в марке]] -> 0.4 | J156: с255 | K156: 1 | L156: 2 | M156: =Таблица1[Кол-во деталей всего]*Таблица1[Вес ед.] -> 0.4 | N156: =IF(ISERROR(VLOOKUP(Таблица1[№ детали],Детали!$B$2:$B$88,1,0)),"Новая позиция"," ") ->  | O156: =Таблица1[[#This Row],[Кол-во марок]]*Таблица1[[#This Row],[Вес марки]] -> 0
A157: 38а106 | B157: 38-1018 | C157: 1 | D157: 16 | E157: 400 | F157: 613 | G157: 30.8 | H157: =Таблица1[[#This Row],[Вес ед.]]*Таблица1[[#This Row],[Кол-во деталей в марке]] -> 30.8 | J157: с255 | K157: 1 | L157: 1 | M157: =Таблица1[Кол-во деталей всего]*Таблица1[Вес ед.] -> 30.8 | N157: =IF(ISERROR(VLOOKUP(Таблица1[№ детали],Детали!$B$2:$B$88,1,0)),"Новая позиция"," ") ->  | O157: =Таблица1[[#This Row],[Кол-во марок]]*Таблица1[[#This Row],[Вес марки]] -> 0
A158: 38а106 | B158: 38-1020 | C158: 2 | D158: 16 | E158: 240 | F158: 300 | G158: 9 | H158: =Таблица1[[#This Row],[Вес ед.]]*Таблица1[[#This Row],[Кол-во деталей в марке]] -> 18 | J158: с255 | K158: 1 | L158: 2 | M158: =Таблица1[Кол-во деталей всего]*Таблица1[Вес ед.] -> 18 | N158: =IF(ISERROR(VLOOKUP(Таблица1[№ детали],Детали!$B$2:$B$88,1,0)),"Новая позиция"," ") ->  | O158: =Таблица1[[#This Row],[Кол-во марок]]*Таблица1[[#This Row],[Вес марки]] -> 0
A159: 38а106 | B159: 38-1022 | C159: 1 | D159: 16 | E159: 285 | F159: 356 | G159: 12.7 | H159: =Таблица1[[#This Row],[Вес ед.]]*Таблица1[[#This Row],[Кол-во деталей в марке]] -> 12.7 | J159: с255 | K159: 1 | L159: 1 | M159: =Таблица1[Кол-во деталей всего]*Таблица1[Вес ед.] -> 12.7 | N159: =IF(ISERROR(VLOOKUP(Таблица1[№ детали],Детали!$B$2:$B$88,1,0)),"Новая позиция"," ") ->  | O159: =Таблица1[[#This Row],[Кол-во марок]]*Таблица1[[#This Row],[Вес марки]] -> 0
A160: 38а106 | B160: 38-1023 | C160: 3 | D160: 16 | E160: 145 | F160: 356 | G160: 6.5 | H160: =Таблица1[[#This Row],[Вес ед.]]*Таблица1[[#This Row],[Кол-во деталей в марке]] -> 19.5 | J160: с255 | K160: 1 | L160: 3 | M160: =Таблица1[Кол-во деталей всего]*Таблица1[Вес ед.] -> 19.5 | N160: =IF(ISERROR(VLOOKUP(Таблица1[№ детали],Детали!$B$2:$B$88,1,0)),"Новая позиция"," ") ->  | O160: =Таблица1[[#This Row],[Кол-во марок]]*Таблица1[[#This Row],[Вес марки]] -> 0
A161: 38а106 | B161: 38-1024 | C161: 2 | D161: 16 | E161: 145 | F161: 356 | G161: 6.5 | H161: =Таблица1[[#This Row],[Вес ед.]]*Таблица1[[#This Row],[Кол-во деталей в марке]] -> 13 | J161: с255 | K161: 1 | L161: 2 | M161: =Таблица1[Кол-во деталей всего]*Таблица1[Вес ед.] -> 13 | N161: =IF(ISERROR(VLOOKUP(Таблица1[№ детали],Детали!$B$2:$B$88,1,0)),"Новая позиция"," ") ->  | O161: =Таблица1[[#This Row],[Кол-во марок]]*Таблица1[[#This Row],[Вес марки]] -> 0
A162: 38а106 | B162: 38-1030 | C162: 1 | D162: 10 | E162: 285 | F162: 472 | G162: 10.6 | H162: =Таблица1[[#This Row],[Вес ед.]]*Таблица1[[#This Row],[Кол-во деталей в марке]] -> 10.6 | J162: с255 | K162: 1 | L162: 1 | M162: =Таблица1[Кол-во деталей всего]*Таблица1[Вес ед.] -> 10.6 | N162: =IF(ISERROR(VLOOKUP(Таблица1[№ детали],Детали!$B$2:$B$88,1,0)),"Новая позиция"," ") ->  | O162: =Таблица1[[#This Row],[Кол-во марок]]*Таблица1[[#This Row],[Вес марки]] -> 0
A163: 38а106 | B163: 38-1031 | C163: 1 | D163: 10 | E163: 285 | F163: 488 | G163: 10.9 | H163: =Таблица1[[#This Row],[Вес ед.]]*Таблица1[[#This Row],[Кол-во деталей в марке]] -> 10.9 | J163: с255 | K163: 1 | L163: 1 | M163: =Таблица1[Кол-во деталей всего]*Таблица1[Вес ед.] -> 10.9 | N163: =IF(ISERROR(VLOOKUP(Таблица1[№ детали],Детали!$B$2:$B$88,1,0)),"Новая позиция"," ") ->  | O163: =Таблица1[[#This Row],[Кол-во марок]]*Таблица1[[#This Row],[Вес марки]] -> 0
A164: 38а106 | B164: 38-1033 | C164: 1 | D164: 10 | E164: 145 | F164: 488 | G164: 5.6 | H164: =Таблица1[[#This Row],[Вес ед.]]*Таблица1[[#This Row],[Кол-во деталей в марке]] -> 5.6 | J164: с255 | K164: 1 | L164: 1 | M164: =Таблица1[Кол-во деталей всего]*Таблица1[Вес ед.] -> 5.6 | N164: =IF(ISERROR(VLOOKUP(Таблица1[№ детали],Детали!$B$2:$B$88,1,0)),"Новая позиция"," ") ->  | O164: =Таблица1[[#This Row],[Кол-во марок]]*Таблица1[[#This Row],[Вес марки]] -> 0
A165: 38а106 | B165: 38-1036 | C165: 1 | D165: 10 | E165: 145 | F165: 472 | G165: 5.4 | H165: =Таблица1[[#This Row],[Вес ед.]]*Таблица1[[#This Row],[Кол-во деталей в марке]] -> 5.4 | J165: с255 | K165: 1 | L165: 1 | M165: =Таблица1[Кол-во деталей всего]*Таблица1[Вес ед.] -> 5.4 | N165: =IF(ISERROR(VLOOKUP(Таблица1[№ детали],Детали!$B$2:$B$88,1,0)),"Новая позиция"," ") ->  | O165: =Таблица1[[#This Row],[Кол-во марок]]*Таблица1[[#This Row],[Вес марки]] -> 0
A166: 38а106 | B166: 38-1039 | C166: 2 | D166: 10 | E166: 140 | F166: 270 | G166: 3 | H166: =Таблица1[[#This Row],[Вес ед.]]*Таблица1[[#This Row],[Кол-во деталей в марке]] -> 6 | J166: с255 | K166: 1 | L166: 2 | M166: =Таблица1[Кол-во деталей всего]*Таблица1[Вес ед.] -> 6 | N166: =IF(ISERROR(VLOOKUP(Таблица1[№ детали],Детали!$B$2:$B$88,1,0)),"Новая позиция"," ") ->  | O166: =Таблица1[[#This Row],[Кол-во марок]]*Таблица1[[#This Row],[Вес марки]] -> 0
A167: 38а106 | B167: 38-1051 | C167: 1 | D167: 20 | E167: 340 | F167: 430 | G167: 23 | H167: =Таблица1[[#This Row],[Вес ед.]]*Таблица1[[#This Row],[Кол-во деталей в марке]] -> 23 | J167: с255 | K167: 1 | L167: 1 | M167: =Таблица1[Кол-во деталей всего]*Таблица1[Вес ед.] -> 23 | N167: =IF(ISERROR(VLOOKUP(Таблица1[№ детали],Детали!$B$2:$B$88,1,0)),"Новая позиция"," ") ->  | O167: =Таблица1[[#This Row],[Кол-во марок]]*Таблица1[[#This Row],[Вес марки]] -> 0
A168: 38а107 | B168: 38-1000 | C168: 1 | D168: 40ш2 | F168: 13125 | G168: 1401 | H168: =Таблица1[[#This Row],[Вес ед.]]*Таблица1[[#This Row],[Кол-во деталей в марке]] -> 1401 | I168: 1828 | J168: с255 | K168: 1 | L168: 1 | M168: =Таблица1[Кол-во деталей всего]*Таблица1[Вес ед.] -> 1401 | N168: =IF(ISERROR(VLOOKUP(Таблица1[№ детали],Детали!$B$2:$B$88,1,0)),"Новая позиция"," ") ->  | O168: =Таблица1[[#This Row],[Кол-во марок]]*Таблица1[[#This Row],[Вес марки]] -> 1828
A169: 38а107 | B169: 38-1002 | C169: 6 | D169: 8 | E169: 10 | F169: 270 | G169: 0.2 | H169: =Таблица1[[#This Row],[Вес ед.]]*Таблица1[[#This Row],[Кол-во деталей в марке]] -> 1.2 | J169: с255 | K169: 1 | L169: 6 | M169: =Таблица1[Кол-во деталей всего]*Таблица1[Вес ед.] -> 1.2 | N169: =IF(ISERROR(VLOOKUP(Таблица1[№ детали],Детали!$B$2:$B$88,1,0)),"Новая позиция"," ") ->  | O169: =Таблица1[[#This Row],[Кол-во марок]]*Таблица1[[#This Row],[Вес марки]] -> 0
A170: 38а107 | B170: 38-1003 | C170: 1 | D170: 8 | E170: 100 | F170: 100 | G170: 0.6 | H170: =Таблица1[[#This Row],[Вес ед.]]*Таблица1[[#This Row],[Кол-во деталей в марке]] -> 0.6 | J170: с255 | K170: 1 | L170: 1 | M170: =Таблица1[Кол-во деталей всего]*Таблица1[Вес ед.] -> 0.6 | N170: =IF(ISERROR(VLOOKUP(Таблица1[№ детали],Детали!$B$2:$B$88,1,0)),"Новая позиция"," ") ->  | O170: =Таблица1[[#This Row],[Кол-во марок]]*Таблица1[[#This Row],[Вес марки]] -> 0
A171: 38а107 | B171: 38-1009 | C171: 1 | D171: 8 | E171: 120 | F171: 274 | G171: 2.1 | H171: =Таблица1[[#This Row],[Вес ед.]]*Таблица1[[#This Row],[Кол-во деталей в марке]] -> 2.1 | J171: с255 | K171: 1 | L171: 1 | M171: =Таблица1[Кол-во деталей всего]*Таблица1[Вес ед.] -> 2.1 | N171: =IF(ISERROR(VLOOKUP(Таблица1[№ детали],Детали!$B$2:$B$88,1,0)),"Новая позиция"," ") ->  | O171: =Таблица1[[#This Row],[Кол-во марок]]*Таблица1[[#This Row],[Вес марки]] -> 0
A172: 38а107 | B172: 38-1010 | C172: 1 | D172: 25 | E172: 340 | F172: 430 | G172: 28.7 | H172: =Таблица1[[#This Row],[Вес ед.]]*Таблица1[[#This Row],[Кол-во деталей в марке]] -> 28.7 | J172: с255 | K172: 1 | L172: 1 | M172: =Таблица1[Кол-во деталей всего]*Таблица1[Вес ед.] -> 28.7 | N172: =IF(ISERROR(VLOOKUP(Таблица1[№ детали],Детали!$B$2:$B$88,1,0)),"Новая позиция"," ") ->  | O172: =Таблица1[[#This Row],[Кол-во марок]]*Таблица1[[#This Row],[Вес марки]] -> 0
A173: 38а107 | B173: 38-1013 | C173: 2 | D173: 16 | E173: 285 | F173: 356 | G173: 12.7 | H173: =Таблица1[[#This Row],[Вес ед.]]*Таблица1[[#This Row],[Кол-во деталей в марке]] -> 25.4 | J173: с255 | K173: 1 | L173: 2 | M173: =Таблица1[Кол-во деталей всего]*Таблица1[Вес ед.] -> 25.4 | N173: =IF(ISERROR(VLOOKUP(Таблица1[№ детали],Детали!$B$2:$B$88,1,0)),"Новая позиция"," ") ->  | O173: =Таблица1[[#This Row],[Кол-во марок]]*Таблица1[[#This Row],[Вес марки]] -> 0
A174: 38а107 | B174: 38-1016 | C174: 2 | D174: 16 | E174: 145 | F174: 356 | G174: 6.5 | H174: =Таблица1[[#This Row],[Вес ед.]]*Таблица1[[#This Row],[Кол-во деталей в марке]] -> 13 | J174: с255 | K174: 1 | L174: 2 | M174: =Таблица1[Кол-во деталей всего]*Таблица1[Вес ед.] -> 13 | N174: =IF(ISERROR(VLOOKUP(Таблица1[№ детали],Детали!$B$2:$B$88,1,0)),"Новая позиция"," ") ->  | O174: =Таблица1[[#This Row],[Кол-во марок]]*Таблица1[[#This Row],[Вес марки]] -> 0
A175: 38а107 | B175: 38-1018 | C175: 1 | D175: 16 | E175: 400 | F175: 613 | G175: 30.8 | H175: =Таблица1[[#This Row],[Вес ед.]]*Таблица1[[#This Row],[Кол-во деталей в марке]] -> 30.8 | J175: с255 | K175: 1 | L175: 1 | M175: =Таблица1[Кол-во деталей всего]*Таблица1[Вес ед.] -> 30.8 | N175: =IF(ISERROR(VLOOKUP(Таблица1[№ детали],Детали!$B$2:$B$88,1,0)),"Новая позиция"," ") ->  | O175: =Таблица1[[#This Row],[Кол-во марок]]*Таблица1[[#This Row],[Вес марки]] -> 0
A176: 38а107 | B176: 38-1019 | C176: 1 | D176: 16 | E176: 270 | F176: 300 | G176: 10.2 | H176: =Таблица1[[#This Row],[Вес ед.]]*Таблица1[[#This Row],[Кол-во деталей в марке]] -> 10.2 | J176: с255 | K176: 1 | L176: 1 | M176: =Таблица1[Кол-во деталей всего]*Таблица1[Вес ед.] -> 10.2 | N176: =IF(ISERROR(VLOOKUP(Таблица1[№ детали],Детали!$B$2:$B$88,1,0)),"Новая позиция"," ") ->  | O176: =Таблица1[[#This Row],[Кол-во марок]]*Таблица1[[#This Row],[Вес марки]] -> 0
A177: 38а107 | B177: 38-1020 | C177: 5 | D177: 16 | E177: 240 | F177: 300 | G177: 9 | H177: =Таблица1[[#This Row],[Вес ед.]]*Таблица1[[#This Row],[Кол-во деталей в марке]] -> 45 | J177: с255 | K177: 1 | L177: =C177*K177 -> 5 | M177: =Таблица1[Кол-во деталей всего]*Таблица1[Вес ед.] -> 45 | N177: =IF(ISERROR(VLOOKUP(Таблица1[№ детали],Детали!$B$2:$B$88,1,0)),"Новая позиция"," ") ->  | O177: =Таблица1[[#This Row],[Кол-во марок]]*Таблица1[[#This Row],[Вес марки]] -> 0
A178: 38а107 | B178: 38-1021 | C178: 3 | D178: 16 | E178: 145 | F178: 356 | G178: 6.5 | H178: =Таблица1[[#This Row],[Вес ед.]]*Таблица1[[#This Row],[Кол-во деталей в марке]] -> 19.5 | J178: с255 | K178: 1 | L178: 3 | M178: =Таблица1[Кол-во деталей всего]*Таблица1[Вес ед.] -> 19.5 | N178: =IF(ISERROR(VLOOKUP(Таблица1[№ детали],Детали!$B$2:$B$88,1,0)),"Новая позиция"," ") ->  | O178: =Таблица1[[#This Row],[Кол-во марок]]*Таблица1[[#This Row],[Вес марки]] -> 0
A179: 38а107 | B179: 38-1023 | C179: 6 | D179: 16 | E179: 145 | F179: 356 | G179: 6.5 | H179: =Таблица1[[#This Row],[Вес ед.]]*Таблица1[[#This Row],[Кол-во деталей в марке]] -> 39 | J179: с255 | K179: 1 | L179: 6 | M179: =Таблица1[Кол-во деталей всего]*Таблица1[Вес ед.] -> 39 | N179: =IF(ISERROR(VLOOKUP(Таблица1[№ детали],Детали!$B$2:$B$88,1,0)),"Новая позиция"," ") ->  | O179: =Таблица1[[#This Row],[Кол-во марок]]*Таблица1[[#This Row],[Вес марки]] -> 0
A180: 38а107 | B180: 38-1024 | C180: 5 | D180: 16 | E180: 145 | F180: 356 | G180: 6.5 | H180: =Таблица1[[#This Row],[Вес ед.]]*Таблица1[[#This Row],[Кол-во деталей в марке]] -> 32.5 | J180: с255 | K180: 1 | L180: 5 | M180: =Таблица1[Кол-во деталей всего]*Таблица1[Вес ед.] -> 32.5 | N180: =IF(ISERROR(VLOOKUP(Таблица1[№ детали],Детали!$B$2:$B$88,1,0)),"Новая позиция"," ") ->  | O180: =Таблица1[[#This Row],[Кол-во марок]]*Таблица1[[#This Row],[Вес марки]] -> 0
A181: 38а107 | B181: 38-1026 | C181: 3 | D181: 10 | E181: 345 | F181: 540 | G181: 14.6 | H181: =Таблица1[[#This Row],[Вес ед.]]*Таблица1[[#This Row],[Кол-во деталей в марке]] -> 43.8 | J181: с255 | K181: 1 | L181: 3 | M181: =Таблица1[Кол-во деталей всего]*Таблица1[Вес ед.] -> 43.8 | N181: =IF(ISERROR(VLOOKUP(Таблица1[№ детали],Детали!$B$2:$B$88,1,0)),"Новая позиция"," ") ->  | O181: =Таблица1[[#This Row],[Кол-во марок]]*Таблица1[[#This Row],[Вес марки]] -> 0
A182: 38а107 | B182: 38-1028 | C182: 1 | D182: 10 | E182: 322 | F182: 345 | G182: 8.7 | H182: =Таблица1[[#This Row],[Вес ед.]]*Таблица1[[#This Row],[Кол-во деталей в марке]] -> 8.7 | J182: с255 | K182: 1 | L182: 1 | M182: =Таблица1[Кол-во деталей всего]*Таблица1[Вес ед.] -> 8.7 | N182: =IF(ISERROR(VLOOKUP(Таблица1[№ детали],Детали!$B$2:$B$88,1,0)),"Новая позиция"," ") ->  | O182: =Таблица1[[#This Row],[Кол-во марок]]*Таблица1[[#This Row],[Вес марки]] -> 0
A183: 38а107 | B183: 38-1031 | C183: 1 | D183: 10 | E183: 285 | F183: 488 | G183: 10.9 | H183: =Таблица1[[#This Row],[Вес ед.]]*Таблица1[[#This Row],[Кол-во деталей в марке]] -> 10.9 | J183: с255 | K183: 1 | L183: 1 | M183: =Таблица1[Кол-во деталей всего]*Таблица1[Вес ед.] -> 10.9 | N183: =IF(ISERROR(VLOOKUP(Таблица1[№ детали],Детали!$B$2:$B$88,1,0)),"Новая позиция"," ") ->  | O183: =Таблица1[[#This Row],[Кол-во марок]]*Таблица1[[#This Row],[Вес марки]] -> 0
A184: 38а107 | B184: 38-1033 | C184: 1 | D184: 10 | E184: 145 | F184: 489 | G184: 5.6 | H184: =Таблица1[[#This Row],[Вес ед.]]*Таблица1[[#This Row],[Кол-во деталей в марке]] -> 5.6 | J184: с255 | K184: 1 | L184: 1 | M184: =Таблица1[Кол-во деталей всего]*Таблица1[Вес ед.] -> 5.6 | N184: =IF(ISERROR(VLOOKUP(Таблица1[№ детали],Детали!$B$2:$B$88,1,0)),"Новая позиция"," ") ->  | O184: =Таблица1[[#This Row],[Кол-во марок]]*Таблица1[[#This Row],[Вес марки]] -> 0
A185: 38а107 | B185: 38-1034 | C185: 4 | D185: 10 | E185: 145 | F185: 324 | G185: 3.7 | H185: =Таблица1[[#This Row],[Вес ед.]]*Таблица1[[#This Row],[Кол-во деталей в марке]] -> 14.8 | J185: с255 | K185: 1 | L185: 4 | M185: =Таблица1[Кол-во деталей всего]*Таблица1[Вес ед.] -> 14.8 | N185: =IF(ISERROR(VLOOKUP(Таблица1[№ детали],Детали!$B$2:$B$88,1,0)),"Новая позиция"," ") ->  | O185: =Таблица1[[#This Row],[Кол-во марок]]*Таблица1[[#This Row],[Вес марки]] -> 0
A186: 38а107 | B186: 38-1035 | C186: 1 | D186: 16 | E186: 285 | F186: 356 | G186: 12.7 | H186: =Таблица1[[#This Row],[Вес ед.]]*Таблица1[[#This Row],[Кол-во деталей в марке]] -> 12.7 | J186: с255 | K186: 1 | L186: 1 | M186: =Таблица1[Кол-во деталей всего]*Таблица1[Вес ед.] -> 12.7 | N186: =IF(ISERROR(VLOOKUP(Таблица1[№ детали],Детали!$B$2:$B$88,1,0)),"Новая позиция"," ") ->  | O186: =Таблица1[[#This Row],[Кол-во марок]]*Таблица1[[#This Row],[Вес марки]] -> 0
A187: 38а107 | B187: 38-1039 | C187: 6 | D187: 10 | E187: 140 | F187: 270 | G187: 3 | H187: =Таблица1[[#This Row],[Вес ед.]]*Таблица1[[#This Row],[Кол-во деталей в марке]] -> 18 | J187: с255 | K187: 1 | L187: 6 | M187: =Таблица1[Кол-во деталей всего]*Таблица1[Вес ед.] -> 18 | N187: =IF(ISERROR(VLOOKUP(Таблица1[№ детали],Детали!$B$2:$B$88,1,0)),"Новая позиция"," ") ->  | O187: =Таблица1[[#This Row],[Кол-во марок]]*Таблица1[[#This Row],[Вес марки]] -> 0
A188: 38а107 | B188: 38-1042 | C188: 1 | D188: 16 | E188: 285 | F188: 356 | G188: 12.7 | H188: =Таблица1[[#This Row],[Вес ед.]]*Таблица1[[#This Row],[Кол-во деталей в марке]] -> 12.7 | J188: с255 | K188: 1 | L188: 1 | M188: =Таблица1[Кол-во деталей всего]*Таблица1[Вес ед.] -> 12.7 | N188: =IF(ISERROR(VLOOKUP(Таблица1[№ детали],Детали!$B$2:$B$88,1,0)),"Новая позиция"," ") ->  | O188: =Таблица1[[#This Row],[Кол-во марок]]*Таблица1[[#This Row],[Вес марки]] -> 0
A189: 38а107 | B189: 38-1047 | C189: 1 | D189: 10 | E189: 199 | F189: 274 | G189: 4.3 | H189: =Таблица1[[#This Row],[Вес ед.]]*Таблица1[[#This Row],[Кол-во деталей в марке]] -> 4.3 | J189: с255 | K189: 1 | L189: 1 | M189: =Таблица1[Кол-во деталей всего]*Таблица1[Вес ед.] -> 4.3 | N189: =IF(ISERROR(VLOOKUP(Таблица1[№ детали],Детали!$B$2:$B$88,1,0)),"Новая позиция"," ") ->  | O189: =Таблица1[[#This Row],[Кол-во марок]]*Таблица1[[#This Row],[Вес марки]] -> 0
A190: 38а107 | B190: 38-1048 | C190: 2 | D190: 10 | E190: 120 | F190: 150 | G190: 1.4 | H190: =Таблица1[[#This Row],[Вес ед.]]*Таблица1[[#This Row],[Кол-во деталей в марке]] -> 2.8 | J190: с255 | K190: 1 | L190: 2 | M190: =Таблица1[Кол-во деталей всего]*Таблица1[Вес ед.] -> 2.8 | N190: =IF(ISERROR(VLOOKUP(Таблица1[№ детали],Детали!$B$2:$B$88,1,0)),"Новая позиция"," ") ->  | O190: =Таблица1[[#This Row],[Кол-во марок]]*Таблица1[[#This Row],[Вес марки]] -> 0
A191: 38а107 | B191: 38-1055 | C191: 3 | D191: 16 | E191: 145 | F191: 356 | G191: 6.5 | H191: =Таблица1[[#This Row],[Вес ед.]]*Таблица1[[#This Row],[Кол-во деталей в марке]] -> 19.5 | J191: с255 | K191: 1 | L191: 3 | M191: =Таблица1[Кол-во деталей всего]*Таблица1[Вес ед.] -> 19.5 | N191: =IF(ISERROR(VLOOKUP(Таблица1[№ детали],Детали!$B$2:$B$88,1,0)),"Новая позиция"," ") ->  | O191: =Таблица1[[#This Row],[Кол-во марок]]*Таблица1[[#This Row],[Вес марки]] -> 0
A192: 38а107 | B192: 38-1056 | C192: 3 | D192: 10 | E192: 145 | F192: 200 | G192: 2.3 | H192: =Таблица1[[#This Row],[Вес ед.]]*Таблица1[[#This Row],[Кол-во деталей в марке]] -> 6.9 | J192: с255 | K192: 1 | L192: 3 | M192: =Таблица1[Кол-во деталей всего]*Таблица1[Вес ед.] -> 6.9 | N192: =IF(ISERROR(VLOOKUP(Таблица1[№ детали],Детали!$B$2:$B$88,1,0)),"Новая позиция"," ") ->  | O192: =Таблица1[[#This Row],[Кол-во марок]]*Таблица1[[#This Row],[Вес марки]] -> 0
A193: 38а108 | B193: 38-1000 | C193: 1 | D193: 40ш2 | F193: 13125 | G193: 1401 | H193: =Таблица1[[#This Row],[Вес ед.]]*Таблица1[[#This Row],[Кол-во деталей в марке]] -> 1401 | I193: 1754 | J193: с255 | K193: 1 | L193: 1 | M193: =Таблица1[Кол-во деталей всего]*Таблица1[Вес ед.] -> 1401 | N193: =IF(ISERROR(VLOOKUP(Таблица1[№ детали],Детали!$B$2:$B$88,1,0)),"Новая позиция"," ") ->  | O193: =Таблица1[[#This Row],[Кол-во марок]]*Таблица1[[#This Row],[Вес марки]] -> 1754
A194: 38а108 | B194: 38-1002 | C194: 4 | D194: 8 | E194: 10 | F194: 270 | G194: 0.2 | H194: =Таблица1[[#This Row],[Вес ед.]]*Таблица1[[#This Row],[Кол-во деталей в марке]] -> 0.8 | J194: с255 | K194: 1 | L194: 4 | M194: =Таблица1[Кол-во деталей всего]*Таблица1[Вес ед.] -> 0.8 | N194: =IF(ISERROR(VLOOKUP(Таблица1[№ детали],Детали!$B$2:$B$88,1,0)),"Новая позиция"," ") ->  | O194: =Таблица1[[#This Row],[Кол-во марок]]*Таблица1[[#This Row],[Вес марки]] -> 0
A195: 38а108 | B195: 38-1003 | C195: 1 | D195: 8 | E195: 100 | F195: 100 | G195: 0.6 | H195: =Таблица1[[#This Row],[Вес ед.]]*Таблица1[[#This Row],[Кол-во деталей в марке]] -> 0.6 | J195: с255 | K195: 1 | L195: 1 | M195: =Таблица1[Кол-во деталей всего]*Таблица1[Вес ед.] -> 0.6 | N195: =IF(ISERROR(VLOOKUP(Таблица1[№ детали],Детали!$B$2:$B$88,1,0)),"Новая позиция"," ") ->  | O195: =Таблица1[[#This Row],[Кол-во марок]]*Таблица1[[#This Row],[Вес марки]] -> 0
A196: 38а108 | B196: 38-1009 | C196: 1 | D196: 8 | E196: 120 | F196: 274 | G196: 2.1 | H196: =Таблица1[[#This Row],[Вес ед.]]*Таблица1[[#This Row],[Кол-во деталей в марке]] -> 2.1 | J196: с255 | K196: 1 | L196: 1 | M196: =Таблица1[Кол-во деталей всего]*Таблица1[Вес ед.] -> 2.1 | N196: =IF(ISERROR(VLOOKUP(Таблица1[№ детали],Детали!$B$2:$B$88,1,0)),"Новая позиция"," ") ->  | O196: =Таблица1[[#This Row],[Кол-во марок]]*Таблица1[[#This Row],[Вес марки]] -> 0
A197: 38а108 | B197: 38-1010 | C197: 1 | D197: 25 | E197: 340 | F197: 430 | G197: 28.7 | H197: =Таблица1[[#This Row],[Вес ед.]]*Таблица1[[#This Row],[Кол-во деталей в марке]] -> 28.7 | J197: с255 | K197: 1 | L197: =C197*K197 -> 1 | M197: =Таблица1[Кол-во деталей всего]*Таблица1[Вес ед.] -> 28.7 | N197: =IF(ISERROR(VLOOKUP(Таблица1[№ детали],Детали!$B$2:$B$88,1,0)),"Новая позиция"," ") ->  | O197: =Таблица1[[#This Row],[Кол-во марок]]*Таблица1[[#This Row],[Вес марки]] -> 0
A198: 38а108 | B198: 38-1016 | C198: 2 | D198: 16 | E198: 145 | F198: 356 | G198: 6.5 | H198: =Таблица1[[#This Row],[Вес ед.]]*Таблица1[[#This Row],[Кол-во деталей в марке]] -> 13 | J198: с255 | K198: 1 | L198: 2 | M198: =Таблица1[Кол-во деталей всего]*Таблица1[Вес ед.] -> 13 | N198: =IF(ISERROR(VLOOKUP(Таблица1[№ детали],Детали!$B$2:$B$88,1,0)),"Новая позиция"," ") ->  | O198: =Таблица1[[#This Row],[Кол-во марок]]*Таблица1[[#This Row],[Вес марки]] -> 0
A199: 38а108 | B199: 38-1018 | C199: 1 | D199: 16 | E199: 400 | F199: 613 | G199: 30.8 | H199: =Таблица1[[#This Row],[Вес ед.]]*Таблица1[[#This Row],[Кол-во деталей в марке]] -> 30.8 | J199: с255 | K199: 1 | L199: 1 | M199: =Таблица1[Кол-во деталей всего]*Таблица1[Вес ед.] -> 30.8 | N199: =IF(ISERROR(VLOOKUP(Таблица1[№ детали],Детали!$B$2:$B$88,1,0)),"Новая позиция"," ") ->  | O199: =Таблица1[[#This Row],[Кол-во марок]]*Таблица1[[#This Row],[Вес марки]] -> 0
A200: 38а108 | B200: 38-1019 | C200: 1 | D200: 16 | E200: 270 | F200: 300 | G200: 10.2 | H200: =Таблица1[[#This Row],[Вес ед.]]*Таблица1[[#This Row],[Кол-во деталей в марке]] -> 10.2 | J200: с255 | K200: 1 | L200: 1 | M200: =Таблица1[Кол-во деталей всего]*Таблица1[Вес ед.] -> 10.2 | N200: =IF(ISERROR(VLOOKUP(Таблица1[№ детали],Детали!$B$2:$B$88,1,0)),"Новая позиция"," ") ->  | O200: =Таблица1[[#This Row],[Кол-во марок]]*Таблица1[[#This Row],[Вес марки]] -> 0
... 1739 more rows

Sheet Детали
A1: Столбец1 | B1: № детали | C1: Профиль | D1: Ширина | E1: Длина | F1: Кол-во | G1: Марка ст. | H1: Прим 1 | I1: Прим 2
A2: =Таблица4[[#This Row],[Профиль]]&Таблица4[[#This Row],[Марка ст.]] -> 30ш2с255 | B2: 38-100 | C2: 30ш2 | E2: 5660 | F2: =SUMIF(Таблица1[№ детали],B2,Таблица1[Кол-во деталей всего]) -> 7 | G2: с255 | H2: =IF(ISERROR(VLOOKUP(Таблица4[[#This Row],[Столбец1]],Таблица3[#All],1,0)),"Новая позиция"," ") ->  | I2: =IF(ISERROR(VLOOKUP(Детали!#REF!,Вес!$C$2:$C$11,2,0))," ","Новая марка стали") ->  | K2: =Таблица4[[#This Row],[Кол-во]]*Таблица4[[#This Row],[Длина]] -> 39620
A3: =Таблица4[[#This Row],[Профиль]]&Таблица4[[#This Row],[Марка ст.]] -> 40ш2с255 | B3: 38-1000 | C3: 40ш2 | E3: 13125 | F3: =SUMIF(Таблица1[№ детали],B3,Таблица1[Кол-во деталей всего]) -> 6 | G3: с255 | H3: =IF(ISERROR(VLOOKUP(Таблица4[[#This Row],[Столбец1]],Таблица3[#All],1,0)),"Новая позиция"," ") ->  | I3: =IF(ISERROR(VLOOKUP(Детали!$G249,Вес!$C$2:$C$11,2,0))," ","Новая марка стали") ->  | K3: =Таблица4[[#This Row],[Кол-во]]*Таблица4[[#This Row],[Длина]] -> 78750 | O3: =K2+K3+K4+K5+K6+K7+K8+K9+K10+K11+K12+K13+K14+K15+K16+K17+K18+K19+K20+K21+K22+K23+#REF!+K24+K25+K26+K27+K28+K29+K30+K176+K179+K180+K183+K184+K185+K186+K187+K188+K191+K192+K203+K222+K223+K224+K225+K226+K227+K228+K248+K249+K250+K251+K252+K253+K254+K255+K290+K291+K292 -> 
A4: =Таблица4[[#This Row],[Профиль]]&Таблица4[[#This Row],[Марка ст.]] -> 40ш2с255 | B4: 38-1001 | C4: 40ш2 | E4: 3530 | F4: =SUMIF(Таблица1[№ детали],B4,Таблица1[Кол-во деталей всего]) -> 3 | G4: с255 | H4: =IF(ISERROR(VLOOKUP(Таблица4[[#This Row],[Столбец1]],Таблица3[#All],1,0)),"Новая позиция"," ") ->  | I4: =IF(ISERROR(VLOOKUP(Детали!$G355,Вес!$C$2:$C$11,2,0))," ","Новая марка стали") ->  | K4: =Таблица4[[#This Row],[Кол-во]]*Таблица4[[#This Row],[Длина]] -> 10590
A5: =Таблица4[[#This Row],[Профиль]]&Таблица4[[#This Row],[Марка ст.]] -> 8с255 | B5: 38-1002 | C5: 8 | D5: 10 | E5: 270 | F5: =SUMIF(Таблица1[№ детали],B5,Таблица1[Кол-во деталей всего]) -> 36 | G5: с255 | H5: =IF(ISERROR(VLOOKUP(Таблица4[[#This Row],[Столбец1]],Таблица3[#All],1,0)),"Новая позиция"," ") ->  | I5: =IF(ISERROR(VLOOKUP(Детали!$G146,Вес!$C$2:$C$11,2,0))," ","Новая марка стали") ->  | K5: =Таблица4[[#This Row],[Кол-во]]*Таблица4[[#This Row],[Длина]] -> 9720
A6: =Таблица4[[#This Row],[Профиль]]&Таблица4[[#This Row],[Марка ст.]] -> 8с255 | B6: 38-1003 | C6: 8 | D6: 100 | E6: 100 | F6: =SUMIF(Таблица1[№ детали],B6,Таблица1[Кол-во деталей всего]) -> 6 | G6: с255 | H6: =IF(ISERROR(VLOOKUP(Таблица4[[#This Row],[Столбец1]],Таблица3[#All],1,0)),"Новая позиция"," ") ->  | I6: =IF(ISERROR(VLOOKUP(Детали!$G215,Вес!$C$2:$C$11,2,0))," ","Новая марка стали") ->  | K6: =Таблица4[[#This Row],[Кол-во]]*Таблица4[[#This Row],[Длина]] -> 600
A7: =Таблица4[[#This Row],[Профиль]]&Таблица4[[#This Row],[Марка ст.]] -> 8с255 | B7: 38-1004 | C7: 8 | D7: 145 | E7: 356 | F7: =SUMIF(Таблица1[№ детали],B7,Таблица1[Кол-во деталей всего]) -> 4 | G7: с255 | H7: =IF(ISERROR(VLOOKUP(Таблица4[[#This Row],[Столбец1]],Таблица3[#All],1,0)),"Новая позиция"," ") ->  | I7: =IF(ISERROR(VLOOKUP(Детали!$G389,Вес!$C$2:$C$11,2,0))," ","Новая марка стали") ->  | K7: =Таблица4[[#This Row],[Кол-во]]*Таблица4[[#This Row],[Длина]] -> 1424
A8: =Таблица4[[#This Row],[Профиль]]&Таблица4[[#This Row],[Марка ст.]] -> 10с255 | B8: 38-1005 | C8: 10 | D8: 165 | E8: 390 | F8: =SUMIF(Таблица1[№ детали],B8,Таблица1[Кол-во деталей всего]) -> 2 | G8: с255 | H8: =IF(ISERROR(VLOOKUP(Таблица4[[#This Row],[Столбец1]],Таблица3[#All],1,0)),"Новая позиция"," ") ->  | I8: =IF(ISERROR(VLOOKUP(Детали!$G222,Вес!$C$2:$C$11,2,0))," ","Новая марка стали") ->  | K8: =Таблица4[[#This Row],[Кол-во]]*Таблица4[[#This Row],[Длина]] -> 780
A9: =Таблица4[[#This Row],[Профиль]]&Таблица4[[#This Row],[Марка ст.]] -> 8с255 | B9: 38-1006 | C9: 8 | D9: 145 | E9: 356 | F9: =SUMIF(Таблица1[№ детали],B9,Таблица1[Кол-во деталей всего]) -> 6 | G9: с255 | H9: =IF(ISERROR(VLOOKUP(Таблица4[[#This Row],[Столбец1]],Таблица3[#All],1,0)),"Новая позиция"," ") ->  | I9: =IF(ISERROR(VLOOKUP(Детали!$G217,Вес!$C$2:$C$11,2,0))," ","Новая марка стали") ->  | K9: =Таблица4[[#This Row],[Кол-во]]*Таблица4[[#This Row],[Длина]] -> 2136
A10: =Таблица4[[#This Row],[Профиль]]&Таблица4[[#This Row],[Марка ст.]] -> 10с255 | B10: 38-1007 | C10: 10 | D10: 165 | E10: 350 | F10: =SUMIF(Таблица1[№ детали],B10,Таблица1[Кол-во деталей всего]) -> 2 | G10: с255 | H10: =IF(ISERROR(VLOOKUP(Таблица4[[#This Row],[Столбец1]],Таблица3[#All],1,0)),"Новая позиция"," ") ->  | I10: =IF(ISERROR(VLOOKUP(Детали!$G137,Вес!$C$2:$C$11,2,0))," ","Новая марка стали") ->  | K10: =Таблица4[[#This Row],[Кол-во]]*Таблица4[[#This Row],[Длина]] -> 700
A11: =Таблица4[[#This Row],[Профиль]]&Таблица4[[#This Row],[Марка ст.]] -> 10с255 | B11: 38-1008 | C11: 10 | D11: 165 | E11: 355 | F11: =SUMIF(Таблица1[№ детали],B11,Таблица1[Кол-во деталей всего]) -> 2 | G11: с255 | H11: =IF(ISERROR(VLOOKUP(Таблица4[[#This Row],[Столбец1]],Таблица3[#All],1,0)),"Новая позиция"," ") ->  | I11: =IF(ISERROR(VLOOKUP(Детали!#REF!,Вес!$C$2:$C$11,2,0))," ","Новая марка стали") ->  | K11: =Таблица4[[#This Row],[Кол-во]]*Таблица4[[#This Row],[Длина]] -> 710
A12: =Таблица4[[#This Row],[Профиль]]&Таблица4[[#This Row],[Марка ст.]] -> 8с255 | B12: 38-1009 | C12: 8 | D12: 120 | E12: 274 | F12: =SUMIF(Таблица1[№ детали],B12,Таблица1[Кол-во деталей всего]) -> 6 | G12: с255 | H12: =IF(ISERROR(VLOOKUP(Таблица4[[#This Row],[Столбец1]],Таблица3[#All],1,0)),"Новая позиция"," ") ->  | I12: =IF(ISERROR(VLOOKUP(Детали!$G271,Вес!$C$2:$C$11,2,0))," ","Новая марка стали") ->  | K12: =Таблица4[[#This Row],[Кол-во]]*Таблица4[[#This Row],[Длина]] -> 1644
A13: =Таблица4[[#This Row],[Профиль]]&Таблица4[[#This Row],[Марка ст.]] -> 25с255 | B13: 38-1010 | C13: 25 | D13: 340 | E13: 430 | F13: =SUMIF(Таблица1[№ детали],B13,Таблица1[Кол-во деталей всего]) -> 6 | G13: с255 | H13: =IF(ISERROR(VLOOKUP(Таблица4[[#This Row],[Столбец1]],Таблица3[#All],1,0)),"Новая позиция"," ") ->  | I13: =IF(ISERROR(VLOOKUP(Детали!$G361,Вес!$C$2:$C$11,2,0))," ","Новая марка стали") ->  | K13: =Таблица4[[#This Row],[Кол-во]]*Таблица4[[#This Row],[Длина]] -> 2580
A14: =Таблица4[[#This Row],[Профиль]]&Таблица4[[#This Row],[Марка ст.]] -> 16с255 | B14: 38-1012 | C14: 16 | D14: 580 | E14: 650 | F14: =SUMIF(Таблица1[№ детали],B14,Таблица1[Кол-во деталей всего]) -> 1 | G14: с255 | H14: =IF(ISERROR(VLOOKUP(Таблица4[[#This Row],[Столбец1]],Таблица3[#All],1,0)),"Новая позиция"," ") ->  | I14: =IF(ISERROR(VLOOKUP(Детали!$G337,Вес!$C$2:$C$11,2,0))," ","Новая марка стали") ->  | K14: =Таблица4[[#This Row],[Кол-во]]*Таблица4[[#This Row],[Длина]] -> 650
A15: =Таблица4[[#This Row],[Профиль]]&Таблица4[[#This Row],[Марка ст.]] -> 16с255 | B15: 38-1013 | C15: 16 | D15: 285 | E15: 356 | F15: =SUMIF(Таблица1[№ детали],B15,Таблица1[Кол-во деталей всего]) -> 10 | G15: с255 | H15: =IF(ISERROR(VLOOKUP(Таблица4[[#This Row],[Столбец1]],Таблица3[#All],1,0)),"Новая позиция"," ") ->  | I15: =IF(ISERROR(VLOOKUP(Детали!$G275,Вес!$C$2:$C$11,2,0))," ","Новая марка стали") ->  | K15: =Таблица4[[#This Row],[Кол-во]]*Таблица4[[#This Row],[Длина]] -> 3560
A16: =Таблица4[[#This Row],[Профиль]]&Таблица4[[#This Row],[Марка ст.]] -> 16с255 | B16: 38-1014 | C16: 16 | D16: 285 | E16: 356 | F16: =SUMIF(Таблица1[№ детали],B16,Таблица1[Кол-во деталей всего]) -> 3 | G16: с255 | H16: =IF(ISERROR(VLOOKUP(Таблица4[[#This Row],[Столбец1]],Таблица3[#All],1,0)),"Новая позиция"," ") ->  | I16: =IF(ISERROR(VLOOKUP(Детали!$G139,Вес!$C$2:$C$11,2,0))," ","Новая марка стали") ->  | K16: =Таблица4[[#This Row],[Кол-во]]*Таблица4[[#This Row],[Длина]] -> 1068
A17: =Таблица4[[#This Row],[Профиль]]&Таблица4[[#This Row],[Марка ст.]] -> 16с255 | B17: 38-1015 | C17: 16 | D17: 580 | E17: 613 | F17: =SUMIF(Таблица1[№ детали],B17,Таблица1[Кол-во деталей всего]) -> 2 | G17: с255 | H17: =IF(ISERROR(VLOOKUP(Таблица4[[#This Row],[Столбец1]],Таблица3[#All],1,0)),"Новая позиция"," ") ->  | I17: =IF(ISERROR(VLOOKUP(Детали!$G291,Вес!$C$2:$C$11,2,0))," ","Новая марка стали") ->  | K17: =Таблица4[[#This Row],[Кол-во]]*Таблица4[[#This Row],[Длина]] -> 1226
A18: =Таблица4[[#This Row],[Профиль]]&Таблица4[[#This Row],[Марка ст.]] -> 16с255 | B18: 38-1016 | C18: 16 | D18: 145 | E18: 356 | F18: =SUMIF(Таблица1[№ детали],B18,Таблица1[Кол-во деталей всего]) -> 18 | G18: с255 | H18: =IF(ISERROR(VLOOKUP(Таблица4[[#This Row],[Столбец1]],Таблица3[#All],1,0)),"Новая позиция"," ") ->  | I18: =IF(ISERROR(VLOOKUP(Детали!$G387,Вес!$C$2:$C$11,2,0))," ","Новая марка стали") ->  | K18: =Таблица4[[#This Row],[Кол-во]]*Таблица4[[#This Row],[Длина]] -> 6408
A19: =Таблица4[[#This Row],[Профиль]]&Таблица4[[#This Row],[Марка ст.]] -> 16с255 | B19: 38-1018 | C19: 16 | D19: 400 | E19: 613 | F19: =SUMIF(Таблица1[№ детали],B19,Таблица1[Кол-во деталей всего]) -> 6 | G19: с255 | H19: =IF(ISERROR(VLOOKUP(Таблица4[[#This Row],[Столбец1]],Таблица3[#All],1,0)),"Новая позиция"," ") ->  | I19: =IF(ISERROR(VLOOKUP(Детали!$G388,Вес!$C$2:$C$11,2,0))," ","Новая марка стали") ->  | K19: =Таблица4[[#This Row],[Кол-во]]*Таблица4[[#This Row],[Длина]] -> 3678
A20: =Таблица4[[#This Row],[Профиль]]&Таблица4[[#This Row],[Марка ст.]] -> 16с255 | B20: 38-1019 | C20: 16 | D20: 270 | E20: 300 | F20: =SUMIF(Таблица1[№ детали],B20,Таблица1[Кол-во деталей всего]) -> 6 | G20: с255 | H20: =IF(ISERROR(VLOOKUP(Таблица4[[#This Row],[Столбец1]],Таблица3[#All],1,0)),"Новая позиция"," ") ->  | I20: =IF(ISERROR(VLOOKUP(Детали!$G125,Вес!$C$2:$C$11,2,0))," ","Новая марка стали") ->  | K20: =Таблица4[[#This Row],[Кол-во]]*Таблица4[[#This Row],[Длина]] -> 1800
A21: =Таблица4[[#This Row],[Профиль]]&Таблица4[[#This Row],[Марка ст.]] -> 16с255 | B21: 38-1020 | C21: 16 | D21: 240 | E21: 300 | F21: =SUMIF(Таблица1[№ детали],B21,Таблица1[Кол-во деталей всего]) -> 30 | G21: с255 | H21: =IF(ISERROR(VLOOKUP(Таблица4[[#This Row],[Столбец1]],Таблица3[#All],1,0)),"Новая позиция"," ") ->  | I21: =IF(ISERROR(VLOOKUP(Детали!$G352,Вес!$C$2:$C$11,2,0))," ","Новая марка стали") ->  | K21: =Таблица4[[#This Row],[Кол-во]]*Таблица4[[#This Row],[Длина]] -> 9000
A22: =Таблица4[[#This Row],[Профиль]]&Таблица4[[#This Row],[Марка ст.]] -> 16с255 | B22: 38-1021 | C22: 16 | D22: 145 | E22: 356 | F22: =SUMIF(Таблица1[№ детали],B22,Таблица1[Кол-во деталей всего]) -> 8 | G22: с255 | H22: =IF(ISERROR(VLOOKUP(Таблица4[[#This Row],[Столбец1]],Таблица3[#All],1,0)),"Новая позиция"," ") ->  | I22: =IF(ISERROR(VLOOKUP(Детали!$G184,Вес!$C$2:$C$11,2,0))," ","Новая марка стали") ->  | K22: =Таблица4[[#This Row],[Кол-во]]*Таблица4[[#This Row],[Длина]] -> 2848
A23: =Таблица4[[#This Row],[Профиль]]&Таблица4[[#This Row],[Марка ст.]] -> 16с255 | B23: 38-1022 | C23: 16 | D23: 285 | E23: 356 | F23: =SUMIF(Таблица1[№ детали],B23,Таблица1[Кол-во деталей всего]) -> 4 | G23: с255 | H23: =IF(ISERROR(VLOOKUP(Таблица4[[#This Row],[Столбец1]],Таблица3[#All],1,0)),"Новая позиция"," ") ->  | I23: =IF(ISERROR(VLOOKUP(Детали!$G124,Вес!$C$2:$C$11,2,0))," ","Новая марка стали") ->  | K23: =Таблица4[[#This Row],[Кол-во]]*Таблица4[[#This Row],[Длина]] -> 1424
A24: =Таблица4[[#This Row],[Профиль]]&Таблица4[[#This Row],[Марка ст.]] -> 16с255 | B24: 38-1023 | C24: 16 | D24: 145 | E24: 356 | F24: =SUMIF(Таблица1[№ детали],B24,Таблица1[Кол-во деталей всего]) -> 37 | G24: с255 | H24: =IF(ISERROR(VLOOKUP(Таблица4[[#This Row],[Столбец1]],Таблица3[#All],1,0)),"Новая позиция"," ") ->  | I24: =IF(ISERROR(VLOOKUP(Детали!$G250,Вес!$C$2:$C$11,2,0))," ","Новая марка стали") ->  | K24: =Таблица4[[#This Row],[Кол-во]]*Таблица4[[#This Row],[Длина]] -> 13172
A25: =Таблица4[[#This Row],[Профиль]]&Таблица4[[#This Row],[Марка ст.]] -> 16с255 | B25: 38-1024 | C25: 16 | D25: 145 | E25: 356 | F25: =SUMIF(Таблица1[№ детали],B25,Таблица1[Кол-во деталей всего]) -> 37 | G25: с255 | H25: =IF(ISERROR(VLOOKUP(Таблица4[[#This Row],[Столбец1]],Таблица3[#All],1,0)),"Новая позиция"," ") ->  | I25: =IF(ISERROR(VLOOKUP(Детали!$G312,Вес!$C$2:$C$11,2,0))," ","Новая марка стали") ->  | K25: =Таблица4[[#This Row],[Кол-во]]*Таблица4[[#This Row],[Длина]] -> 13172
A26: =Таблица4[[#This Row],[Профиль]]&Таблица4[[#This Row],[Марка ст.]] -> 10с255 | B26: 38-1025 | C26: 10 | D26: 345 | E26: 540 | F26: =SUMIF(Таблица1[№ детали],B26,Таблица1[Кол-во деталей всего]) -> 11 | G26: с255 | H26: =IF(ISERROR(VLOOKUP(Таблица4[[#This Row],[Столбец1]],Таблица3[#All],1,0)),"Новая позиция"," ") ->  | I26: =IF(ISERROR(VLOOKUP(Детали!$G362,Вес!$C$2:$C$11,2,0))," ","Новая марка стали") ->  | K26: =Таблица4[[#This Row],[Кол-во]]*Таблица4[[#This Row],[Длина]] -> 5940
A27: =Таблица4[[#This Row],[Профиль]]&Таблица4[[#This Row],[Марка ст.]] -> 10с255 | B27: 38-1026 | C27: 10 | D27: 345 | E27: 540 | F27: =SUMIF(Таблица1[№ детали],B27,Таблица1[Кол-во деталей всего]) -> 13 | G27: с255 | H27: =IF(ISERROR(VLOOKUP(Таблица4[[#This Row],[Столбец1]],Таблица3[#All],1,0)),"Новая позиция"," ") ->  | I27: =IF(ISERROR(VLOOKUP(Детали!$G130,Вес!$C$2:$C$11,2,0))," ","Новая марка стали") ->  | K27: =Таблица4[[#This Row],[Кол-во]]*Таблица4[[#This Row],[Длина]] -> 7020
A28: =Таблица4[[#This Row],[Профиль]]&Таблица4[[#This Row],[Марка ст.]] -> 10с255 | B28: 38-1027 | C28: 10 | D28: 322 | E28: 345 | F28: =SUMIF(Таблица1[№ детали],B28,Таблица1[Кол-во деталей всего]) -> 4 | G28: с255 | H28: =IF(ISERROR(VLOOKUP(Таблица4[[#This Row],[Столбец1]],Таблица3[#All],1,0)),"Новая позиция"," ") ->  | I28: =IF(ISERROR(VLOOKUP(Детали!$G353,Вес!$C$2:$C$11,2,0))," ","Новая марка стали") ->  | K28: =Таблица4[[#This Row],[Кол-во]]*Таблица4[[#This Row],[Длина]] -> 1380
A29: =Таблица4[[#This Row],[Профиль]]&Таблица4[[#This Row],[Марка ст.]] -> 10с255 | B29: 38-1028 | C29: 10 | D29: 322 | E29: 345 | F29: =SUMIF(Таблица1[№ детали],B29,Таблица1[Кол-во деталей всего]) -> 4 | G29: с255 | H29: =IF(ISERROR(VLOOKUP(Таблица4[[#This Row],[Столбец1]],Таблица3[#All],1,0)),"Новая позиция"," ") ->  | I29: =IF(ISERROR(VLOOKUP(Детали!$G311,Вес!$C$2:$C$11,2,0))," ","Новая марка стали") ->  | K29: =Таблица4[[#This Row],[Кол-во]]*Таблица4[[#This Row],[Длина]] -> 1380
A30: =Таблица4[[#This Row],[Профиль]]&Таблица4[[#This Row],[Марка ст.]] -> 10с255 | B30: 38-1029 | C30: 10 | D30: 285 | E30: 472 | F30: =SUMIF(Таблица1[№ детали],B30,Таблица1[Кол-во деталей всего]) -> 2 | G30: с255 | H30: =IF(ISERROR(VLOOKUP(Таблица4[[#This Row],[Столбец1]],Таблица3[#All],1,0)),"Новая позиция"," ") ->  | I30: =IF(ISERROR(VLOOKUP(Детали!$G155,Вес!$C$2:$C$11,2,0))," ","Новая марка стали") ->  | K30: =Таблица4[[#This Row],[Кол-во]]*Таблица4[[#This Row],[Длина]] -> 944
A31: =Таблица4[[#This Row],[Профиль]]&Таблица4[[#This Row],[Марка ст.]] -> 10с255 | B31: 38-1030 | C31: 10 | D31: 285 | E31: 472 | F31: =SUMIF(Таблица1[№ детали],B31,Таблица1[Кол-во деталей всего]) -> 2 | G31: с255 | H31: =IF(ISERROR(VLOOKUP(Таблица4[[#This Row],[Столбец1]],Таблица3[#All],1,0)),"Новая позиция"," ") ->  | I31: =IF(ISERROR(VLOOKUP(Детали!$G347,Вес!$C$2:$C$11,2,0))," ","Новая марка стали") ->  | K31: =Таблица4[[#This Row],[Кол-во]]*Таблица4[[#This Row],[Длина]] -> 944
A32: =Таблица4[[#This Row],[Профиль]]&Таблица4[[#This Row],[Марка ст.]] -> 10с255 | B32: 38-1031 | C32: 10 | D32: 285 | E32: 488 | F32: =SUMIF(Таблица1[№ детали],B32,Таблица1[Кол-во деталей всего]) -> 4 | G32: с255 | H32: =IF(ISERROR(VLOOKUP(Таблица4[[#This Row],[Столбец1]],Таблица3[#All],1,0)),"Новая позиция"," ") ->  | I32: =IF(ISERROR(VLOOKUP(Детали!$G310,Вес!$C$2:$C$11,2,0))," ","Новая марка стали") ->  | K32: =Таблица4[[#This Row],[Кол-во]]*Таблица4[[#This Row],[Длина]] -> 1952
A33: =Таблица4[[#This Row],[Профиль]]&Таблица4[[#This Row],[Марка ст.]] -> 10с255 | B33: 38-1032 | C33: 10 | D33: 285 | E33: 488 | F33: =SUMIF(Таблица1[№ детали],B33,Таблица1[Кол-во деталей всего]) -> 4 | G33: с255 | H33: =IF(ISERROR(VLOOKUP(Таблица4[[#This Row],[Столбец1]],Таблица3[#All],1,0)),"Новая позиция"," ") ->  | I33: =IF(ISERROR(VLOOKUP(Детали!$G180,Вес!$C$2:$C$11,2,0))," ","Новая марка стали") ->  | K33: =Таблица4[[#This Row],[Кол-во]]*Таблица4[[#This Row],[Длина]] -> 1952
A34: =Таблица4[[#This Row],[Профиль]]&Таблица4[[#This Row],[Марка ст.]] -> 10с255 | B34: 38-1033 | C34: 10 | D34: 145 | E34: 488 | F34: =SUMIF(Таблица1[№ детали],B34,Таблица1[Кол-во деталей всего]) -> 4 | G34: с255 | H34: =IF(ISERROR(VLOOKUP(Таблица4[[#This Row],[Столбец1]],Таблица3[#All],1,0)),"Новая позиция"," ") ->  | I34: =IF(ISERROR(VLOOKUP(Детали!$G154,Вес!$C$2:$C$11,2,0))," ","Новая марка стали") ->  | K34: =Таблица4[[#This Row],[Кол-во]]*Таблица4[[#This Row],[Длина]] -> 1952
A35: =Таблица4[[#This Row],[Профиль]]&Таблица4[[#This Row],[Марка ст.]] -> 10с255 | B35: 38-1033 | C35: 10 | D35: 145 | E35: 489 | F35: =SUMIF(Таблица1[№ детали],B35,Таблица1[Кол-во деталей всего]) -> 4 | G35: с255 | H35: =IF(ISERROR(VLOOKUP(Таблица4[[#This Row],[Столбец1]],Таблица3[#All],1,0)),"Новая позиция"," ") ->  | I35: =IF(ISERROR(VLOOKUP(Детали!$G292,Вес!$C$2:$C$11,2,0))," ","Новая марка стали") ->  | K35: =Таблица4[[#This Row],[Кол-во]]*Таблица4[[#This Row],[Длина]] -> 1956
A36: =Таблица4[[#This Row],[Профиль]]&Таблица4[[#This Row],[Марка ст.]] -> 10с255 | B36: 38-1034 | C36: 10 | D36: 145 | E36: 324 | F36: =SUMIF(Таблица1[№ детали],B36,Таблица1[Кол-во деталей всего]) -> 16 | G36: с255 | H36: =IF(ISERROR(VLOOKUP(Таблица4[[#This Row],[Столбец1]],Таблица3[#All],1,0)),"Новая позиция"," ") ->  | I36: =IF(ISERROR(VLOOKUP(Детали!$G267,Вес!$C$2:$C$11,2,0))," ","Новая марка стали") ->  | K36: =Таблица4[[#This Row],[Кол-во]]*Таблица4[[#This Row],[Длина]] -> 5184
A37: =Таблица4[[#This Row],[Профиль]]&Таблица4[[#This Row],[Марка ст.]] -> 16с255 | B37: 38-1035 | C37: 16 | D37: 285 | E37: 356 | F37: =SUMIF(Таблица1[№ детали],B37,Таблица1[Кол-во деталей всего]) -> 1 | G37: с255 | H37: =IF(ISERROR(VLOOKUP(Таблица4[[#This Row],[Столбец1]],Таблица3[#All],1,0)),"Новая позиция"," ") ->  | I37: =IF(ISERROR(VLOOKUP(Детали!$G228,Вес!$C$2:$C$11,2,0))," ","Новая марка стали") ->  | K37: =Таблица4[[#This Row],[Кол-во]]*Таблица4[[#This Row],[Длина]] -> 356
A38: =Таблица4[[#This Row],[Профиль]]&Таблица4[[#This Row],[Марка ст.]] -> 10с255 | B38: 38-1036 | C38: 10 | D38: 145 | E38: 472 | F38: =SUMIF(Таблица1[№ детали],B38,Таблица1[Кол-во деталей всего]) -> 2 | G38: с255 | H38: =IF(ISERROR(VLOOKUP(Таблица4[[#This Row],[Столбец1]],Таблица3[#All],1,0)),"Новая позиция"," ") ->  | I38: =IF(ISERROR(VLOOKUP(Детали!$G136,Вес!$C$2:$C$11,2,0))," ","Новая марка стали") ->  | K38: =Таблица4[[#This Row],[Кол-во]]*Таблица4[[#This Row],[Длина]] -> 944
A39: =Таблица4[[#This Row],[Профиль]]&Таблица4[[#This Row],[Марка ст.]] -> 16с255 | B39: 38-1037 | C39: 16 | D39: 285 | E39: 356 | F39: =SUMIF(Таблица1[№ детали],B39,Таблица1[Кол-во деталей всего]) -> 10 | G39: с255 | H39: =IF(ISERROR(VLOOKUP(Таблица4[[#This Row],[Столбец1]],Таблица3[#All],1,0)),"Новая позиция"," ") ->  | I39: =IF(ISERROR(VLOOKUP(Детали!$G128,Вес!$C$2:$C$11,2,0))," ","Новая марка стали") ->  | K39: =Таблица4[[#This Row],[Кол-во]]*Таблица4[[#This Row],[Длина]] -> 3560
A40: =Таблица4[[#This Row],[Профиль]]&Таблица4[[#This Row],[Марка ст.]] -> 10с255 | B40: 38-1039 | C40: 10 | D40: 140 | E40: 270 | F40: =SUMIF(Таблица1[№ детали],B40,Таблица1[Кол-во деталей всего]) -> 36 | G40: с255 | H40: =IF(ISERROR(VLOOKUP(Таблица4[[#This Row],[Столбец1]],Таблица3[#All],1,0)),"Новая позиция"," ") ->  | I40: =IF(ISERROR(VLOOKUP(Детали!$G288,Вес!$C$2:$C$11,2,0))," ","Новая марка стали") ->  | K40: =Таблица4[[#This Row],[Кол-во]]*Таблица4[[#This Row],[Длина]] -> 9720
A41: =Таблица4[[#This Row],[Профиль]]&Таблица4[[#This Row],[Марка ст.]] -> 12с255 | B41: 38-1040 | C41: 12 | D41: 211 | E41: 757 | F41: =SUMIF(Таблица1[№ детали],B41,Таблица1[Кол-во деталей всего]) -> 1 | G41: с255 | H41: =IF(ISERROR(VLOOKUP(Таблица4[[#This Row],[Столбец1]],Таблица3[#All],1,0)),"Новая позиция"," ") ->  | I41: =IF(ISERROR(VLOOKUP(Детали!$G119,Вес!$C$2:$C$11,2,0))," ","Новая марка стали") ->  | K41: =Таблица4[[#This Row],[Кол-во]]*Таблица4[[#This Row],[Длина]] -> 757
A42: =Таблица4[[#This Row],[Профиль]]&Таблица4[[#This Row],[Марка ст.]] -> 12с255 | B42: 38-1041 | C42: 12 | D42: 212 | E42: 732 | F42: =SUMIF(Таблица1[№ детали],B42,Таблица1[Кол-во деталей всего]) -> 1 | G42: с255 | H42: =IF(ISERROR(VLOOKUP(Таблица4[[#This Row],[Столбец1]],Таблица3[#All],1,0)),"Новая позиция"," ") ->  | I42: =IF(ISERROR(VLOOKUP(Детали!$G80,Вес!$C$2:$C$11,2,0))," ","Новая марка стали") ->  | K42: =Таблица4[[#This Row],[Кол-во]]*Таблица4[[#This Row],[Длина]] -> 732
A43: =Таблица4[[#This Row],[Профиль]]&Таблица4[[#This Row],[Марка ст.]] -> 16с255 | B43: 38-1042 | C43: 16 | D43: 285 | E43: 356 | F43: =SUMIF(Таблица1[№ детали],B43,Таблица1[Кол-во деталей всего]) -> 4 | G43: с255 | H43: =IF(ISERROR(VLOOKUP(Таблица4[[#This Row],[Столбец1]],Таблица3[#All],1,0)),"Новая позиция"," ") ->  | I43: =IF(ISERROR(VLOOKUP(Детали!$G390,Вес!$C$2:$C$11,2,0))," ","Новая марка стали") ->  | K43: =Таблица4[[#This Row],[Кол-во]]*Таблица4[[#This Row],[Длина]] -> 1424
A44: =Таблица4[[#This Row],[Профиль]]&Таблица4[[#This Row],[Марка ст.]] -> 10с255 | B44: 38-1043 | C44: 10 | D44: 304 | E44: 243 | F44: =SUMIF(Таблица1[№ детали],B44,Таблица1[Кол-во деталей всего]) -> 4 | G44: с255 | H44: =IF(ISERROR(VLOOKUP(Таблица4[[#This Row],[Столбец1]],Таблица3[#All],1,0)),"Новая позиция"," ") ->  | I44: =IF(ISERROR(VLOOKUP(Детали!$G385,Вес!$C$2:$C$11,2,0))," ","Новая марка стали") ->  | K44: =Таблица4[[#This Row],[Кол-во]]*Таблица4[[#This Row],[Длина]] -> 972
A45: =Таблица4[[#This Row],[Профиль]]&Таблица4[[#This Row],[Марка ст.]] -> 10с255 | B45: 38-1044 | C45: 10 | D45: 425 | E45: 350 | F45: =SUMIF(Таблица1[№ детали],B45,Таблица1[Кол-во деталей всего]) -> 2 | G45: с255 | H45: =IF(ISERROR(VLOOKUP(Таблица4[[#This Row],[Столбец1]],Таблица3[#All],1,0)),"Новая позиция"," ") ->  | I45: =IF(ISERROR(VLOOKUP(Детали!$G357,Вес!$C$2:$C$11,2,0))," ","Новая марка стали") ->  | K45: =Таблица4[[#This Row],[Кол-во]]*Таблица4[[#This Row],[Длина]] -> 700
A46: =Таблица4[[#This Row],[Профиль]]&Таблица4[[#This Row],[Марка ст.]] -> 10с255 | B46: 38-1045 | C46: 10 | D46: 425 | E46: 355 | F46: =SUMIF(Таблица1[№ детали],B46,Таблица1[Кол-во деталей всего]) -> 2 | G46: с255 | H46: =IF(ISERROR(VLOOKUP(Таблица4[[#This Row],[Столбец1]],Таблица3[#All],1,0)),"Новая позиция"," ") ->  | I46: =IF(ISERROR(VLOOKUP(Детали!$G380,Вес!$C$2:$C$11,2,0))," ","Новая марка стали") ->  | K46: =Таблица4[[#This Row],[Кол-во]]*Таблица4[[#This Row],[Длина]] -> 710
A47: =Таблица4[[#This Row],[Профиль]]&Таблица4[[#This Row],[Марка ст.]] -> 10с255 | B47: 38-1046 | C47: 10 | D47: 234 | E47: 230 | F47: =SUMIF(Таблица1[№ детали],B47,Таблица1[Кол-во деталей всего]) -> 12 | G47: с255 | H47: =IF(ISERROR(VLOOKUP(Таблица4[[#This Row],[Столбец1]],Таблица3[#All],1,0)),"Новая позиция"," ") ->  | I47: =IF(ISERROR(VLOOKUP(Детали!$G306,Вес!$C$2:$C$11,2,0))," ","Новая марка стали") ->  | K47: =Таблица4[[#This Row],[Кол-во]]*Таблица4[[#This Row],[Длина]] -> 2760
A48: =Таблица4[[#This Row],[Профиль]]&Таблица4[[#This Row],[Марка ст.]] -> 10с255 | B48: 38-1047 | C48: 10 | D48: 199 | E48: 274 | F48: =SUMIF(Таблица1[№ детали],B48,Таблица1[Кол-во деталей всего]) -> 6 | G48: с255 | H48: =IF(ISERROR(VLOOKUP(Таблица4[[#This Row],[Столбец1]],Таблица3[#All],1,0)),"Новая позиция"," ") ->  | I48: =IF(ISERROR(VLOOKUP(Детали!$G376,Вес!$C$2:$C$11,2,0))," ","Новая марка стали") ->  | K48: =Таблица4[[#This Row],[Кол-во]]*Таблица4[[#This Row],[Длина]] -> 1644
A49: =Таблица4[[#This Row],[Профиль]]&Таблица4[[#This Row],[Марка ст.]] -> 10с255 | B49: 38-1048 | C49: 10 | D49: 120 | E49: 150 | F49: =SUMIF(Таблица1[№ детали],B49,Таблица1[Кол-во деталей всего]) -> 12 | G49: с255 | H49: =IF(ISERROR(VLOOKUP(Таблица4[[#This Row],[Столбец1]],Таблица3[#All],1,0)),"Новая позиция"," ") ->  | I49: =IF(ISERROR(VLOOKUP(Детали!$G354,Вес!$C$2:$C$11,2,0))," ","Новая марка стали") ->  | K49: =Таблица4[[#This Row],[Кол-во]]*Таблица4[[#This Row],[Длина]] -> 1800
A50: =Таблица4[[#This Row],[Профиль]]&Таблица4[[#This Row],[Марка ст.]] -> 10с255 | B50: 38-1050 | C50: 10 | D50: 381 | E50: 390 | F50: =SUMIF(Таблица1[№ детали],B50,Таблица1[Кол-во деталей всего]) -> 2 | G50: с255 | H50: =IF(ISERROR(VLOOKUP(Таблица4[[#This Row],[Столбец1]],Таблица3[#All],1,0)),"Новая позиция"," ") ->  | I50: =IF(ISERROR(VLOOKUP(Детали!$G232,Вес!$C$2:$C$11,2,0))," ","Новая марка стали") ->  | K50: =Таблица4[[#This Row],[Кол-во]]*Таблица4[[#This Row],[Длина]] -> 780
A51: =Таблица4[[#This Row],[Профиль]]&Таблица4[[#This Row],[Марка ст.]] -> 20с255 | B51: 38-1051 | C51: 20 | D51: 340 | E51: 430 | F51: =SUMIF(Таблица1[№ детали],B51,Таблица1[Кол-во деталей всего]) -> 3 | G51: с255 | H51: =IF(ISERROR(VLOOKUP(Таблица4[[#This Row],[Столбец1]],Таблица3[#All],1,0)),"Новая позиция"," ") ->  | I51: =IF(ISERROR(VLOOKUP(Детали!$G269,Вес!$C$2:$C$11,2,0))," ","Новая марка стали") ->  | K51: =Таблица4[[#This Row],[Кол-во]]*Таблица4[[#This Row],[Длина]] -> 1290 | N51: =K47+K48+K50+K51+K56+K57+#REF!+#REF! -> 
A52: =Таблица4[[#This Row],[Профиль]]&Таблица4[[#This Row],[Марка ст.]] -> 12с255 | B52: 38-1052 | C52: 12 | D52: 212 | E52: 732 | F52: =SUMIF(Таблица1[№ детали],B52,Таблица1[Кол-во деталей всего]) -> 1 | G52: с255 | H52: =IF(ISERROR(VLOOKUP(Таблица4[[#This Row],[Столбец1]],Таблица3[#All],1,0)),"Новая позиция"," ") ->  | I52: =IF(ISERROR(VLOOKUP(Детали!#REF!,Вес!$C$2:$C$11,2,0))," ","Новая марка стали") ->  | K52: =Таблица4[[#This Row],[Кол-во]]*Таблица4[[#This Row],[Длина]] -> 732
A53: =Таблица4[[#This Row],[Профиль]]&Таблица4[[#This Row],[Марка ст.]] -> 12с255 | B53: 38-1053 | C53: 12 | D53: 211 | E53: 757 | F53: =SUMIF(Таблица1[№ детали],B53,Таблица1[Кол-во деталей всего]) -> 1 | G53: с255 | H53: =IF(ISERROR(VLOOKUP(Таблица4[[#This Row],[Столбец1]],Таблица3[#All],1,0)),"Новая позиция"," ") ->  | I53: =IF(ISERROR(VLOOKUP(Детали!$G54,Вес!$C$2:$C$11,2,0))," ","Новая марка стали") ->  | K53: =Таблица4[[#This Row],[Кол-во]]*Таблица4[[#This Row],[Длина]] -> 757
A54: =Таблица4[[#This Row],[Профиль]]&Таблица4[[#This Row],[Марка ст.]] -> 12с255 | B54: 38-1054 | C54: 12 | D54: 220 | E54: 261 | F54: =SUMIF(Таблица1[№ детали],B54,Таблица1[Кол-во деталей всего]) -> 2 | G54: с255 | H54: =IF(ISERROR(VLOOKUP(Таблица4[[#This Row],[Столбец1]],Таблица3[#All],1,0)),"Новая позиция"," ") ->  | I54: =IF(ISERROR(VLOOKUP(Детали!$G157,Вес!$C$2:$C$11,2,0))," ","Новая марка стали") ->  | K54: =Таблица4[[#This Row],[Кол-во]]*Таблица4[[#This Row],[Длина]] -> 522
A55: =Таблица4[[#This Row],[Профиль]]&Таблица4[[#This Row],[Марка ст.]] -> 16с255 | B55: 38-1055 | C55: 16 | D55: 145 | E55: 356 | F55: =SUMIF(Таблица1[№ детали],B55,Таблица1[Кол-во деталей всего]) -> 12 | G55: с255 | H55: =IF(ISERROR(VLOOKUP(Таблица4[[#This Row],[Столбец1]],Таблица3[#All],1,0)),"Новая позиция"," ") ->  | I55: =IF(ISERROR(VLOOKUP(Детали!$G218,Вес!$C$2:$C$11,2,0))," ","Новая марка стали") ->  | K55: =Таблица4[[#This Row],[Кол-во]]*Таблица4[[#This Row],[Длина]] -> 4272
A56: =Таблица4[[#This Row],[Профиль]]&Таблица4[[#This Row],[Марка ст.]] -> 10с255 | B56: 38-1056 | C56: 10 | D56: 145 | E56: 200 | F56: =SUMIF(Таблица1[№ детали],B56,Таблица1[Кол-во деталей всего]) -> 12 | G56: с255 | H56: =IF(ISERROR(VLOOKUP(Таблица4[[#This Row],[Столбец1]],Таблица3[#All],1,0)),"Новая позиция"," ") ->  | I56: =IF(ISERROR(VLOOKUP(Детали!$G210,Вес!$C$2:$C$11,2,0))," ","Новая марка стали") ->  | K56: =Таблица4[[#This Row],[Кол-во]]*Таблица4[[#This Row],[Длина]] -> 2400
A57: =Таблица4[[#This Row],[Профиль]]&Таблица4[[#This Row],[Марка ст.]] -> 12с255 | B57: 38-1057 | C57: 12 | D57: 229 | E57: 255 | F57: =SUMIF(Таблица1[№ детали],B57,Таблица1[Кол-во деталей всего]) -> 1 | G57: с255 | H57: =IF(ISERROR(VLOOKUP(Таблица4[[#This Row],[Столбец1]],Таблица3[#All],1,0)),"Новая позиция"," ") ->  | I57: =IF(ISERROR(VLOOKUP(Детали!$G381,Вес!$C$2:$C$11,2,0))," ","Новая марка стали") ->  | K57: =Таблица4[[#This Row],[Кол-во]]*Таблица4[[#This Row],[Длина]] -> 255
A58: =Таблица4[[#This Row],[Профиль]]&Таблица4[[#This Row],[Марка ст.]] -> 12с255 | B58: 38-1058 | C58: 12 | D58: 200 | E58: 200 | F58: =SUMIF(Таблица1[№ детали],B58,Таблица1[Кол-во деталей всего]) -> 4 | G58: с255 | H58: =IF(ISERROR(VLOOKUP(Таблица4[[#This Row],[Столбец1]],Таблица3[#All],1,0)),"Новая позиция"," ") ->  | I58: =IF(ISERROR(VLOOKUP(Детали!$G165,Вес!$C$2:$C$11,2,0))," ","Новая марка стали") ->  | K58: =Таблица4[[#This Row],[Кол-во]]*Таблица4[[#This Row],[Длина]] -> 800 | N58: =K49+K58+K60 -> 4280
A59: =Таблица4[[#This Row],[Профиль]]&Таблица4[[#This Row],[Марка ст.]] -> 12с255 | B59: 38-1059 | C59: 12 | D59: 200 | E59: 200 | F59: =SUMIF(Таблица1[№ детали],B59,Таблица1[Кол-во деталей всего]) -> 4 | G59: с255 | H59: =IF(ISERROR(VLOOKUP(Таблица4[[#This Row],[Столбец1]],Таблица3[#All],1,0)),"Новая позиция"," ") ->  | I59: =IF(ISERROR(VLOOKUP(Детали!$G189,Вес!$C$2:$C$11,2,0))," ","Новая марка стали") ->  | K59: =Таблица4[[#This Row],[Кол-во]]*Таблица4[[#This Row],[Длина]] -> 800
A60: =Таблица4[[#This Row],[Профиль]]&Таблица4[[#This Row],[Марка ст.]] -> 12с255 | B60: 38-1060 | C60: 12 | D60: 229 | E60: 280 | F60: =SUMIF(Таблица1[№ детали],B60,Таблица1[Кол-во деталей всего]) -> 6 | G60: с255 | H60: =IF(ISERROR(VLOOKUP(Таблица4[[#This Row],[Столбец1]],Таблица3[#All],1,0)),"Новая позиция"," ") ->  | I60: =IF(ISERROR(VLOOKUP(Детали!$G384,Вес!$C$2:$C$11,2,0))," ","Новая марка стали") ->  | K60: =Таблица4[[#This Row],[Кол-во]]*Таблица4[[#This Row],[Длина]] -> 1680
A61: =Таблица4[[#This Row],[Профиль]]&Таблица4[[#This Row],[Марка ст.]] -> 12с255 | B61: 38-1061 | C61: 12 | D61: 229 | E61: 280 | F61: =SUMIF(Таблица1[№ детали],B61,Таблица1[Кол-во деталей всего]) -> 6 | G61: с255 | H61: =IF(ISERROR(VLOOKUP(Таблица4[[#This Row],[Столбец1]],Таблица3[#All],1,0)),"Новая позиция"," ") ->  | I61: =IF(ISERROR(VLOOKUP(Детали!$G379,Вес!$C$2:$C$11,2,0))," ","Новая марка стали") ->  | K61: =Таблица4[[#This Row],[Кол-во]]*Таблица4[[#This Row],[Длина]] -> 1680
A62: =Таблица4[[#This Row],[Профиль]]&Таблица4[[#This Row],[Марка ст.]] -> 12с255 | B62: 38-1062 | C62: 12 | D62: 229 | E62: 255 | F62: =SUMIF(Таблица1[№ детали],B62,Таблица1[Кол-во деталей всего]) -> 6 | G62: с255 | H62: =IF(ISERROR(VLOOKUP(Таблица4[[#This Row],[Столбец1]],Таблица3[#All],1,0)),"Новая позиция"," ") ->  | I62: =IF(ISERROR(VLOOKUP(Детали!$G351,Вес!$C$2:$C$11,2,0))," ","Новая марка стали") ->  | K62: =Таблица4[[#This Row],[Кол-во]]*Таблица4[[#This Row],[Длина]] -> 1530
A63: =Таблица4[[#This Row],[Профиль]]&Таблица4[[#This Row],[Марка ст.]] -> 12с255 | B63: 38-1063 | C63: 12 | D63: 229 | E63: 255 | F63: =SUMIF(Таблица1[№ детали],B63,Таблица1[Кол-во деталей всего]) -> 5 | G63: с255 | H63: =IF(ISERROR(VLOOKUP(Таблица4[[#This Row],[Столбец1]],Таблица3[#All],1,0)),"Новая позиция"," ") ->  | I63: =IF(ISERROR(VLOOKUP(Детали!$G172,Вес!$C$2:$C$11,2,0))," ","Новая марка стали") ->  | K63: =Таблица4[[#This Row],[Кол-во]]*Таблица4[[#This Row],[Длина]] -> 1275
A64: =Таблица4[[#This Row],[Профиль]]&Таблица4[[#This Row],[Марка ст.]] -> 30ш2с255 | B64: 38-1068 | C64: 30ш2 | E64: 5660 | F64: =SUMIF(Таблица1[№ детали],B64,Таблица1[Кол-во деталей всего]) -> 9 | G64: с255 | H64: =IF(ISERROR(VLOOKUP(Таблица4[[#This Row],[Столбец1]],Таблица3[#All],1,0)),"Новая позиция"," ") ->  | I64: =IF(ISERROR(VLOOKUP(Детали!$G156,Вес!$C$2:$C$11,2,0))," ","Новая марка стали") ->  | K64: =Таблица4[[#This Row],[Кол-во]]*Таблица4[[#This Row],[Длина]] -> 50940
A65: =Таблица4[[#This Row],[Профиль]]&Таблица4[[#This Row],[Марка ст.]] -> 30ш2с255 | B65: 38-1069 | C65: 30ш2 | E65: 5660 | F65: =SUMIF(Таблица1[№ детали],B65,Таблица1[Кол-во деталей всего]) -> 4 | G65: с255 | H65: =IF(ISERROR(VLOOKUP(Таблица4[[#This Row],[Столбец1]],Таблица3[#All],1,0)),"Новая позиция"," ") ->  | I65: =IF(ISERROR(VLOOKUP(Детали!$G209,Вес!$C$2:$C$11,2,0))," ","Новая марка стали") ->  | K65: =Таблица4[[#This Row],[Кол-во]]*Таблица4[[#This Row],[Длина]] -> 22640
A66: =Таблица4[[#This Row],[Профиль]]&Таблица4[[#This Row],[Марка ст.]] -> 30ш2с255 | B66: 38-1070 | C66: 30ш2 | E66: 5660 | F66: =SUMIF(Таблица1[№ детали],B66,Таблица1[Кол-во деталей всего]) -> 2 | G66: с255 | H66: =IF(ISERROR(VLOOKUP(Таблица4[[#This Row],[Столбец1]],Таблица3[#All],1,0)),"Новая позиция"," ") ->  | I66: =IF(ISERROR(VLOOKUP(Детали!$G171,Вес!$C$2:$C$11,2,0))," ","Новая марка стали") ->  | K66: =Таблица4[[#This Row],[Кол-во]]*Таблица4[[#This Row],[Длина]] -> 11320
A67: =Таблица4[[#This Row],[Профиль]]&Таблица4[[#This Row],[Марка ст.]] -> 30ш2с255 | B67: 38-1071 | C67: 30ш2 | E67: 2530 | F67: =SUMIF(Таблица1[№ детали],B67,Таблица1[Кол-во деталей всего]) -> 6 | G67: с255 | H67: =IF(ISERROR(VLOOKUP(Таблица4[[#This Row],[Столбец1]],Таблица3[#All],1,0)),"Новая позиция"," ") ->  | I67: =IF(ISERROR(VLOOKUP(Детали!$G162,Вес!$C$2:$C$11,2,0))," ","Новая марка стали") ->  | K67: =Таблица4[[#This Row],[Кол-во]]*Таблица4[[#This Row],[Длина]] -> 15180
A68: =Таблица4[[#This Row],[Профиль]]&Таблица4[[#This Row],[Марка ст.]] -> 8с255 | B68: 38-1072 | C68: 8 | D68: 96 | E68: 270 | F68: =SUMIF(Таблица1[№ детали],B68,Таблица1[Кол-во деталей всего]) -> 18 | G68: с255 | H68: =IF(ISERROR(VLOOKUP(Таблица4[[#This Row],[Столбец1]],Таблица3[#All],1,0)),"Новая позиция"," ") ->  | I68: =IF(ISERROR(VLOOKUP(Детали!$G170,Вес!$C$2:$C$11,2,0))," ","Новая марка стали") ->  | K68: =Таблица4[[#This Row],[Кол-во]]*Таблица4[[#This Row],[Длина]] -> 4860
A69: =Таблица4[[#This Row],[Профиль]]&Таблица4[[#This Row],[Марка ст.]] -> 8с255 | B69: 38-1073 | C69: 8 | D69: 96 | E69: 220 | F69: =SUMIF(Таблица1[№ детали],B69,Таблица1[Кол-во деталей всего]) -> 12 | G69: с255 | H69: =IF(ISERROR(VLOOKUP(Таблица4[[#This Row],[Столбец1]],Таблица3[#All],1,0)),"Новая позиция"," ") ->  | I69: =IF(ISERROR(VLOOKUP(Детали!$G344,Вес!$C$2:$C$11,2,0))," ","Новая марка стали") ->  | K69: =Таблица4[[#This Row],[Кол-во]]*Таблица4[[#This Row],[Длина]] -> 2640
A70: =Таблица4[[#This Row],[Профиль]]&Таблица4[[#This Row],[Марка ст.]] -> 8с255 | B70: 38-1074 | C70: 8 | D70: 96 | E70: 325 | F70: =SUMIF(Таблица1[№ детали],B70,Таблица1[Кол-во деталей всего]) -> 4 | G70: с255 | H70: =IF(ISERROR(VLOOKUP(Таблица4[[#This Row],[Столбец1]],Таблица3[#All],1,0)),"Новая позиция"," ") ->  | I70: =IF(ISERROR(VLOOKUP(Детали!$G160,Вес!$C$2:$C$11,2,0))," ","Новая марка стали") ->  | K70: =Таблица4[[#This Row],[Кол-во]]*Таблица4[[#This Row],[Длина]] -> 1300
A71: =Таблица4[[#This Row],[Профиль]]&Таблица4[[#This Row],[Марка ст.]] -> 8с255 | B71: 38-1075 | C71: 8 | D71: 96 | E71: 230 | F71: =SUMIF(Таблица1[№ детали],B71,Таблица1[Кол-во деталей всего]) -> 12 | G71: с255 | H71: =IF(ISERROR(VLOOKUP(Таблица4[[#This Row],[Столбец1]],Таблица3[#All],1,0)),"Новая позиция"," ") ->  | I71: =IF(ISERROR(VLOOKUP(Детали!$G191,Вес!$C$2:$C$11,2,0))," ","Новая марка стали") ->  | K71: =Таблица4[[#This Row],[Кол-во]]*Таблица4[[#This Row],[Длина]] -> 2760
A72: =Таблица4[[#This Row],[Профиль]]&Таблица4[[#This Row],[Марка ст.]] -> 8с255 | B72: 38-1076 | C72: 8 | D72: 96 | E72: 310 | F72: =SUMIF(Таблица1[№ детали],B72,Таблица1[Кол-во деталей всего]) -> 2 | G72: с255 | H72: =IF(ISERROR(VLOOKUP(Таблица4[[#This Row],[Столбец1]],Таблица3[#All],1,0)),"Новая позиция"," ") ->  | I72: =IF(ISERROR(VLOOKUP(Детали!$G203,Вес!$C$2:$C$11,2,0))," ","Новая марка стали") ->  | K72: =Таблица4[[#This Row],[Кол-во]]*Таблица4[[#This Row],[Длина]] -> 620
A73: =Таблица4[[#This Row],[Профиль]]&Таблица4[[#This Row],[Марка ст.]] -> 10с255 | B73: 38-1085 | C73: 10 | D73: 310 | E73: 840 | F73: =SUMIF(Таблица1[№ детали],B73,Таблица1[Кол-во деталей всего]) -> 1 | G73: с255 | H73: =IF(ISERROR(VLOOKUP(Таблица4[[#This Row],[Столбец1]],Таблица3[#All],1,0)),"Новая позиция"," ") ->  | I73: =IF(ISERROR(VLOOKUP(Детали!$G343,Вес!$C$2:$C$11,2,0))," ","Новая марка стали") ->  | K73: =Таблица4[[#This Row],[Кол-во]]*Таблица4[[#This Row],[Длина]] -> 840
A74: =Таблица4[[#This Row],[Профиль]]&Таблица4[[#This Row],[Марка ст.]] -> 10с255 | B74: 38-1086 | C74: 10 | D74: 325 | E74: 1140 | F74: =SUMIF(Таблица1[№ детали],B74,Таблица1[Кол-во деталей всего]) -> 2 | G74: с255 | H74: =IF(ISERROR(VLOOKUP(Таблица4[[#This Row],[Столбец1]],Таблица3[#All],1,0)),"Новая позиция"," ") ->  | I74: =IF(ISERROR(VLOOKUP(Детали!$G161,Вес!$C$2:$C$11,2,0))," ","Новая марка стали") ->  | K74: =Таблица4[[#This Row],[Кол-во]]*Таблица4[[#This Row],[Длина]] -> 2280
A75: =Таблица4[[#This Row],[Профиль]]&Таблица4[[#This Row],[Марка ст.]] -> 10с255 | B75: 38-1087 | C75: 10 | D75: 220 | E75: 740 | F75: =SUMIF(Таблица1[№ детали],B75,Таблица1[Кол-во деталей всего]) -> 6 | G75: с255 | H75: =IF(ISERROR(VLOOKUP(Таблица4[[#This Row],[Столбец1]],Таблица3[#All],1,0)),"Новая позиция"," ") ->  | I75: =IF(ISERROR(VLOOKUP(Детали!$G373,Вес!$C$2:$C$11,2,0))," ","Новая марка стали") ->  | K75: =Таблица4[[#This Row],[Кол-во]]*Таблица4[[#This Row],[Длина]] -> 4440
A76: =Таблица4[[#This Row],[Профиль]]&Таблица4[[#This Row],[Марка ст.]] -> 10с255 | B76: 38-1088 | C76: 10 | D76: 230 | E76: 960 | F76: =SUMIF(Таблица1[№ детали],B76,Таблица1[Кол-во деталей всего]) -> 4 | G76: с255 | H76: =IF(ISERROR(VLOOKUP(Таблица4[[#This Row],[Столбец1]],Таблица3[#All],1,0)),"Новая позиция"," ") ->  | I76: =IF(ISERROR(VLOOKUP(Детали!$G133,Вес!$C$2:$C$11,2,0))," ","Новая марка стали") ->  | K76: =Таблица4[[#This Row],[Кол-во]]*Таблица4[[#This Row],[Длина]] -> 3840
A77: =Таблица4[[#This Row],[Профиль]]&Таблица4[[#This Row],[Марка ст.]] -> 10с255 | B77: 38-1089 | C77: 10 | D77: 230 | E77: 870 | F77: =SUMIF(Таблица1[№ детали],B77,Таблица1[Кол-во деталей всего]) -> 2 | G77: с255 | H77: =IF(ISERROR(VLOOKUP(Таблица4[[#This Row],[Столбец1]],Таблица3[#All],1,0)),"Новая позиция"," ") ->  | I77: =IF(ISERROR(VLOOKUP(Детали!$G192,Вес!$C$2:$C$11,2,0))," ","Новая марка стали") ->  | K77: =Таблица4[[#This Row],[Кол-во]]*Таблица4[[#This Row],[Длина]] -> 1740
A78: =Таблица4[[#This Row],[Профиль]]&Таблица4[[#This Row],[Марка ст.]] -> 10с255 | B78: 38-1091 | C78: 10 | D78: 111 | E78: 270 | F78: =SUMIF(Таблица1[№ детали],B78,Таблица1[Кол-во деталей всего]) -> 10 | G78: с255 | H78: =IF(ISERROR(VLOOKUP(Таблица4[[#This Row],[Столбец1]],Таблица3[#All],1,0)),"Новая позиция"," ") ->  | I78: =IF(ISERROR(VLOOKUP(Детали!$G200,Вес!$C$2:$C$11,2,0))," ","Новая марка стали") ->  | K78: =Таблица4[[#This Row],[Кол-во]]*Таблица4[[#This Row],[Длина]] -> 2700
A79: =Таблица4[[#This Row],[Профиль]]&Таблица4[[#This Row],[Марка ст.]] -> 10с255 | B79: 38-1092 | C79: 10 | D79: 96 | E79: 270 | F79: =SUMIF(Таблица1[№ детали],B79,Таблица1[Кол-во деталей всего]) -> 2 | G79: с255 | H79: =IF(ISERROR(VLOOKUP(Таблица4[[#This Row],[Столбец1]],Таблица3[#All],1,0)),"Новая позиция"," ") ->  | I79: =IF(ISERROR(VLOOKUP(Детали!$G143,Вес!$C$2:$C$11,2,0))," ","Новая марка стали") ->  | K79: =Таблица4[[#This Row],[Кол-во]]*Таблица4[[#This Row],[Длина]] -> 540
A80: =Таблица4[[#This Row],[Профиль]]&Таблица4[[#This Row],[Марка ст.]] -> 10с255 | B80: 38-1095 | C80: 10 | D80: 96 | E80: 270 | F80: =SUMIF(Таблица1[№ детали],B80,Таблица1[Кол-во деталей всего]) -> 12 | G80: с255 | H80: =IF(ISERROR(VLOOKUP(Таблица4[[#This Row],[Столбец1]],Таблица3[#All],1,0)),"Новая позиция"," ") ->  | I80: =IF(ISERROR(VLOOKUP(Детали!$G201,Вес!$C$2:$C$11,2,0))," ","Новая марка стали") ->  | K80: =Таблица4[[#This Row],[Кол-во]]*Таблица4[[#This Row],[Длина]] -> 3240
A81: =Таблица4[[#This Row],[Профиль]]&Таблица4[[#This Row],[Марка ст.]] -> 14с255 | B81: 38-1099 | C81: 14 | D81: 170 | E81: 220 | F81: =SUMIF(Таблица1[№ детали],B81,Таблица1[Кол-во деталей всего]) -> 12 | G81: с255 | H81: =IF(ISERROR(VLOOKUP(Таблица4[[#This Row],[Столбец1]],Таблица3[#All],1,0)),"Новая позиция"," ") ->  | I81: =IF(ISERROR(VLOOKUP(Детали!$G186,Вес!$C$2:$C$11,2,0))," ","Новая марка стали") ->  | K81: =Таблица4[[#This Row],[Кол-во]]*Таблица4[[#This Row],[Длина]] -> 2640
A82: =Таблица4[[#This Row],[Профиль]]&Таблица4[[#This Row],[Марка ст.]] -> 12с255 | B82: 38-1133 | C82: 12 | D82: 221 | E82: 282 | F82: =SUMIF(Таблица1[№ детали],B82,Таблица1[Кол-во деталей всего]) -> 1 | G82: с255 | H82: =IF(ISERROR(VLOOKUP(Таблица4[[#This Row],[Столбец1]],Таблица3[#All],1,0)),"Новая позиция"," ") ->  | I82: =IF(ISERROR(VLOOKUP(Детали!$G173,Вес!$C$2:$C$11,2,0))," ","Новая марка стали") ->  | K82: =Таблица4[[#This Row],[Кол-во]]*Таблица4[[#This Row],[Длина]] -> 282
A83: =Таблица4[[#This Row],[Профиль]]&Таблица4[[#This Row],[Марка ст.]] -> 12с255 | B83: 38-1134 | C83: 12 | D83: 221 | E83: 320 | F83: =SUMIF(Таблица1[№ детали],B83,Таблица1[Кол-во деталей всего]) -> 1 | G83: с255 | H83: =IF(ISERROR(VLOOKUP(Таблица4[[#This Row],[Столбец1]],Таблица3[#All],1,0)),"Новая позиция"," ") ->  | I83: =IF(ISERROR(VLOOKUP(Детали!$G142,Вес!$C$2:$C$11,2,0))," ","Новая марка стали") ->  | K83: =Таблица4[[#This Row],[Кол-во]]*Таблица4[[#This Row],[Длина]] -> 320
A84: =Таблица4[[#This Row],[Профиль]]&Таблица4[[#This Row],[Марка ст.]] -> 12с255 | B84: 38-1135 | C84: 12 | D84: 220 | E84: 261 | F84: =SUMIF(Таблица1[№ детали],B84,Таблица1[Кол-во деталей всего]) -> 2 | G84: с255 | H84: =IF(ISERROR(VLOOKUP(Таблица4[[#This Row],[Столбец1]],Таблица3[#All],1,0)),"Новая позиция"," ") ->  | I84: =IF(ISERROR(VLOOKUP(Детали!$G174,Вес!$C$2:$C$11,2,0))," ","Новая марка стали") ->  | K84: =Таблица4[[#This Row],[Кол-во]]*Таблица4[[#This Row],[Длина]] -> 522
A85: =Таблица4[[#This Row],[Профиль]]&Таблица4[[#This Row],[Марка ст.]] -> 12с255 | B85: 38-1136 | C85: 12 | D85: 221 | E85: 282 | F85: =SUMIF(Таблица1[№ детали],B85,Таблица1[Кол-во деталей всего]) -> 1 | G85: с255 | H85: =IF(ISERROR(VLOOKUP(Таблица4[[#This Row],[Столбец1]],Таблица3[#All],1,0)),"Новая позиция"," ") ->  | I85: =IF(ISERROR(VLOOKUP(Детали!$G9,Вес!$C$2:$C$11,2,0))," ","Новая марка стали") ->  | K85: =Таблица4[[#This Row],[Кол-во]]*Таблица4[[#This Row],[Длина]] -> 282
A86: =Таблица4[[#This Row],[Профиль]]&Таблица4[[#This Row],[Марка ст.]] -> 12с255 | B86: 38-1137 | C86: 12 | D86: 221 | E86: 320 | F86: =SUMIF(Таблица1[№ детали],B86,Таблица1[Кол-во деталей всего]) -> 1 | G86: с255 | H86: =IF(ISERROR(VLOOKUP(Таблица4[[#This Row],[Столбец1]],Таблица3[#All],1,0)),"Новая позиция"," ") ->  | I86: =IF(ISERROR(VLOOKUP(Детали!$G12,Вес!$C$2:$C$11,2,0))," ","Новая марка стали") ->  | K86: =Таблица4[[#This Row],[Кол-во]]*Таблица4[[#This Row],[Длина]] -> 320
A87: =Таблица4[[#This Row],[Профиль]]&Таблица4[[#This Row],[Марка ст.]] -> 10с255 | B87: 38-1142 | C87: 10 | D87: 140 | E87: 200 | F87: =SUMIF(Таблица1[№ детали],B87,Таблица1[Кол-во деталей всего]) -> 1 | G87: с255 | H87: =IF(ISERROR(VLOOKUP(Таблица4[[#This Row],[Столбец1]],Таблица3[#All],1,0)),"Новая позиция"," ") ->  | I87: =IF(ISERROR(VLOOKUP(Детали!$G293,Вес!$C$2:$C$11,2,0))," ","Новая марка стали") ->  | K87: =Таблица4[[#This Row],[Кол-во]]*Таблица4[[#This Row],[Длина]] -> 200
A88: =Таблица4[[#This Row],[Профиль]]&Таблица4[[#This Row],[Марка ст.]] ->  | F88: =SUMIF(Таблица1[№ детали],B88,Таблица1[Кол-во деталей всего]) -> 0 | H88: =IF(ISERROR(VLOOKUP(Таблица4[[#This Row],[Столбец1]],Таблица3[#All],1,0)),"Новая позиция"," ") ->  | I88: =IF(ISERROR(VLOOKUP(Детали!$G46,Вес!$C$2:$C$11,2,0))," ","Новая марка стали") ->  | K88: =Таблица4[[#This Row],[Кол-во]]*Таблица4[[#This Row],[Длина]] -> 0
K89: =Таблица4[[#This Row],[Кол-во]]*Таблица4[[#This Row],[Длина]] -> 
K90: =Таблица4[[#This Row],[Кол-во]]*Таблица4[[#This Row],[Длина]] -> 
K91: =Таблица4[[#This Row],[Кол-во]]*Таблица4[[#This Row],[Длина]] -> 
K92: =Таблица4[[#This Row],[Кол-во]]*Таблица4[[#This Row],[Длина]] -> 
K93: =Таблица4[[#This Row],[Кол-во]]*Таблица4[[#This Row],[Длина]] -> 
K94: =Таблица4[[#This Row],[Кол-во]]*Таблица4[[#This Row],[Длина]] -> 
K95: =Таблица4[[#This Row],[Кол-во]]*Таблица4[[#This Row],[Длина]] -> 
K96: =Таблица4[[#This Row],[Кол-во]]*Таблица4[[#This Row],[Длина]] -> 
K97: =Таблица4[[#This Row],[Кол-во]]*Таблица4[[#This Row],[Длина]] -> 
K98: =Таблица4[[#This Row],[Кол-во]]*Таблица4[[#This Row],[Длина]] -> 
K99: =Таблица4[[#This Row],[Кол-во]]*Таблица4[[#This Row],[Длина]] -> 
K100: =Таблица4[[#This Row],[Кол-во]]*Таблица4[[#This Row],[Длина]] -> 
K101: =Таблица4[[#This Row],[Кол-во]]*Таблица4[[#This Row],[Длина]] -> 
K102: =Таблица4[[#This Row],[Кол-во]]*Таблица4[[#This Row],[Длина]] -> 
K103: =Таблица4[[#This Row],[Кол-во]]*Таблица4[[#This Row],[Длина]] -> 
K104: =Таблица4[[#This Row],[Кол-во]]*Таблица4[[#This Row],[Длина]] -> 
K105: =Таблица4[[#This Row],[Кол-во]]*Таблица4[[#This Row],[Длина]] -> 
K106: =Таблица4[[#This Row],[Кол-во]]*Таблица4[[#This Row],[Длина]] -> 
K107: =Таблица4[[#This Row],[Кол-во]]*Таблица4[[#This Row],[Длина]] -> 
K108: =Таблица4[[#This Row],[Кол-во]]*Таблица4[[#This Row],[Длина]] -> 
K109: =Таблица4[[#This Row],[Кол-во]]*Таблица4[[#This Row],[Длина]] -> 
K110: =Таблица4[[#This Row],[Кол-во]]*Таблица4[[#This Row],[Длина]] -> 
K111: =Таблица4[[#This Row],[Кол-во]]*Таблица4[[#This Row],[Длина]] -> 
K112: =Таблица4[[#This Row],[Кол-во]]*Таблица4[[#This Row],[Длина]] -> 
K113: =Таблица4[[#This Row],[Кол-во]]*Таблица4[[#This Row],[Длина]] -> 
K114: =Таблица4[[#This Row],[Кол-во]]*Таблица4[[#This Row],[Длина]] -> 
K115: =Таблица4[[#This Row],[Кол-во]]*Таблица4[[#This Row],[Длина]] -> 
K116: =Таблица4[[#This Row],[Кол-во]]*Таблица4[[#This Row],[Длина]] -> 
K117: =Таблица4[[#This Row],[Кол-во]]*Таблица4[[#This Row],[Длина]] -> 
K118: =Таблица4[[#This Row],[Кол-во]]*Таблица4[[#This Row],[Длина]] -> 
K119: =Таблица4[[#This Row],[Кол-во]]*Таблица4[[#This Row],[Длина]] ->  | N119: =K119+K120+K121+K122+K123+K124+K125+K126+K127+K128+K129+#REF!+K130 -> 
K120: =Таблица4[[#This Row],[Кол-во]]*Таблица4[[#This Row],[Длина]] -> 
K121: =Таблица4[[#This Row],[Кол-во]]*Таблица4[[#This Row],[Длина]] -> 
K122: =Таблица4[[#This Row],[Кол-во]]*Таблица4[[#This Row],[Длина]] -> 
K123: =Таблица4[[#This Row],[Кол-во]]*Таблица4[[#This Row],[Длина]] -> 
K124: =Таблица4[[#This Row],[Кол-во]]*Таблица4[[#This Row],[Длина]] -> 
K125: =Таблица4[[#This Row],[Кол-во]]*Таблица4[[#This Row],[Длина]] -> 
K126: =Таблица4[[#This Row],[Кол-во]]*Таблица4[[#This Row],[Длина]] -> 
K127: =Таблица4[[#This Row],[Кол-во]]*Таблица4[[#This Row],[Длина]] -> 
K128: =Таблица4[[#This Row],[Кол-во]]*Таблица4[[#This Row],[Длина]] -> 
K129: =Таблица4[[#This Row],[Кол-во]]*Таблица4[[#This Row],[Длина]] -> 
K130: =Таблица4[[#This Row],[Кол-во]]*Таблица4[[#This Row],[Длина]] -> 
K131: =Таблица4[[#This Row],[Кол-во]]*Таблица4[[#This Row],[Длина]] -> 
K132: =Таблица4[[#This Row],[Кол-во]]*Таблица4[[#This Row],[Длина]] -> 
K133: =Таблица4[[#This Row],[Кол-во]]*Таблица4[[#This Row],[Длина]] -> 
K134: =Таблица4[[#This Row],[Кол-во]]*Таблица4[[#This Row],[Длина]] -> 
K135: =Таблица4[[#This Row],[Кол-во]]*Таблица4[[#This Row],[Длина]] -> 
K136: =Таблица4[[#This Row],[Кол-во]]*Таблица4[[#This Row],[Длина]] -> 
K137: =Таблица4[[#This Row],[Кол-во]]*Таблица4[[#This Row],[Длина]] -> 
K138: =Таблица4[[#This Row],[Кол-во]]*Таблица4[[#This Row],[Длина]] -> 
K139: =Таблица4[[#This Row],[Кол-во]]*Таблица4[[#This Row],[Длина]] -> 
K140: =Таблица4[[#This Row],[Кол-во]]*Таблица4[[#This Row],[Длина]] -> 
K141: =Таблица4[[#This Row],[Кол-во]]*Таблица4[[#This Row],[Длина]] -> 
K142: =Таблица4[[#This Row],[Кол-во]]*Таблица4[[#This Row],[Длина]] -> 
K143: =Таблица4[[#This Row],[Кол-во]]*Таблица4[[#This Row],[Длина]] -> 
K144: =Таблица4[[#This Row],[Кол-во]]*Таблица4[[#This Row],[Длина]] -> 
K145: =Таблица4[[#This Row],[Кол-во]]*Таблица4[[#This Row],[Длина]] -> 
K146: =Таблица4[[#This Row],[Кол-во]]*Таблица4[[#This Row],[Длина]] -> 
K147: =Таблица4[[#This Row],[Кол-во]]*Таблица4[[#This Row],[Длина]] -> 
K148: =Таблица4[[#This Row],[Кол-во]]*Таблица4[[#This Row],[Длина]] -> 
K149: =Таблица4[[#This Row],[Кол-во]]*Таблица4[[#This Row],[Длина]] -> 
K150: =Таблица4[[#This Row],[Кол-во]]*Таблица4[[#This Row],[Длина]] -> 
K151: =Таблица4[[#This Row],[Кол-во]]*Таблица4[[#This Row],[Длина]] -> 
K152: =Таблица4[[#This Row],[Кол-во]]*Таблица4[[#This Row],[Длина]] -> 
K153: =Таблица4[[#This Row],[Кол-во]]*Таблица4[[#This Row],[Длина]] -> 
K154: =Таблица4[[#This Row],[Кол-во]]*Таблица4[[#This Row],[Длина]] -> 
K155: =Таблица4[[#This Row],[Кол-во]]*Таблица4[[#This Row],[Длина]] -> 
K156: =Таблица4[[#This Row],[Кол-во]]*Таблица4[[#This Row],[Длина]] -> 
K157: =Таблица4[[#This Row],[Кол-во]]*Таблица4[[#This Row],[Длина]] -> 
K158: =Таблица4[[#This Row],[Кол-во]]*Таблица4[[#This Row],[Длина]] -> 
K159: =Таблица4[[#This Row],[Кол-во]]*Таблица4[[#This Row],[Длина]] -> 
K160: =Таблица4[[#This Row],[Кол-во]]*Таблица4[[#This Row],[Длина]] -> 
K161: =Таблица4[[#This Row],[Кол-во]]*Таблица4[[#This Row],[Длина]] -> 
K162: =Таблица4[[#This Row],[Кол-во]]*Таблица4[[#This Row],[Длина]] -> 
K163: =Таблица4[[#This Row],[Кол-во]]*Таблица4[[#This Row],[Длина]] -> 
K164: =Таблица4[[#This Row],[Кол-во]]*Таблица4[[#This Row],[Длина]] -> 
K165: =Таблица4[[#This Row],[Кол-во]]*Таблица4[[#This Row],[Длина]] -> 
K166: =Таблица4[[#This Row],[Кол-во]]*Таблица4[[#This Row],[Длина]] -> 
K167: =Таблица4[[#This Row],[Кол-во]]*Таблица4[[#This Row],[Длина]] -> 
K168: =Таблица4[[#This Row],[Кол-во]]*Таблица4[[#This Row],[Длина]] -> 
K169: =Таблица4[[#This Row],[Кол-во]]*Таблица4[[#This Row],[Длина]] -> 
K170: =Таблица4[[#This Row],[Кол-во]]*Таблица4[[#This Row],[Длина]] -> 
K171: =Таблица4[[#This Row],[Кол-во]]*Таблица4[[#This Row],[Длина]] -> 
K172: =Таблица4[[#This Row],[Кол-во]]*Таблица4[[#This Row],[Длина]] -> 
K173: =Таблица4[[#This Row],[Кол-во]]*Таблица4[[#This Row],[Длина]] -> 
K174: =Таблица4[[#This Row],[Кол-во]]*Таблица4[[#This Row],[Длина]] -> 
K175: =Таблица4[[#This Row],[Кол-во]]*Таблица4[[#This Row],[Длина]] -> 
K176: =Таблица4[[#This Row],[Кол-во]]*Таблица4[[#This Row],[Длина]] -> 
K177: =Таблица4[[#This Row],[Кол-во]]*Таблица4[[#This Row],[Длина]] -> 
K178: =Таблица4[[#This Row],[Кол-во]]*Таблица4[[#This Row],[Длина]] -> 
K179: =Таблица4[[#This Row],[Кол-во]]*Таблица4[[#This Row],[Длина]] -> 
K180: =Таблица4[[#This Row],[Кол-во]]*Таблица4[[#This Row],[Длина]] -> 
K181: =Таблица4[[#This Row],[Кол-во]]*Таблица4[[#This Row],[Длина]] -> 
K182: =Таблица4[[#This Row],[Кол-во]]*Таблица4[[#This Row],[Длина]] -> 
K183: =Таблица4[[#This Row],[Кол-во]]*Таблица4[[#This Row],[Длина]] -> 
K184: =Таблица4[[#This Row],[Кол-во]]*Таблица4[[#This Row],[Длина]] -> 
K185: =Таблица4[[#This Row],[Кол-во]]*Таблица4[[#This Row],[Длина]] -> 
K186: =Таблица4[[#This Row],[Кол-во]]*Таблица4[[#This Row],[Длина]] -> 
K187: =Таблица4[[#This Row],[Кол-во]]*Таблица4[[#This Row],[Длина]] -> 
K188: =Таблица4[[#This Row],[Кол-во]]*Таблица4[[#This Row],[Длина]] -> 
K189: =Таблица4[[#This Row],[Кол-во]]*Таблица4[[#This Row],[Длина]] -> 
K190: =Таблица4[[#This Row],[Кол-во]]*Таблица4[[#This Row],[Длина]] -> 
K191: =Таблица4[[#This Row],[Кол-во]]*Таблица4[[#This Row],[Длина]] -> 
K192: =Таблица4[[#This Row],[Кол-во]]*Таблица4[[#This Row],[Длина]] -> 
K193: =Таблица4[[#This Row],[Кол-во]]*Таблица4[[#This Row],[Длина]] ->  | N193: =K190+K193+K194+K368+K405 -> 
K194: =Таблица4[[#This Row],[Кол-во]]*Таблица4[[#This Row],[Длина]] -> 
K195: =Таблица4[[#This Row],[Кол-во]]*Таблица4[[#This Row],[Длина]] -> 
K196: =Таблица4[[#This Row],[Кол-во]]*Таблица4[[#This Row],[Длина]] -> 
K197: =Таблица4[[#This Row],[Кол-во]]*Таблица4[[#This Row],[Длина]] -> 
K198: =Таблица4[[#This Row],[Кол-во]]*Таблица4[[#This Row],[Длина]] -> 
K199: =Таблица4[[#This Row],[Кол-во]]*Таблица4[[#This Row],[Длина]] -> 
K200: =Таблица4[[#This Row],[Кол-во]]*Таблица4[[#This Row],[Длина]] -> 
... 230 more rows

Sheet Вес
A1: Столбец1 | B1: Сечение | C1: Марка | D1: Вес всех | E1: Примечание | G1: 1119-Т1 | Q1: Профиль
A2: =Таблица3[[#This Row],[Сечение]]&Таблица3[[#This Row],[Марка]] -> 40ш2с255 | B2: 40ш2 | C2: с255 | D2: =SUMIFS(Таблица1[Вес всех дет.],Таблица1[Профиль /толщина],B2,Таблица1[Марка стали],C2) -> 9536.1 | G2: =SUM(Таблица3[Вес всех]) -> 22895.2
A3: =Таблица3[[#This Row],[Сечение]]&Таблица3[[#This Row],[Марка]] -> 8с255 | B3: 8 | C3: с255 | D3: =SUMIFS(Таблица1[Вес всех дет.],Таблица1[Профиль /толщина],B3,Таблица1[Марка стали],C3) -> 128
A4: =Таблица3[[#This Row],[Сечение]]&Таблица3[[#This Row],[Марка]] -> 10с255 | B4: 10 | C4: с255 | D4: =SUMIFS(Таблица1[Вес всех дет.],Таблица1[Профиль /толщина],B4,Таблица1[Марка стали],C4) -> 1301.9
A5: =Таблица3[[#This Row],[Сечение]]&Таблица3[[#This Row],[Марка]] -> 25с255 | B5: 25 | C5: с255 | D5: =SUMIFS(Таблица1[Вес всех дет.],Таблица1[Профиль /толщина],B5,Таблица1[Марка стали],C5) -> 172.2
A6: =Таблица3[[#This Row],[Сечение]]&Таблица3[[#This Row],[Марка]] -> 16с255 | B6: 16 | C6: с255 | D6: =SUMIFS(Таблица1[Вес всех дет.],Таблица1[Профиль /толщина],B6,Таблица1[Марка стали],C6) -> 1784.2
A7: =Таблица3[[#This Row],[Сечение]]&Таблица3[[#This Row],[Марка]] -> 20с255 | B7: 20 | C7: с255 | D7: =SUMIFS(Таблица1[Вес всех дет.],Таблица1[Профиль /толщина],B7,Таблица1[Марка стали],C7) -> 69
A8: =Таблица3[[#This Row],[Сечение]]&Таблица3[[#This Row],[Марка]] -> 30ш2с255 | B8: 30ш2 | C8: с255 | D8: =SUMIFS(Таблица1[Вес всех дет.],Таблица1[Профиль /толщина],B8,Таблица1[Марка стали],C8) -> 9580
A9: =Таблица3[[#This Row],[Сечение]]&Таблица3[[#This Row],[Марка]] -> 12с255 | B9: 12 | C9: с255 | D9: =SUMIFS(Таблица1[Вес всех дет.],Таблица1[Профиль /толщина],B9,Таблица1[Марка стали],C9) -> 274.6
A10: =Таблица3[[#This Row],[Сечение]]&Таблица3[[#This Row],[Марка]] -> 14с255 | B10: 14 | C10: с255 | D10: =SUMIFS(Таблица1[Вес всех дет.],Таблица1[Профиль /толщина],B10,Таблица1[Марка стали],C10) -> 49.2
A11: =Таблица3[[#This Row],[Сечение]]&Таблица3[[#This Row],[Марка]] ->  | D11: =SUMIFS(Таблица1[Вес всех дет.],Таблица1[Профиль /толщина],B11,Таблица1[Марка стали],C11) -> 0
Q49: у

Sheet Лист1
J3: 181
J4: 1070
J5: 364
J6: 9229
J7: 30636
J8: 3552
J9: 1170
J10: 2000
J11: 608
J12: 317
J13: 130
J14: 130
J15: 282
J16: 92
J17: 5710
J18: 400
J19: 2019
J20: 3772
J21: 14450
J22: 9400
J23: 8640
J24: 5760
J25: 2108
J26: 7890
J27: 2108
J28: 3945
J29: 25200
J30: 15740
J31: 15740
J32: 1054
J33: 7890
J34: 2108
J35: 3945
J36: 25200
J37: 15740
J38: 15740
J39: 1054
J40: 7890
J41: 2108
J42: 3945
J43: 25200
J44: 15740
J45: 15740
J46: 7890
J47: 2108
J48: 2108
J49: 3945
J50: 25200
J51: 15740
J52: 15740
J53: 3468
J54: 5080
J55: 2540
J56: 4320
J57: 7590
J58: 5060
J59: 3468
J60: 5080
J61: 2540
J62: 7590
J63: 5060
J64: 4050
J65: 606
J66: 4050
J67: 909
J68: 2015
J69: 4050
J70: 746
J71: 4050
J72: 1492
J73: 2015
J74: 2995
J75: 1020
J76: 1020
J77: 2995
J78: 5080
J79: 2985
J80: 2985
J81: 1007
J82: 1007
J83: 14450
J84: 2890
J85: =SUM(J3:J84) -> 502941
